{"text_format":"1","workbook":"xlsx","n_sheets":3,"sheets":["工作表1","工作表2","工作表3"],"not_rendered":{"charts":0,"images":0,"macros":1,"external_links":0,"defined_names":1,"comments":0,"pivot_tables":0},"unopened":[],"bounds":{"document_bytes":16777216,"sheet_cells":100000,"rows_first":2000,"rows_last":500,"rows_between":2000,"halvings":0,"cell_chars":16384,"cell_head_chars":4096},"cells_cut":0,"cells_raw":0,"read":"whole","date_system":"1900"}

{"sheet":"工作表1","index":0,"n_rows":2117,"n_cols":102,"rows_kept":2117,"cut":false,"hidden":false,"merged":[[0,2,0,8],[0,10,0,16],[0,93,0,96],[0,98,0,101],[2,6,2,7],[2,14,2,15],[2,18,2,21],[2,23,2,26],[2,28,2,31],[2,33,2,36],[2,38,2,41],[2,43,2,46],[2,48,2,51],[2,53,2,56],[2,58,2,61],[2,63,2,66],[2,68,2,71],[2,73,2,76],[2,78,2,81],[2,83,2,86],[2,88,2,91],[2,93,2,96],[2,98,2,101],[3,6,3,7],[3,14,3,15],[4,6,4,7],[4,14,4,15],[5,6,5,7],[5,14,5,15],[6,6,6,7],[6,14,6,15],[7,6,7,7],[7,14,7,15],[8,6,8,7],[8,14,8,15],[9,6,9,7],[9,14,9,15],[10,6,10,7],[10,14,10,15],[11,6,11,7],[11,14,11,15],[12,6,12,7],[12,14,12,15],[13,6,13,7],[13,14,13,15],[14,6,14,7],[14,14,14,15],[15,6,15,7],[15,14,15,15],[16,6,16,7],[16,14,16,15],[17,6,17,7],[17,14,17,15],[18,6,18,7],[18,14,18,15],[19,6,19,7],[19,14,19,15],[20,6,20,7],[20,14,20,15],[21,6,21,7],[21,14,21,15],[22,6,22,7],[22,14,22,15],[23,6,23,7],[23,14,23,15],[24,6,24,7],[24,14,24,15],[25,6,25,7],[25,14,25,15],[26,6,26,7],[26,14,26,15],[27,6,27,7],[27,14,27,15],[28,6,28,7],[28,14,28,15],[29,6,29,7],[29,14,29,15],[30,6,30,7],[30,14,30,15],[31,6,31,7],[31,14,31,15],[32,6,32,7],[32,14,32,15],[33,6,33,7],[33,14,33,15],[34,6,34,7],[34,14,34,15],[35,6,35,7],[35,14,35,15],[36,6,36,7],[36,14,36,15],[37,6,37,7],[37,14,37,15],[38,6,38,7],[38,14,38,15],[39,6,39,7],[39,14,39,15],[40,6,40,7],[40,14,40,15],[41,6,41,7],[41,14,41,15],[42,6,42,7],[42,14,42,15],[43,6,43,7],[43,14,43,15],[44,6,44,7],[44,14,44,15],[45,6,45,7],[45,14,45,15],[46,6,46,7],[46,14,46,15],[47,6,47,7],[47,14,47,15],[48,6,48,7],[48,14,48,15],[49,6,49,7],[49,14,49,15],[50,6,50,7],[50,14,50,15],[51,6,51,7],[51,14,51,15],[52,6,52,7],[52,14,52,15],[53,6,53,7],[53,14,53,15],[54,6,54,7],[54,14,54,15],[55,6,55,7],[55,14,55,15],[56,6,56,7],[56,14,56,15],[57,6,57,7],[57,14,57,15],[58,6,58,7],[58,14,58,15],[59,6,59,7],[59,14,59,15],[60,6,60,7],[60,14,60,15],[61,6,61,7],[61,14,61,15],[62,6,62,7],[62,14,62,15],[63,6,63,7],[63,14,63,15],[64,6,64,7],[64,14,64,15],[65,6,65,7],[65,14,65,15],[66,6,66,7],[66,14,66,15],[67,6,67,7],[67,14,67,15],[68,6,68,7],[68,14,68,15],[69,6,69,7],[69,14,69,15],[70,6,70,7],[70,14,70,15],[71,6,71,7],[71,14,71,15],[72,6,72,7],[72,14,72,15],[73,6,73,7],[73,14,73,15],[74,6,74,7],[74,14,74,15],[75,6,75,7],[75,14,75,15],[76,6,76,7],[76,14,76,15],[77,6,77,7],[77,14,77,15],[78,6,78,7],[78,14,78,15],[79,6,79,7],[79,14,79,15],[80,6,80,7],[80,14,80,15],[81,6,81,7],[81,14,81,15],[82,6,82,7],[82,14,82,15],[83,6,83,7],[83,14,83,15],[84,6,84,7],[84,14,84,15],[85,6,85,7],[85,14,85,15],[86,6,86,7],[86,14,86,15],[87,6,87,7],[87,14,87,15],[88,6,88,7],[88,14,88,15],[89,6,89,7],[89,14,89,15],[90,6,90,7],[90,14,90,15],[91,6,91,7],[91,14,91,15],[92,6,92,7],[92,14,92,15],[93,6,93,7],[93,14,93,15],[94,6,94,7],[94,14,94,15],[95,6,95,7],[95,14,95,15],[96,6,96,7],[96,14,96,15],[97,6,97,7],[97,14,97,15],[98,6,98,7],[98,14,98,15],[99,6,99,7],[99,14,99,15],[100,6,100,7],[100,14,100,15],[101,6,101,7],[101,14,101,15],[102,6,102,7],[102,14,102,15],[103,6,103,7],[103,14,103,15],[104,6,104,7],[104,14,104,15],[105,6,105,7],[105,14,105,15],[106,6,106,7],[106,14,106,15],[107,6,107,7],[107,14,107,15],[108,6,108,7],[108,14,108,15],[109,6,109,7],[109,14,109,15],[110,6,110,7],[110,14,110,15],[111,6,111,7],[111,14,111,15],[112,6,112,7],[112,14,112,15],[113,6,113,7],[113,14,113,15],[114,6,114,7],[114,14,114,15],[115,6,115,7],[115,14,115,15],[116,6,116,7],[116,14,116,15],[117,6,117,7],[117,14,117,15],[118,6,118,7],[118,14,118,15],[119,6,119,7],[119,14,119,15],[120,6,120,7],[120,14,120,15],[121,6,121,7],[121,14,121,15],[122,6,122,7],[122,14,122,15],[123,6,123,7],[123,14,123,15],[124,6,124,7],[124,14,124,15],[125,6,125,7],[125,14,125,15],[126,6,126,7],[126,14,126,15],[127,6,127,7],[127,14,127,15],[128,6,128,7],[128,14,128,15],[129,6,129,7],[129,14,129,15],[130,6,130,7],[130,14,130,15],[131,6,131,7],[131,14,131,15],[132,6,132,7],[132,14,132,15],[133,6,133,7],[133,14,133,15],[134,6,134,7],[134,14,134,15],[135,6,135,7],[135,14,135,15],[136,6,136,7],[136,14,136,15],[137,6,137,7],[137,14,137,15],[138,6,138,7],[138,14,138,15],[139,6,139,7],[139,14,139,15],[140,6,140,7],[140,14,140,15],[141,6,141,7],[141,14,141,15],[142,6,142,7],[142,14,142,15],[143,6,143,7],[143,14,143,15],[144,6,144,7],[144,14,144,15],[145,6,145,7],[145,14,145,15],[146,6,146,7],[146,14,146,15],[147,6,147,7],[147,14,147,15],[148,6,148,7],[148,14,148,15],[149,6,149,7],[149,14,149,15],[150,6,150,7],[150,14,150,15],[151,6,151,7],[151,14,151,15],[152,6,152,7],[152,14,152,15],[153,6,153,7],[153,14,153,15],[154,6,154,7],[154,14,154,15],[155,6,155,7],[155,14,155,15],[156,6,156,7],[156,14,156,15],[157,6,157,7],[157,14,157,15],[158,6,158,7],[158,14,158,15],[159,6,159,7],[159,14,159,15],[160,6,160,7],[160,14,160,15],[161,6,161,7],[161,14,161,15],[162,6,162,7],[162,14,162,15],[163,6,163,7],[163,14,163,15],[164,6,164,7],[164,14,164,15],[165,6,165,7],[165,14,165,15],[166,6,166,7],[166,14,166,15],[167,6,167,7],[167,14,167,15],[168,6,168,7],[168,14,168,15],[169,6,169,7],[169,14,169,15],[170,6,170,7],[170,14,170,15],[171,6,171,7],[171,14,171,15],[172,6,172,7],[172,14,172,15],[173,6,173,7],[173,14,173,15],[174,6,174,7],[174,14,174,15],[175,6,175,7],[175,14,175,15],[176,6,176,7],[176,14,176,15],[177,6,177,7],[177,14,177,15],[178,6,178,7],[178,14,178,15],[179,6,179,7],[179,14,179,15],[180,6,180,7],[180,14,180,15],[181,6,181,7],[181,14,181,15],[182,6,182,7],[182,14,182,15],[183,6,183,7],[183,14,183,15],[184,6,184,7],[184,14,184,15],[185,6,185,7],[185,14,185,15],[186,6,186,7],[186,14,186,15],[187,6,187,7],[187,14,187,15],[188,6,188,7],[188,14,188,15],[189,6,189,7],[189,14,189,15],[190,6,190,7],[190,14,190,15],[191,6,191,7],[191,14,191,15],[192,6,192,7],[192,14,192,15],[193,6,193,7],[193,14,193,15],[194,6,194,7],[194,14,194,15],[195,6,195,7],[195,14,195,15],[196,6,196,7],[196,14,196,15],[197,6,197,7],[197,14,197,15],[198,6,198,7],[198,14,198,15],[199,6,199,7],[199,14,199,15],[200,6,200,7],[200,14,200,15],[201,6,201,7],[201,14,201,15],[202,6,202,7],[202,14,202,15],[203,6,203,7],[203,14,203,15],[204,6,204,7],[204,14,204,15],[205,6,205,7],[205,14,205,15],[206,6,206,7],[206,14,206,15],[207,6,207,7],[207,14,207,15],[208,6,208,7],[208,14,208,15],[209,6,209,7],[209,14,209,15],[210,6,210,7],[210,14,210,15],[211,6,211,7],[211,14,211,15],[212,6,212,7],[212,14,212,15],[213,6,213,7],[213,14,213,15],[214,6,214,7],[214,14,214,15],[215,6,215,7],[215,14,215,15],[216,6,216,7],[216,14,216,15],[217,6,217,7],[217,14,217,15],[218,6,218,7],[218,14,218,15],[219,6,219,7],[219,14,219,15],[220,6,220,7],[220,14,220,15],[221,6,221,7],[221,14,221,15],[222,6,222,7],[222,14,222,15],[223,6,223,7],[223,14,223,15],[224,6,224,7],[224,14,224,15],[225,6,225,7],[225,14,225,15],[226,6,226,7],[226,14,226,15],[227,6,227,7],[227,14,227,15],[228,6,228,7],[228,14,228,15],[229,6,229,7],[229,14,229,15],[230,6,230,7],[230,14,230,15],[231,6,231,7],[231,14,231,15],[232,6,232,7],[232,14,232,15],[233,6,233,7],[233,14,233,15],[234,6,234,7],[234,14,234,15],[235,6,235,7],[235,14,235,15],[236,6,236,7],[236,14,236,15],[237,6,237,7],[237,14,237,15],[238,6,238,7],[238,14,238,15],[239,6,239,7],[239,14,239,15],[240,6,240,7],[240,14,240,15],[241,6,241,7],[241,14,241,15],[242,6,242,7],[242,14,242,15],[243,6,243,7],[243,14,243,15],[244,6,244,7],[244,14,244,15],[245,6,245,7],[245,14,245,15],[246,6,246,7],[246,14,246,15],[247,6,247,7],[247,14,247,15],[248,6,248,7],[248,14,248,15],[249,6,249,7],[249,14,249,15],[250,6,250,7],[250,14,250,15],[251,6,251,7],[251,14,251,15],[252,6,252,7],[252,14,252,15],[253,6,253,7],[253,14,253,15],[254,6,254,7],[254,14,254,15],[255,6,255,7],[255,14,255,15],[256,6,256,7],[256,14,256,15],[257,6,257,7],[257,14,257,15],[258,6,258,7],[258,14,258,15],[259,6,259,7],[259,14,259,15],[260,6,260,7],[260,14,260,15],[261,6,261,7],[261,14,261,15],[262,6,262,7],[262,14,262,15],[263,6,263,7],[263,14,263,15],[264,6,264,7],[264,14,264,15],[265,6,265,7],[265,14,265,15],[266,6,266,7],[266,14,266,15],[267,6,267,7],[267,14,267,15],[268,6,268,7],[268,14,268,15],[269,6,269,7],[269,14,269,15],[270,6,270,7],[270,14,270,15],[271,6,271,7],[271,14,271,15],[272,6,272,7],[272,14,272,15],[273,6,273,7],[273,14,273,15],[274,6,274,7],[274,14,274,15],[275,6,275,7],[275,14,275,15],[276,6,276,7],[276,14,276,15],[277,6,277,7],[277,14,277,15],[278,6,278,7],[278,14,278,15],[279,6,279,7],[279,14,279,15],[280,6,280,7],[280,14,280,15],[281,6,281,7],[281,14,281,15],[282,6,282,7],[282,14,282,15],[283,6,283,7],[283,14,283,15],[284,6,284,7],[284,14,284,15],[285,6,285,7],[285,14,285,15],[286,6,286,7],[286,14,286,15],[287,6,287,7],[287,14,287,15],[288,6,288,7],[288,14,288,15],[289,6,289,7],[289,14,289,15],[290,6,290,7],[290,14,290,15],[291,6,291,7],[291,14,291,15],[292,6,292,7],[292,14,292,15],[293,6,293,7],[293,14,293,15],[294,6,294,7],[294,14,294,15],[295,6,295,7],[295,14,295,15],[296,6,296,7],[296,14,296,15],[297,6,297,7],[297,14,297,15],[298,6,298,7],[298,14,298,15],[299,6,299,7],[299,14,299,15],[300,6,300,7],[300,14,300,15],[301,6,301,7],[301,14,301,15],[302,6,302,7],[302,14,302,15],[303,6,303,7],[303,14,303,15],[304,6,304,7],[304,14,304,15],[305,6,305,7],[305,14,305,15],[306,6,306,7],[306,14,306,15],[307,6,307,7],[307,14,307,15],[308,6,308,7],[308,14,308,15],[309,6,309,7],[309,14,309,15],[310,6,310,7],[310,14,310,15],[311,6,311,7],[311,14,311,15],[312,6,312,7],[312,14,312,15],[313,6,313,7],[313,14,313,15],[314,6,314,7],[314,14,314,15],[315,6,315,7],[315,14,315,15],[316,6,316,7],[316,14,316,15],[317,6,317,7],[317,14,317,15],[318,6,318,7],[318,14,318,15],[319,6,319,7],[319,14,319,15],[320,6,320,7],[320,14,320,15],[321,6,321,7],[321,14,321,15],[322,6,322,7],[322,14,322,15],[323,6,323,7],[323,14,323,15],[324,6,324,7],[324,14,324,15],[325,6,325,7],[325,14,325,15],[326,6,326,7],[326,14,326,15],[327,6,327,7],[327,14,327,15],[328,6,328,7],[328,14,328,15],[329,6,329,7],[329,14,329,15],[330,6,330,7],[330,14,330,15],[331,6,331,7],[331,14,331,15],[332,6,332,7],[332,14,332,15],[333,6,333,7],[333,14,333,15],[334,6,334,7],[334,14,334,15],[335,6,335,7],[335,14,335,15],[336,6,336,7],[336,14,336,15],[337,6,337,7],[337,14,337,15],[338,6,338,7],[338,14,338,15],[339,6,339,7],[339,14,339,15],[340,6,340,7],[340,14,340,15],[341,6,341,7],[341,14,341,15],[342,6,342,7],[342,14,342,15],[343,6,343,7],[343,14,343,15],[344,6,344,7],[344,14,344,15],[345,6,345,7],[345,14,345,15],[346,6,346,7],[346,14,346,15],[347,6,347,7],[347,14,347,15],[348,6,348,7],[348,14,348,15],[349,6,349,7],[349,14,349,15],[350,6,350,7],[350,14,350,15],[351,6,351,7],[351,14,351,15],[352,6,352,7],[352,14,352,15],[353,6,353,7],[353,14,353,15],[354,6,354,7],[354,14,354,15],[355,6,355,7],[355,14,355,15],[356,6,356,7],[356,14,356,15],[357,6,357,7],[357,14,357,15],[358,6,358,7],[358,14,358,15],[359,6,359,7],[359,14,359,15],[360,6,360,7],[360,14,360,15],[361,6,361,7],[361,14,361,15],[362,6,362,7],[362,14,362,15],[363,6,363,7],[363,14,363,15],[364,6,364,7],[364,14,364,15],[365,6,365,7],[365,14,365,15],[366,6,366,7],[366,14,366,15],[367,6,367,7],[367,14,367,15],[368,6,368,7],[368,14,368,15],[369,6,369,7],[369,14,369,15],[370,6,370,7],[370,14,370,15],[371,6,371,7],[371,14,371,15],[372,6,372,7],[372,14,372,15],[373,6,373,7],[373,14,373,15],[374,6,374,7],[374,14,374,15],[375,6,375,7],[375,14,375,15],[376,6,376,7],[376,14,376,15],[377,6,377,7],[377,14,377,15],[378,6,378,7],[378,14,378,15],[379,6,379,7],[379,14,379,15],[380,6,380,7],[380,14,380,15],[381,6,381,7],[381,14,381,15],[382,6,382,7],[382,14,382,15],[383,6,383,7],[383,14,383,15],[384,6,384,7],[384,14,384,15],[385,6,385,7],[385,14,385,15],[386,6,386,7],[386,14,386,15],[387,6,387,7],[387,14,387,15],[388,6,388,7],[388,14,388,15],[389,6,389,7],[389,14,389,15],[390,6,390,7],[390,14,390,15],[391,6,391,7],[391,14,391,15],[392,6,392,7],[392,14,392,15],[393,6,393,7],[393,14,393,15],[394,6,394,7],[394,14,394,15],[395,6,395,7],[395,14,395,15],[396,6,396,7],[396,14,396,15],[397,6,397,7],[397,14,397,15],[398,6,398,7],[398,14,398,15],[399,6,399,7],[399,14,399,15],[400,6,400,7],[400,14,400,15],[401,6,401,7],[401,14,401,15],[402,6,402,7],[402,14,402,15],[403,6,403,7],[403,14,403,15],[404,6,404,7],[404,14,404,15],[405,6,405,7],[405,14,405,15],[406,6,406,7],[406,14,406,15],[407,6,407,7],[407,14,407,15],[408,6,408,7],[408,14,408,15],[409,6,409,7],[409,14,409,15],[410,6,410,7],[410,14,410,15],[411,6,411,7],[411,14,411,15],[412,6,412,7],[412,14,412,15],[413,6,413,7],[413,14,413,15],[414,6,414,7],[414,14,414,15],[415,6,415,7],[415,14,415,15],[416,6,416,7],[416,14,416,15],[417,6,417,7],[417,14,417,15],[418,6,418,7],[418,14,418,15],[419,6,419,7],[419,14,419,15],[420,6,420,7],[420,14,420,15],[421,6,421,7],[421,14,421,15],[422,6,422,7],[422,14,422,15],[423,6,423,7],[423,14,423,15],[424,6,424,7],[424,14,424,15],[425,6,425,7],[425,14,425,15],[426,6,426,7],[426,14,426,15],[427,6,427,7],[427,14,427,15],[428,6,428,7],[428,14,428,15],[429,6,429,7],[429,14,429,15],[430,6,430,7],[430,14,430,15],[431,6,431,7],[431,14,431,15],[432,6,432,7],[432,14,432,15],[433,6,433,7],[433,14,433,15],[434,6,434,7],[434,14,434,15],[435,6,435,7],[435,14,435,15],[436,6,436,7],[436,14,436,15],[437,6,437,7],[437,14,437,15],[438,6,438,7],[438,14,438,15],[439,6,439,7],[439,14,439,15],[440,6,440,7],[440,14,440,15],[441,6,441,7],[441,14,441,15],[442,6,442,7],[442,14,442,15],[443,6,443,7],[443,14,443,15],[444,6,444,7],[444,14,444,15],[445,6,445,7],[445,14,445,15],[446,6,446,7],[446,14,446,15],[447,6,447,7],[447,14,447,15],[448,6,448,7],[448,14,448,15],[449,6,449,7],[449,14,449,15],[450,6,450,7],[450,14,450,15],[451,6,451,7],[451,14,451,15],[452,6,452,7],[452,14,452,15],[453,6,453,7],[453,14,453,15],[454,6,454,7],[454,14,454,15],[455,6,455,7],[455,14,455,15],[456,6,456,7],[456,14,456,15],[457,6,457,7],[457,14,457,15],[458,6,458,7],[458,14,458,15],[459,6,459,7],[459,14,459,15],[460,6,460,7],[460,14,460,15],[461,6,461,7],[461,14,461,15],[462,6,462,7],[462,14,462,15],[463,6,463,7],[463,14,463,15],[464,6,464,7],[464,14,464,15],[465,6,465,7],[465,14,465,15],[466,6,466,7],[466,14,466,15],[467,6,467,7],[467,14,467,15],[468,6,468,7],[468,14,468,15],[469,6,469,7],[469,14,469,15],[470,6,470,7],[470,14,470,15],[471,6,471,7],[471,14,471,15],[472,6,472,7],[472,14,472,15],[473,6,473,7],[473,14,473,15],[474,6,474,7],[474,14,474,15],[475,6,475,7],[475,14,475,15],[476,6,476,7],[476,14,476,15],[477,6,477,7],[477,14,477,15],[478,6,478,7],[478,14,478,15],[479,6,479,7],[479,14,479,15],[480,6,480,7],[480,14,480,15],[481,6,481,7],[481,14,481,15],[482,6,482,7],[482,14,482,15],[483,6,483,7],[483,14,483,15],[484,6,484,7],[484,14,484,15],[485,6,485,7],[485,14,485,15],[486,6,486,7],[486,14,486,15],[487,6,487,7],[487,14,487,15],[488,6,488,7],[488,14,488,15],[489,6,489,7],[489,14,489,15],[490,6,490,7],[490,14,490,15],[491,6,491,7]],"merged_total":3180,"flags":["merged_cut"]}
["牌局開始日期",null,"碼表",null,null,null,null,null,null,null,"保險表",null,null,null,null,null,null,null,"額",1000,"現時最高",{"$f":"MIN(V6:V9999)*-1","v":40},null,"額",5000,"現時最高",{"$f":"MIN(AA6:AA9999)*-1","v":0},null,"額",9999,"現時最高",{"$f":"MIN(AF6:AF9999)*-1","v":0},null,"額",9999,"現時最高",{"$f":"MIN(AK6:AK9999)*-1","v":0},null,"額",1000,"現時最高",{"$f":"MIN(AP6:AP9999)*-1","v":0},null,"額",9999,"現時最高",{"$f":"MIN(AU6:AU9999)*-1","v":0},null,"額",9999,"現時最高",{"$f":"MIN(AZ6:AZ9999)*-1","v":0},null,"額",9999,"現時最高",{"$f":"MIN(BE6:BE9999)*-1","v":0},null,"額",9999,"現時最高",{"$f":"MIN(BJ6:BJ9999)*-1","v":0},null,"額",9999,"現時最高",{"$f":"MIN(BO6:BO9999)*-1","v":0},null,"額",9999,"現時最高",{"$f":"MIN(BT6:BT9999)*-1","v":0},null,"額",9999,"現時最高",{"$f":"MIN(BY6:BY9999)*-1","v":0},null,"額",9999,"現時最高",{"$f":"MIN(CD6:CD9999)*-1","v":0},null,"額",9999,"現時最高",{"$f":"MIN(CI6:CI9999)*-1","v":0},null,"額",9999,"現時最高",{"$f":"MIN(CN6:CN9999)*-1","v":0}]
[null,null,"碼兜",{"$f":"H2+F2","v":-20},"總計",{"$f":"SUM(F4:F10002)","v":-20},"本",null,null,null,"碼兜",{"$f":"P2+N2","v":0},"總計",{"$f":"SUM(N4:N10002)","v":0},"本"]
["牌局開始時間",null,"時間","客人","回 / 出","金額","總計",null,"核對",null,"時間","客人","賠 / 進","金額","總計",null,"核對",null,{"$f":"IF(A26=\"\",\"\",A26)","v":"小明"},null,null,null,null,{"$f":"IF(A27=\"\",\"\",A27)","v":"小李"},null,null,null,null,{"$f":"IF(A28=\"\",\"\",A28)","v":"小帥"},null,null,null,null,{"$f":"IF(A29=\"\",\"\",A29)","v":"小日"},null,null,null,null,{"$f":"IF(A30=\"\",\"\",A30)","v":"小月"},null,null,null,null,{"$f":"IF(A31=\"\",\"\",A31)","v":"小金"},null,null,null,null,{"$f":"IF(A32=\"\",\"\",A32)","v":""},null,null,null,null,{"$f":"IF(A33=\"\",\"\",A33)","v":""},null,null,null,null,{"$f":"IF(A34=\"\",\"\",A34)","v":""},null,null,null,null,{"$f":"IF(A35=\"\",\"\",A35)","v":""},null,null,null,null,{"$f":"IF(A36=\"\",\"\",A36)","v":""},null,null,null,null,{"$f":"IF(A37=\"\",\"\",A37)","v":""},null,null,null,null,{"$f":"IF(A38=\"\",\"\",A38)","v":""},null,null,null,null,{"$f":"IF(A39=\"\",\"\",A39)","v":""},null,null,null,null,{"$f":"IF(A40=\"\",\"\",A40)","v":""},null,null,null,null,"公碼-BUY IN",null,null,null,null,"公碼-保險"]
[null,null,45451.736446759256,"小明",{"$f":"IF(F4>0,\"回\",IF(F4<0,\"出\",\"\"))","v":"出"},-20,{"$f":"IF(F4=\"\",\"\",H2+F4)","v":-20},null,null,null,null,null,{"$f":"IF(N4>0,\"進\",IF(N4<0,\"賠\",\"\"))","v":""},null,{"$f":"IF(N4=\"\",\"\",N4)","v":""},null,null,null,"總計",{"$f":"SUM(U6:U10005)","v":-20},null,null,null,"總計",{"$f":"SUM(Z6:Z90005)","v":0},null,null,null,"總計",{"$f":"SUM(AE6:AE1506)","v":0},null,null,null,"總計",{"$f":"SUM(AJ6:AJ10005)","v":0},null,null,null,"總計",{"$f":"SUM(AO6:AO10005)","v":0},null,null,null,"總計",{"$f":"SUM(AT6:AT10005)","v":0},null,null,null,"總計",{"$f":"SUM(AY6:AY10005)","v":0},null,null,null,"總計",{"$f":"SUM(BD6:BD1506)","v":0},null,null,null,"總計",{"$f":"SUM(BI6:BI10005)","v":0},null,null,null,"總計",{"$f":"SUM(BN6:BN10005)","v":0},null,null,null,"總計",{"$f":"SUM(BS6:BS10005)","v":0},null,null,null,"總計",{"$f":"SUM(BX6:BX10005)","v":0},null,null,null,"總計",{"$f":"SUM(CC6:CC1506)","v":0},null,null,null,"總計",{"$f":"SUM(CH6:CH10005)","v":0},null,null,null,"總計",{"$f":"SUM(CM6:CM10005)","v":0},null,null,null,"總計",{"$f":"SUM(CR6:CR10005)","v":0},null,null,null,"總計",{"$f":"SUM(CW6:CW10005)","v":0}]
["枱上籌碼",null,45452.008125,"小明","出",-20,{"$f":"IF(F5=\"\",\"\",G4+F5)","v":-40},null,null,null,null,null,{"$f":"IF(N5>0,\"進\",IF(N5<0,\"賠\",\"\"))","v":""},null,{"$f":"IF(N5=\"\",\"\",O4+N5)","v":""},null,null,null,"時間","回 / 出","金額","總計",null,"時間","回 / 出","金額","總計",null,"時間","回 / 出","金額","總計",null,"時間","回 / 出","金額","總計",null,"時間","回 / 出","金額","總計",null,"時間","回 / 出","金額","總計",null,"時間","回 / 出","金額","總計",null,"時間","回 / 出","金額","總計",null,"時間","回 / 出","金額","總計",null,"時間","回 / 出","金額","總計",null,"時間","回 / 出","金額","總計",null,"時間","回 / 出","金額","總計",null,"時間","回 / 出","金額","總計",null,"時間","回 / 出","金額","總計",null,"時間","回 / 出","金額","總計",null,"時間","回 / 出","金額","總計",null,"時間","回 / 出","金額","總計"]
[{"$f":"SUM(T4,Y4,AD4,AX4,AI4,AN4,AS4,BC4,BH4,BM4,BR4,BW4,CB4,CL4,CQ4,CV4)","v":-20},null,45452.008148148147,"小明","回",20,-20,null,null,null,null,null,{"$f":"IF(N6>0,\"進\",IF(N6<0,\"賠\",\"\"))","v":""},null,{"$f":"IF(N6=\"\",\"\",O5+N6)","v":""},null,null,null,45451.736446759256,{"$f":"IF(U6>0,\"回\",IF(U6<0,\"出\",\"\"))","v":"出"},-20,{"$f":"IF(U6=\"\",\"\",U6)","v":-20},null,null,{"$f":"IF(Z6>0,\"回\",IF(Z6<0,\"出\",\"\"))","v":""},null,{"$f":"IF(Z6=\"\",\"\",Z6)","v":""},null,null,{"$f":"IF(AE6>0,\"回\",IF(AE6<0,\"出\",\"\"))","v":""},null,{"$f":"IF(AE6=\"\",\"\",AE6)","v":""},null,null,{"$f":"IF(AJ6>0,\"回\",IF(AJ6<0,\"出\",\"\"))","v":""},null,{"$f":"IF(AJ6=\"\",\"\",AJ6)","v":""},null,null,{"$f":"IF(AO6>0,\"回\",IF(AO6<0,\"出\",\"\"))","v":""},null,{"$f":"IF(AO6=\"\",\"\",AO6)","v":""},null,null,{"$f":"IF(AT6>0,\"回\",IF(AT6<0,\"出\",\"\"))","v":""},null,{"$f":"IF(AT6=\"\",\"\",AT6)","v":""},null,null,{"$f":"IF(AY6>0,\"回\",IF(AY6<0,\"出\",\"\"))","v":""},null,{"$f":"IF(AY6=\"\",\"\",AY6)","v":""},null,null,{"$f":"IF(BD6>0,\"回\",IF(BD6<0,\"出\",\"\"))","v":""},null,{"$f":"IF(BD6=\"\",\"\",BD6)","v":""},null,null,{"$f":"IF(BI6>0,\"回\",IF(BI6<0,\"出\",\"\"))","v":""},null,{"$f":"IF(BI6=\"\",\"\",BI6)","v":""},null,null,{"$f":"IF(BN6>0,\"回\",IF(BN6<0,\"出\",\"\"))","v":""},null,{"$f":"IF(BN6=\"\",\"\",BN6)","v":""},null,null,{"$f":"IF(BS6>0,\"回\",IF(BS6<0,\"出\",\"\"))","v":""},null,{"$f":"IF(BS6=\"\",\"\",BS6)","v":""},null,null,{"$f":"IF(BX6>0,\"回\",IF(BX6<0,\"出\",\"\"))","v":""},null,{"$f":"IF(BX6=\"\",\"\",BX6)","v":""},null,null,{"$f":"IF(CC6>0,\"回\",IF(CC6<0,\"出\",\"\"))","v":""},null,{"$f":"IF(CC6=\"\",\"\",CC6)","v":""},null,null,{"$f":"IF(CH6>0,\"回\",IF(CH6<0,\"出\",\"\"))","v":""},null,{"$f":"IF(CH6=\"\",\"\",CH6)","v":""},null,null,{"$f":"IF(CM6>0,\"回\",IF(CM6<0,\"出\",\"\"))","v":""},null,{"$f":"IF(CM6=\"\",\"\",CM6)","v":""},null,null,null,null,{"$f":"IF(CR6=\"\",\"\",CR6)","v":""},null,null,{"$f":"IF(CW6>0,\"回\",IF(CW6<0,\"出\",\"\"))","v":""},null,{"$f":"IF(CW6=\"\",\"\",CW6)","v":""}]
["自動核對",null,null,null,"",null,null,null,null,null,null,null,{"$f":"IF(N7>0,\"進\",IF(N7<0,\"賠\",\"\"))","v":""},null,{"$f":"IF(N7=\"\",\"\",O6+N7)","v":""},null,null,null,45452.008125,"出",-20,{"$f":"IF(U7=\"\",\"\",V6+U7)","v":-40},null,null,"",null,{"$f":"IF(Z7=\"\",\"\",AA6+Z7)","v":""},null,null,"",null,{"$f":"IF(AE7=\"\",\"\",AF6+AE7)","v":""},null,null,"",null,{"$f":"IF(AJ7=\"\",\"\",AK6+AJ7)","v":""},null,null,"",null,{"$f":"IF(AO7=\"\",\"\",AP6+AO7)","v":""},null,null,"",null,{"$f":"IF(AT7=\"\",\"\",AU6+AT7)","v":""},null,null,"",null,{"$f":"IF(AY7=\"\",\"\",AZ6+AY7)","v":""},null,null,"",null,{"$f":"IF(BD7=\"\",\"\",BE6+BD7)","v":""},null,null,"",null,{"$f":"IF(BI7=\"\",\"\",BJ6+BI7)","v":""},null,null,"",null,{"$f":"IF(BN7=\"\",\"\",BO6+BN7)","v":""},null,null,"",null,{"$f":"IF(BS7=\"\",\"\",BT6+BS7)","v":""},null,null,"",null,{"$f":"IF(BX7=\"\",\"\",BY6+BX7)","v":""},null,null,"",null,{"$f":"IF(CC7=\"\",\"\",CD6)","v":""},null,null,"",null,{"$f":"IF(CH7=\"\",\"\",CI6+CH7)","v":""},null,null,"",null,{"$f":"IF(CM7=\"\",\"\",CN6+CM7)","v":""},null,null,{"$f":"IF(CR7>0,\"回\",IF(CR7<0,\"出\",\"\"))","v":""},null,{"$f":"IF(CR7=\"\",\"\",CS6+CR7)","v":""},null,null,"",null,{"$f":"IF(CW7=\"\",\"\",CX6+CW7)","v":""}]
[{"$f":"F2-A6","v":0},null,null,null,"",null,"",null,null,null,null,null,{"$f":"IF(N8>0,\"進\",IF(N8<0,\"賠\",\"\"))","v":""},null,"",null,null,null,45452.008148148147,"回",20,-20,null,null,"",null,{"$f":"IF(Z8=\"\",\"\",AA7+Z8)","v":""},null,null,"",null,"",null,null,"",null,"",null,null,"",null,"",null,null,"",null,"",null,null,"",null,"",null,null,"",null,"",null,null,"",null,"",null,null,"",null,"",null,null,"",null,"",null,null,"",null,"",null,null,"",null,{"$f":"IF(CC8=\"\",\"\",CD7+CC8)","v":""},null,null,"",null,"",null,null,"",null,"",null,null,"",null,"",null,null,"",null,""]
[null,null,null,null,"",null,"",null,null,null,null,null,"",null,"",null,null,null,null,"",null,"",null,null,"",null,"",null,null,"",null,"",null,null,"",null,"",null,null,"",null,"",null,null,"",null,"","2024-01-09T08:10:44",null,"",null,"",null,null,"",null,"",null,null,"",null,"",null,null,"",null,"",null,null,"",null,"",null,null,"",null,"",null,null,"",null,"",null,null,"",null,"",null,null,"",null,"",null,null,"",null,"",null,null,"",null,""]
["Buy-in",null,null,null,"",null,"",null,null,null,null,null,"",null,"",null,null,null,null,"",null,"",null,null,"",null,"",null,null,"",null,"",null,null,"",null,"",null,null,"",null,"",null,null,"",null,"",null,null,"",null,"",null,null,"",null,"",null,null,"",null,"",null,null,"",null,"",null,null,"",null,"",null,null,"",null,"",null,null,"",null,"",null,null,"",null,"",null,null,"",null,"",null,null,"",null,"",null,null,"",null,""]
["玩家選擇",null,null,null,"",null,"",null,null,null,null,null,"",null,"",null,null,null,null,"",null,"",null,null,"",null,"",null,null,"",null,"",null,null,"",null,"",null,null,"",null,"",null,null,"",null,"",null,null,"",null,"",null,null,"",null,"",null,null,"",null,"",null,null,"",null,"",null,null,"",null,"",null,null,"",null,"",null,null,"",null,"",null,null,"",null,"",null,null,"",null,"",null,null,"",null,"",null,null,"",null,""]
["小明",null,null,null,"",null,"",null,null,null,null,null,"",null,"",null,null,null,null,"",null,"",null,null,"",null,"",null,null,"",null,"",null,null,"",null,"",null,null,"",null,"",null,null,"",null,"",null,null,"",null,"",null,null,"",null,"",null,null,"",null,"",null,null,"",null,"",null,null,"",null,"",null,null,"",null,"",null,null,"",null,"",null,null,"",null,"",null,null,"",null,"",null,null,"",null,"",null,null,"",null,""]
["金額",null,null,null,{"$f":"IF(F13>0,\"回\",IF(F13<0,\"出\",\"\"))","v":""},null,{"$f":"IF(F13=\"\",\"\",G12+F13)","v":""},null,null,null,null,null,"",null,"",null,null,null,null,"",null,"",null,null,"",null,"",null,null,"",null,"",null,null,"",null,"",null,null,"",null,"",null,null,"",null,"",null,null,"",null,"",null,null,"",null,"",null,null,"",null,"",null,null,"",null,"",null,null,"",null,"",null,null,"",null,"",null,null,"",null,"",null,null,"",null,"",null,null,"",null,"",null,null,"",null,"",null,null,"",null,""]
[20,null,null,null,"",null,"",null,null,null,null,null,"",null,"",null,null,null,null,"",null,"",null,null,"",null,"",null,null,"",null,"",null,null,"",null,"",null,null,"",null,"",null,null,"",null,"",null,null,"",null,"",null,null,"",null,"",null,null,"",null,"",null,null,"",null,"",null,null,"",null,"",null,null,"",null,"",null,null,"",null,"",null,null,"",null,"",null,null,"",null,"",null,null,"",null,"",null,null,"",null,""]
[null,null,null,null,"",null,"",null,null,null,null,null,"",null,"",null,null,null,null,"",null,"",null,null,"",null,"",null,null,"",null,"",null,null,"",null,"",null,null,"",null,"",null,null,"",null,"",null,null,"",null,"",null,null,"",null,"",null,null,"",null,"",null,null,"",null,"",null,null,"",null,"",null,null,"",null,"",null,null,"",null,"",null,null,"",null,"",null,null,"",null,"",null,null,"",null,"",null,null,"",null,""]
[null,null,null,null,"",null,"",null,null,null,null,null,"",null,"",null,null,null,null,"",null,"",null,null,"",null,"",null,null,"",null,"",null,null,"",null,"",null,null,"",null,"",null,null,"",null,"",null,null,"",null,"",null,null,"",null,"",null,null,"",null,"",null,null,"",null,"",null,null,"",null,"",null,null,"",null,"",null,null,"",null,"",null,null,"",null,"",null,null,"",null,"",null,null,"",null,"",null,null,"",null,""]
["保險",null,null,null,"",null,"",null,null,null,null,null,{"$f":"IF(N17>0,\"進\",IF(N17<0,\"賠\",\"\"))","v":""},null,"",null,null,null,null,"",null,"",null,null,"",null,"",null,null,"",null,"",null,null,"",null,"",null,null,"",null,"",null,null,"",null,"",null,null,"",null,"",null,null,"",null,"",null,null,"",null,"",null,null,"",null,"",null,null,"",null,"",null,null,"",null,"",null,null,"",null,"",null,null,"",null,"",null,null,"",null,"",null,null,"",null,"",null,null,"",null,""]
["玩家選擇",null,null,null,"",null,"",null,null,null,null,null,"",null,"",null,null,null,null,"",null,"",null,null,"",null,"",null,null,"",null,"",null,null,"",null,"",null,null,"",null,"",null,null,"",null,"",null,null,"",null,"",null,null,"",null,"",null,null,"",null,"",null,null,"",null,"",null,null,"",null,"",null,null,"",null,"",null,null,"",null,"",null,null,"",null,"",null,null,"",null,"",null,null,"",null,"",null,null,"",null,""]
[null,null,null,null,"",null,"",null,null,null,null,null,"",null,"",null,null,null,null,"",null,"",null,null,"",null,"",null,null,"",null,"",null,null,"",null,"",null,null,"",null,"",null,null,"",null,"",null,null,"",null,"",null,null,"",null,"",null,null,"",null,"",null,null,"",null,"",null,null,"",null,"",null,null,"",null,"",null,null,"",null,"",null,null,"",null,"",null,null,"",null,"",null,null,"",null,"",null,null,"",null,""]
["金額",null,null,null,"",null,"",null,null,null,null,null,"",null,"",null,null,null,null,"",null,"",null,null,"",null,"",null,null,"",null,"",null,null,"",null,"",null,null,"",null,"",null,null,"",null,"",null,null,"",null,"",null,null,"",null,"",null,null,"",null,"",null,null,"",null,"",null,null,"",null,"",null,null,"",null,"",null,null,"",null,"",null,null,"",null,"",null,null,"",null,"",null,null,"",null,"",null,null,"",null,""]
[null,null,null,null,"",null,"",null,null,null,null,null,"",null,"",null,null,null,null,"",null,"",null,null,"",null,"",null,null,"",null,"",null,null,"",null,"",null,null,"",null,"",null,null,"",null,"",null,null,"",null,"",null,null,"",null,"",null,null,"",null,"",null,null,"",null,"",null,null,"",null,"",null,null,"",null,"",null,null,"",null,"",null,null,"",null,"",null,null,"",null,"",null,null,"",null,"",null,null,"",null,""]
[null,null,null,null,"",null,"",null,null,null,null,null,"",null,"",null,null,null,null,"",null,"",null,null,"",null,"",null,null,"",null,"",null,null,"",null,"",null,null,"",null,"",null,null,"",null,"",null,null,"",null,"",null,null,"",null,"",null,null,"",null,"",null,null,"",null,"",null,null,"",null,"",null,null,"",null,"",null,null,"",null,"",null,null,"",null,"",null,null,"",null,"",null,null,"",null,"",null,null,"",null,""]
[null,null,null,null,"",null,"",null,null,null,null,null,"",null,"",null,null,null,null,"",null,"",null,null,"",null,"",null,null,"",null,"",null,null,"",null,"",null,null,"",null,"",null,null,"",null,"",null,null,"",null,"",null,null,"",null,"",null,null,"",null,"",null,null,"",null,"",null,null,"",null,"",null,null,"",null,"",null,null,"",null,"",null,null,"",null,"",null,null,"",null,"",null,null,"",null,"",null,null,"",null,""]
[null,null,null,null,"",null,"",null,null,null,null,null,"",null,"",null,null,null,null,"",null,"",null,null,"",null,"",null,null,"",null,"",null,null,"",null,"",null,null,"",null,"",null,null,"",null,"",null,null,"",null,"",null,null,"",null,"",null,null,"",null,"",null,null,"",null,"",null,null,"",null,"",null,null,"",null,"",null,null,"",null,"",null,null,"",null,"",null,null,"",null,"",null,null,"",null,"",null,null,"",null,""]
["玩家",null,null,null,"",null,"",null,null,null,null,null,"",null,"",null,null,null,null,"",null,"",null,null,"",null,"",null,null,"",null,"",null,null,"",null,"",null,null,"",null,"",null,null,"",null,"",null,null,"",null,"",null,null,"",null,"",null,null,"",null,"",null,null,"",null,"",null,null,"",null,"",null,null,"",null,"",null,null,"",null,"",null,null,"",null,"",null,null,"",null,"",null,null,"",null,"",null,null,"",null,""]
["小明",null,null,null,"",null,"",null,null,null,null,null,"",null,"",null,null,null,null,"",null,"",null,null,"",null,"",null,null,"",null,"",null,null,"",null,"",null,null,"",null,"",null,null,"",null,"",null,null,"",null,"",null,null,"",null,"",null,null,"",null,"",null,null,"",null,"",null,null,"",null,"",null,null,"",null,"",null,null,"",null,"",null,null,"",null,"",null,null,"",null,"",null,null,"",null,"",null,null,"",null,""]
["小李",null,null,null,"",null,"",null,null,null,null,null,"",null,"",null,null,null,null,"",null,"",null,null,"",null,"",null,null,"",null,"",null,null,"",null,"",null,null,"",null,"",null,null,"",null,"",null,null,"",null,"",null,null,"",null,"",null,null,"",null,"",null,null,"",null,"",null,null,"",null,"",null,null,"",null,"",null,null,"",null,"",null,null,"",null,"",null,null,"",null,"",null,null,"",null,"",null,null,"",null,""]
["小帥",null,null,null,"",null,"",null,null,null,null,null,"",null,"",null,null,null,null,"",null,"",null,null,"",null,"",null,null,"",null,"",null,null,"",null,"",null,null,"",null,"",null,null,"",null,"",null,null,"",null,"",null,null,"",null,"",null,null,"",null,"",null,null,"",null,"",null,null,"",null,"",null,null,"",null,"",null,null,"",null,"",null,null,"",null,"",null,null,"",null,"",null,null,"",null,"",null,null,"",null,""]
["小日",null,null,null,"",null,"",null,null,null,null,null,"",null,"",null,null,null,null,"",null,"",null,null,"",null,"",null,null,"",null,"",null,null,"",null,"",null,null,"",null,"",null,null,"",null,"",null,null,"",null,"",null,null,"",null,"",null,null,"",null,"",null,null,"",null,"",null,null,"",null,"",null,null,"",null,"",null,null,"",null,"",null,null,"",null,"",null,null,"",null,"",null,null,"",null,"",null,null,"",null,""]
["小月",null,null,null,"",null,"",null,null,null,null,null,"",null,"",null,null,null,null,"",null,"",null,null,"",null,"",null,null,"",null,"",null,null,"",null,"",null,null,"",null,"",null,null,"",null,"",null,null,"",null,"",null,null,"",null,"",null,null,"",null,"",null,null,"",null,"",null,null,"",null,"",null,null,"",null,"",null,null,"",null,"",null,null,"",null,"",null,null,"",null,"",null,null,"",null,"",null,null,"",null,""]
["小金",null,null,null,"",null,"",null,null,null,null,null,"",null,"",null,null,null,null,"",null,"",null,null,"",null,"",null,null,"",null,"",null,null,"",null,"",null,null,"",null,"",null,null,"",null,"",null,null,"",null,"",null,null,"",null,"",null,null,"",null,"",null,null,"",null,"",null,null,"",null,"",null,null,"",null,"",null,null,"",null,"",null,null,"",null,"",null,null,"",null,"",null,null,"",null,"",null,null,"",null,""]
[null,null,null,null,"",null,"",null,null,null,null,null,"",null,"",null,null,null,null,"",null,null,null,null,"",null,null,null,null,"",null,null,null,null,"",null,null,null,null,"",null,null,null,null,"",null,"",null,null,"",null,null,null,null,"",null,null,null,null,"",null,null,null,null,"",null,null,null,null,"",null,null,null,null,"",null,null,null,null,"",null,null,null,null,"",null,null,null,null,"",null,null,null,null,"",null,null,null,null,""]
[null,null,null,null,"",null,"",null,null,null,null,null,"",null,"",null,null,null,null,"",null,null,null,null,"",null,null,null,null,"",null,null,null,null,"",null,null,null,null,"",null,null,null,null,"",null,"",null,null,"",null,null,null,null,"",null,null,null,null,"",null,null,null,null,"",null,null,null,null,"",null,null,null,null,"",null,null,null,null,"",null,null,null,null,"",null,null,null,null,"",null,null,null,null,"",null,null,null,null,""]
[null,null,null,null,"",null,"",null,null,null,null,null,"",null,"",null,null,null,null,"",null,null,null,null,"",null,null,null,null,"",null,null,null,null,"",null,null,null,null,"",null,null,null,null,"",null,"",null,null,"",null,null,null,null,"",null,null,null,null,"",null,null,null,null,"",null,null,null,null,"",null,null,null,null,"",null,null,null,null,"",null,null,null,null,"",null,null,null,null,"",null,null,null,null,"",null,null,null,null,""]
[null,null,null,null,"",null,"",null,null,null,null,null,"",null,"",null,null,null,null,"",null,null,null,null,"",null,null,null,null,"",null,null,null,null,"",null,null,null,null,"",null,null,null,null,"",null,"",null,null,"",null,null,null,null,"",null,null,null,null,"",null,null,null,null,"",null,null,null,null,"",null,null,null,null,"",null,null,null,null,"",null,null,null,null,"",null,null,null,null,"",null,null,null,null,"",null,null,null,null,""]
[null,null,null,null,"",null,"",null,null,null,null,null,"",null,"",null,null,null,null,"",null,null,null,null,"",null,null,null,null,"",null,null,null,null,"",null,null,null,null,"",null,null,null,null,"",null,"",null,null,"",null,null,null,null,"",null,null,null,null,"",null,null,null,null,"",null,null,null,null,"",null,null,null,null,"",null,null,null,null,"",null,null,null,null,"",null,null,null,null,"",null,null,null,null,"",null,null,null,null,""]
[null,null,null,null,"",null,"",null,null,null,null,null,"",null,"",null,null,null,null,null,null,null,null,null,null,null,null,null,null,null,null,null,null,null,null,null,null,null,null,null,null,null,null,null,null,null,""]
[null,null,null,null,"",null,"",null,null,null,null,null,"",null,"",null,null,null,null,null,null,null,null,null,null,null,null,null,null,null,null,null,null,null,null,null,null,null,null,null,null,null,null,null,null,null,""]
[null,null,null,null,"",null,"",null,null,null,null,null,"",null,"",null,null,null,null,null,null,null,null,null,null,null,null,null,null,null,null,null,null,null,null,null,null,null,null,null,null,null,null,null,null,null,""]
[null,null,null,null,"",null,"",null,null,null,null,null,"",null,"",null,null,null,null,null,null,null,null,null,null,null,null,null,null,null,null,null,null,null,null,null,null,null,null,null,null,null,null,null,null,null,""]
[null,null,null,null,"",null,"",null,null,null,null,null,"",null,"",null,null,null,null,null,null,null,null,null,null,null,null,null,null,null,null,null,null,null,null,null,null,null,null,null,null,null,null,null,null,null,""]
[null,null,null,null,"",null,"",null,null,null,null,null,"",null,"",null,null,null,null,null,null,null,null,null,null,null,null,null,null,null,null,null,null,null,null,null,null,null,null,null,null,null,null,null,null,null,""]
[null,null,null,null,"",null,"",null,null,null,null,null,"",null,"",null,null,null,null,null,null,null,null,null,null,null,null,null,null,null,null,null,null,null,null,null,null,null,null,null,null,null,null,null,null,null,""]
[null,null,null,null,"",null,"",null,null,null,null,null,"",null,"",null,null,null,null,null,null,null,null,null,null,null,null,null,null,null,null,null,null,null,null,null,null,null,null,null,null,null,null,null,null,null,""]
["Dealer",null,null,null,"",null,"",null,null,null,null,null,"",null,"",null,null,null,null,null,null,null,null,null,null,null,null,null,null,null,null,null,null,null,null,null,null,null,null,null,null,null,null,null,null,null,""]
[null,null,null,null,"",null,"",null,null,null,null,null,"",null,"",null,null,null,null,null,null,null,null,null,null,null,null,null,null,null,null,null,null,null,null,null,null,null,null,null,null,null,null,null,null,null,""]
[null,null,null,null,"",null,"",null,null,null,null,null,"",null,"",null,null,null,null,null,null,null,null,null,null,null,null,null,null,null,null,null,null,null,null,null,null,null,null,null,null,null,null,null,null,null,""]
[null,null,null,null,"",null,"",null,null,null,null,null,"",null,"",null,null,null,null,null,null,null,null,null,null,null,null,null,null,null,null,null,null,null,null,null,null,null,null,null,null,null,null,null,null,null,""]
[null,null,null,null,"",null,"",null,null,null,null,null,"",null,"",null,null,null,null,null,null,null,null,null,null,null,null,null,null,null,null,null,null,null,null,null,null,null,null,null,null,null,null,null,null,null,""]
[null,null,null,null,"",null,"",null,null,null,null,null,"",null,"",null,null,null,null,null,null,null,null,null,null,null,null,null,null,null,null,null,null,null,null,null,null,null,null,null,null,null,null,null,null,null,""]
[null,null,null,null,"",null,"",null,null,null,null,null,"",null,"",null,null,null,null,null,null,null,null,null,null,null,null,null,null,null,null,null,null,null,null,null,null,null,null,null,null,null,null,null,null,null,""]
[null,null,null,null,"",null,"",null,null,null,null,null,"",null,"",null,null,null,null,null,null,null,null,null,null,null,null,null,null,null,null,null,null,null,null,null,null,null,null,null,null,null,null,null,null,null,""]
[null,null,null,null,"",null,"",null,null,null,null,null,"",null,"",null,null,null,null,null,null,null,null,null,null,null,null,null,null,null,null,null,null,null,null,null,null,null,null,null,null,null,null,null,null,null,""]
[null,null,null,null,"",null,"",null,null,null,null,null,"",null,"",null,null,null,null,null,null,null,null,null,null,null,null,null,null,null,null,null,null,null,null,null,null,null,null,null,null,null,null,null,null,null,""]
[null,null,null,null,"",null,"",null,null,null,null,null,"",null,"",null,null,null,null,null,null,null,null,null,null,null,null,null,null,null,null,null,null,null,null,null,null,null,null,null,null,null,null,null,null,null,""]
[null,null,null,null,"",null,"",null,null,null,null,null,"",null,"",null,null,null,null,null,null,null,null,null,null,null,null,null,null,null,null,null,null,null,null,null,null,null,null,null,null,null,null,null,null,null,""]
["總buy in",null,null,null,"",null,"",null,null,null,null,null,"",null,"",null,null,null,null,null,null,null,null,null,null,null,null,null,null,null,null,null,null,null,null,null,null,null,null,null,null,null,null,null,null,null,""]
[{"$f":"SUM(V1+AA1+AF1+AK1+AP1+AU1+AZ1+BE1+BJ1+BO1+BT1++BY1+CD1+CI1+CN1)","v":40},null,null,null,"",null,"",null,null,null,null,null,"",null,"",null,null,null,null,null,null,null,null,null,null,null,null,null,null,null,null,null,null,null,null,null,null,null,null,null,null,null,null,null,null,null,""]
[null,null,null,null,"",null,"",null,null,null,null,null,"",null,"",null,null,null,null,null,null,null,null,null,null,null,null,null,null,null,null,null,null,null,null,null,null,null,null,null,null,null,null,null,null,null,""]
[null,null,null,null,"",null,"",null,null,null,null,null,"",null,"",null,null,null,null,null,null,null,null,null,null,null,null,null,null,null,null,null,null,null,null,null,null,null,null,null,null,null,null,null,null,null,""]
[null,null,null,null,"",null,"",null,null,null,null,null,"",null,"",null,null,null,null,null,null,null,null,null,null,null,null,null,null,null,null,null,null,null,null,null,null,null,null,null,null,null,null,null,null,null,""]
[null,null,null,null,"",null,"",null,null,null,null,null,"",null,"",null,null,null,null,null,null,null,null,null,null,null,null,null,null,null,null,null,null,null,null,null,null,null,null,null,null,null,null,null,null,null,""]
[null,null,null,null,"",null,"",null,null,null,null,null,"",null,"",null,null,null,null,null,null,null,null,null,null,null,null,null,null,null,null,null,null,null,null,null,null,null,null,null,null,null,null,null,null,null,""]
[null,null,null,null,"",null,"",null,null,null,null,null,"",null,"",null,null,null,null,null,null,null,null,null,null,null,null,null,null,null,null,null,null,null,null,null,null,null,null,null,null,null,null,null,null,null,""]
[null,null,null,null,"",null,"",null,null,null,null,null,"",null,"",null,null,null,null,null,null,null,null,null,null,null,null,null,null,null,null,null,null,null,null,null,null,null,null,null,null,null,null,null,null,null,""]
[null,null,null,null,"",null,"",null,null,null,null,null,"",null,"",null,null,null,null,null,null,null,null,null,null,null,null,null,null,null,null,null,null,null,null,null,null,null,null,null,null,null,null,null,null,null,""]
[null,null,null,null,"",null,"",null,null,null,null,null,"",null,"",null,null,null,null,null,null,null,null,null,null,null,null,null,null,null,null,null,null,null,null,null,null,null,null,null,null,null,null,null,null,null,""]
[null,null,null,null,"",null,"",null,null,null,null,null,"",null,"",null,null,null,null,null,null,null,null,null,null,null,null,null,null,null,null,null,null,null,null,null,null,null,null,null,null,null,null,null,null,null,""]
[null,null,null,null,"",null,"",null,null,null,null,null,"",null,"",null,null,null,null,null,null,null,null,null,null,null,null,null,null,null,null,null,null,null,null,null,null,null,null,null,null,null,null,null,null,null,""]
[null,null,null,null,"",null,"",null,null,null,null,null,"",null,{"$f":"IF(N70=\"\",\"\",O69+N70)","v":""},null,null,null,null,null,null,null,null,null,null,null,null,null,null,null,null,null,null,null,null,null,null,null,null,null,null,null,null,null,null,null,""]
[null,null,null,null,"",null,{"$f":"IF(F71=\"\",\"\",G70+F71)","v":""},null,null,null,null,null,"",null,"",null,null,null,null,null,null,null,null,null,null,null,null,null,null,null,null,null,null,null,null,null,null,null,null,null,null,null,null,null,null,null,{"$f":"IF(AT71=\"\",\"\",AU70+AT71)","v":""}]
[null,null,null,null,"",null,"",null,null,null,null,null,"",null,"",null,null,null,null,null,null,null,null,null,null,null,null,null,null,null,null,null,null,null,null,null,null,null,null,null,null,null,null,null,null,null,""]
[null,null,null,null,"",null,"",null,null,null,null,null,"",null,"",null,null,null,null,null,null,null,null,null,null,null,null,null,null,null,null,null,null,null,null,null,null,null,null,null,null,null,null,null,null,null,""]
[null,null,null,null,"",null,"",null,null,null,null,null,"",null,"",null,null,null,null,null,null,null,null,null,null,null,null,null,null,null,null,null,null,null,null,null,null,null,null,null,null,null,null,null,null,null,""]
[null,null,null,null,"",null,"",null,null,null,null,null,{"$f":"IF(N75>0,\"進\",IF(N75<0,\"賠\",\"\"))","v":""},null,"",null,null,null,null,null,null,null,null,null,null,null,null,null,null,null,null,null,null,null,null,null,null,null,null,null,null,null,null,null,null,null,""]
[null,null,null,null,"",null,"",null,null,null,null,null,"",null,"",null,null,null,null,null,null,null,null,null,null,null,null,null,null,null,null,null,null,null,null,null,null,null,null,null,null,null,null,null,null,null,""]
[null,null,null,null,{"$f":"IF(F77>0,\"回\",IF(F77<0,\"出\",\"\"))","v":""},null,"",null,null,null,null,null,"",null,"",null,null,null,null,null,null,null,null,null,null,null,null,null,null,null,null,null,null,null,null,null,null,null,null,null,null,null,null,null,null,null,""]
[null,null,null,null,"",null,"",null,null,null,null,null,"",null,"",null,null,null,null,null,null,null,null,null,null,null,null,null,null,null,null,null,null,null,null,null,null,null,null,null,null,null,null,null,null,null,""]
[null,null,null,null,"",null,"",null,null,null,null,null,"",null,"",null,null,null,null,null,null,null,null,null,null,null,null,null,null,null,null,null,null,null,null,null,null,null,null,null,null,null,null,null,null,null,""]
[null,null,null,null,"",null,"",null,null,null,null,null,"",null,"",null,null,null,null,null,null,null,null,null,null,null,null,null,null,null,null,null,null,null,null,null,null,null,null,null,null,null,null,null,null,null,""]
[null,null,null,null,"",null,"",null,null,null,null,null,"",null,"",null,null,null,null,null,null,null,null,null,null,null,null,null,null,null,null,null,null,null,null,null,null,null,null,null,null,null,null,null,null,null,""]
[null,null,null,null,"",null,"",null,null,null,null,null,"",null,"",null,null,null,null,null,null,null,null,null,null,null,null,null,null,null,null,null,null,null,null,null,null,null,null,null,null,null,null,null,null,null,""]
[null,null,null,null,"",null,"",null,null,null,null,null,"",null,"",null,null,null,null,null,null,null,null,null,null,null,null,null,null,null,null,null,null,null,null,null,null,null,null,null,null,null,null,null,null,null,""]
[null,null,null,null,"",null,"",null,null,null,null,null,"",null,"",null,null,null,null,null,null,null,null,null,null,null,null,null,null,null,null,null,null,null,null,null,null,null,null,null,null,null,null,null,null,null,""]
[null,null,null,null,"",null,"",null,null,null,null,null,"",null,"",null,null,null,null,null,null,null,null,null,null,null,null,null,null,null,null,null,null,null,null,null,null,null,null,null,null,null,null,null,null,null,""]
[null,null,null,null,"",null,"",null,null,null,null,null,"",null,"",null,null,null,null,null,null,null,null,null,null,null,null,null,null,null,null,null,null,null,null,null,null,null,null,null,null,null,null,null,null,null,""]
[null,null,null,null,"",null,"",null,null,null,null,null,"",null,"",null,null,null,null,null,null,null,null,null,null,null,null,null,null,null,null,null,null,null,null,null,null,null,null,null,null,null,null,null,null,null,""]
[null,null,null,null,"",null,"",null,null,null,null,null,"",null,"",null,null,null,null,null,null,null,null,null,null,null,null,null,null,null,null,null,null,null,null,null,null,null,null,null,null,null,null,null,null,null,""]
[null,null,null,null,"",null,"",null,null,null,null,null,"",null,"",null,null,null,null,null,null,null,null,null,null,null,null,null,null,null,null,null,null,null,null,null,null,null,null,null,null,null,null,null,null,null,""]
[null,null,null,null,"",null,"",null,null,null,null,null,"",null,"",null,null,null,null,null,null,null,null,null,null,null,null,null,null,null,null,null,null,null,null,null,null,null,null,null,null,null,null,null,null,null,""]
[null,null,null,null,"",null,"",null,null,null,null,null,"",null,"",null,null,null,null,null,null,null,null,null,null,null,null,null,null,null,null,null,null,null,null,null,null,null,null,null,null,null,null,null,null,null,""]
[null,null,null,null,"",null,"",null,null,null,null,null,"",null,"",null,null,null,null,null,null,null,null,null,null,null,null,null,null,null,null,null,null,null,null,null,null,null,null,null,null,null,null,null,null,null,""]
[null,null,null,null,"",null,"",null,null,null,null,null,"",null,"",null,null,null,null,null,null,null,null,null,null,null,null,null,null,null,null,null,null,null,null,null,null,null,null,null,null,null,null,null,null,null,""]
[null,null,null,null,"",null,"",null,null,null,null,null,"",null,"",null,null,null,null,null,null,null,null,null,null,null,null,null,null,null,null,null,null,null,null,null,null,null,null,null,null,null,null,null,null,null,""]
[null,null,null,null,"",null,"",null,null,null,null,null,"",null,"",null,null,null,null,null,null,null,null,null,null,null,null,null,null,null,null,null,null,null,null,null,null,null,null,null,null,null,null,null,null,null,""]
[null,null,null,null,"",null,"",null,null,null,null,null,"",null,"",null,null,null,null,null,null,null,null,null,null,null,null,null,null,null,null,null,null,null,null,null,null,null,null,null,null,null,null,null,null,null,""]
[null,null,null,null,"",null,"",null,null,null,null,null,"",null,"",null,null,null,null,null,null,null,null,null,null,null,null,null,null,null,null,null,null,null,null,null,null,null,null,null,null,null,null,null,null,null,""]
[null,null,null,null,"",null,"",null,null,null,null,null,"",null,"",null,null,null,null,null,null,null,null,null,null,null,null,null,null,null,null,null,null,null,null,null,null,null,null,null,null,null,null,null,null,null,""]
[null,null,null,null,"",null,"",null,null,null,null,null,"",null,"",null,null,null,null,null,null,null,null,null,null,null,null,null,null,null,null,null,null,null,null,null,null,null,null,null,null,null,null,null,null,null,""]
[null,null,null,null,"",null,"",null,null,null,null,null,"",null,"",null,null,null,null,null,null,null,null,null,null,null,null,null,null,null,null,null,null,null,null,null,null,null,null,null,null,null,null,null,null,null,""]
[null,null,null,null,"",null,"",null,null,null,null,null,"",null,"",null,null,null,null,null,null,null,null,null,null,null,null,null,null,null,null,null,null,null,null,null,null,null,null,null,null,null,null,null,null,null,""]
[null,null,null,null,"",null,"",null,null,null,null,null,"",null,"",null,null,null,null,null,null,null,null,null,null,null,null,null,null,null,null,null,null,null,null,null,null,null,null,null,null,null,null,null,null,null,""]
[null,null,null,null,"",null,"",null,null,null,null,null,"",null,"",null,null,null,null,null,null,null,null,null,null,null,null,null,null,null,null,null,null,null,null,null,null,null,null,null,null,null,null,null,null,null,""]
[null,null,null,null,"",null,"",null,null,null,null,null,"",null,"",null,null,null,null,null,null,null,null,null,null,null,null,null,null,null,null,null,null,null,null,null,null,null,null,null,null,null,null,null,null,null,""]
[null,null,null,null,"",null,"",null,null,null,null,null,"",null,"",null,null,null,null,null,null,null,null,null,null,null,null,null,null,null,null,null,null,null,null,null,null,null,null,null,null,null,null,null,null,null,""]
[null,null,null,null,"",null,"",null,null,null,null,null,"",null,"",null,null,null,null,null,null,null,null,null,null,null,null,null,null,null,null,null,null,null,null,null,null,null,null,null,null,null,null,null,null,null,""]
[null,null,null,null,"",null,"",null,null,null,null,null,"",null,"",null,null,null,null,null,null,null,null,null,null,null,null,null,null,null,null,null,null,null,null,null,null,null,null,null,null,null,null,null,null,null,""]
[null,null,null,null,"",null,"",null,null,null,null,null,"",null,"",null,null,null,null,null,null,null,null,null,null,null,null,null,null,null,null,null,null,null,null,null,null,null,null,null,null,null,null,null,null,null,""]
[null,null,null,null,"",null,"",null,null,null,null,null,"",null,"",null,null,null,null,null,null,null,null,null,null,null,null,null,null,null,null,null,null,null,null,null,null,null,null,null,null,null,null,null,null,null,""]
[null,null,null,null,"",null,"",null,null,null,null,null,"",null,"",null,null,null,null,null,null,null,null,null,null,null,null,null,null,null,null,null,null,null,null,null,null,null,null,null,null,null,null,null,null,null,""]
[null,null,null,null,"",null,"",null,null,null,null,null,"",null,"",null,null,null,null,null,null,null,null,null,null,null,null,null,null,null,null,null,null,null,null,null,null,null,null,null,null,null,null,null,null,null,""]
[null,null,null,null,"",null,"",null,null,null,null,null,"",null,"",null,null,null,null,null,null,null,null,null,null,null,null,null,null,null,null,null,null,null,null,null,null,null,null,null,null,null,null,null,null,null,""]
[null,null,null,null,"",null,"",null,null,null,null,null,"",null,"",null,null,null,null,null,null,null,null,null,null,null,null,null,null,null,null,null,null,null,null,null,null,null,null,null,null,null,null,null,null,null,""]
[null,null,null,null,"",null,"",null,null,null,null,null,"",null,"",null,null,null,null,null,null,null,null,null,null,null,null,null,null,null,null,null,null,null,null,null,null,null,null,null,null,null,null,null,null,null,""]
[null,null,null,null,"",null,"",null,null,null,null,null,"",null,"",null,null,null,null,null,null,null,null,null,null,null,null,null,null,null,null,null,null,null,null,null,null,null,null,null,null,null,null,null,null,null,""]
[null,null,null,null,"",null,"",null,null,null,null,null,"",null,"",null,null,null,null,null,null,null,null,null,null,null,null,null,null,null,null,null,null,null,null,null,null,null,null,null,null,null,null,null,null,null,""]
[null,null,null,null,"",null,"",null,null,null,null,null,"",null,"",null,null,null,null,null,null,null,null,null,null,null,null,null,null,null,null,null,null,null,null,null,null,null,null,null,null,null,null,null,null,null,""]
[null,null,null,null,"",null,"",null,null,null,null,null,"",null,"",null,null,null,null,null,null,null,null,null,null,null,null,null,null,null,null,null,null,null,null,null,null,null,null,null,null,null,null,null,null,null,""]
[null,null,null,null,"",null,"",null,null,null,null,null,"",null,"",null,null,null,null,null,null,null,null,null,null,null,null,null,null,null,null,null,null,null,null,null,null,null,null,null,null,null,null,null,null,null,""]
[null,null,null,null,"",null,"",null,null,null,null,null,"",null,"",null,null,null,null,null,null,null,null,null,null,null,null,null,null,null,null,null,null,null,null,null,null,null,null,null,null,null,null,null,null,null,""]
[null,null,null,null,"",null,"",null,null,null,null,null,"",null,"",null,null,null,null,null,null,null,null,null,null,null,null,null,null,null,null,null,null,null,null,null,null,null,null,null,null,null,null,null,null,null,""]
[null,null,null,null,"",null,"",null,null,null,null,null,"",null,"",null,null,null,null,null,null,null,null,null,null,null,null,null,null,null,null,null,null,null,null,null,null,null,null,null,null,null,null,null,null,null,""]
[null,null,null,null,"",null,"",null,null,null,null,null,"",null,"",null,null,null,null,null,null,null,null,null,null,null,null,null,null,null,null,null,null,null,null,null,null,null,null,null,null,null,null,null,null,null,""]
[null,null,null,null,"",null,"",null,null,null,null,null,"",null,"",null,null,null,null,null,null,null,null,null,null,null,null,null,null,null,null,null,null,null,null,null,null,null,null,null,null,null,null,null,null,null,""]
[null,null,null,null,"",null,"",null,null,null,null,null,"",null,"",null,null,null,null,null,null,null,null,null,null,null,null,null,null,null,null,null,null,null,null,null,null,null,null,null,null,null,null,null,null,null,""]
[null,null,null,null,"",null,"",null,null,null,null,null,"",null,"",null,null,null,null,null,null,null,null,null,null,null,null,null,null,null,null,null,null,null,null,null,null,null,null,null,null,null,null,null,null,null,""]
[null,null,null,null,"",null,"",null,null,null,null,null,"",null,"",null,null,null,null,null,null,null,null,null,null,null,null,null,null,null,null,null,null,null,null,null,null,null,null,null,null,null,null,null,null,null,""]
[null,null,null,null,"",null,"",null,null,null,null,null,"",null,"",null,null,null,null,null,null,null,null,null,null,null,null,null,null,null,null,null,null,null,null,null,null,null,null,null,null,null,null,null,null,null,""]
[null,null,null,null,"",null,"",null,null,null,null,null,"",null,"",null,null,null,null,null,null,null,null,null,null,null,null,null,null,null,null,null,null,null,null,null,null,null,null,null,null,null,null,null,null,null,""]
[null,null,null,null,"",null,"",null,null,null,null,null,"",null,"",null,null,null,null,null,null,null,null,null,null,null,null,null,null,null,null,null,null,null,null,null,null,null,null,null,null,null,null,null,null,null,""]
[null,null,null,null,"",null,"",null,null,null,null,null,"",null,"",null,null,null,null,null,null,null,null,null,null,null,null,null,null,null,null,null,null,null,null,null,null,null,null,null,null,null,null,null,null,null,""]
[null,null,null,null,"",null,"",null,null,null,null,null,"",null,{"$f":"IF(N132=\"\",\"\",O131+N132)","v":""},null,null,null,null,null,null,null,null,null,null,null,null,null,null,null,null,null,null,null,null,null,null,null,null,null,null,null,null,null,null,null,""]
[null,null,null,null,"",null,"",null,null,null,null,null,"",null,"",null,null,null,null,null,null,null,null,null,null,null,null,null,null,null,null,null,null,null,null,null,null,null,null,null,null,null,null,null,null,null,""]
[null,null,null,null,"",null,"",null,null,null,null,null,"",null,{"$f":"IF(N134=\"\",\"\",O133+N134)","v":""},null,null,null,null,null,null,null,null,null,null,null,null,null,null,null,null,null,null,null,null,null,null,null,null,null,null,null,null,null,null,null,""]
[null,null,null,null,"",null,{"$f":"IF(F135=\"\",\"\",G134+F135)","v":""},null,null,null,null,null,"",null,"",null,null,null,null,null,null,null,null,null,null,null,null,null,null,null,null,null,null,null,null,null,null,null,null,null,null,null,null,null,null,null,{"$f":"IF(AT135=\"\",\"\",AU134+AT135)","v":""}]
[null,null,null,null,"",null,"",null,null,null,null,null,"",null,"",null,null,null,null,null,null,null,null,null,null,null,null,null,null,null,null,null,null,null,null,null,null,null,null,null,null,null,null,null,null,null,""]
[null,null,null,null,"",null,"",null,null,null,null,null,"",null,"",null,null,null,null,null,null,null,null,null,null,null,null,null,null,null,null,null,null,null,null,null,null,null,null,null,null,null,null,null,null,null,""]
[null,null,null,null,"",null,"",null,null,null,null,null,"",null,"",null,null,null,null,null,null,null,null,null,null,null,null,null,null,null,null,null,null,null,null,null,null,null,null,null,null,null,null,null,null,null,""]
[null,null,null,null,"",null,"",null,null,null,null,null,{"$f":"IF(N139>0,\"進\",IF(N139<0,\"賠\",\"\"))","v":""},null,"",null,null,null,null,null,null,null,null,null,null,null,null,null,null,null,null,null,null,null,null,null,null,null,null,null,null,null,null,null,null,null,""]
[null,null,null,null,"",null,"",null,null,null,null,null,"",null,"",null,null,null,null,null,null,null,null,null,null,null,null,null,null,null,null,null,null,null,null,null,null,null,null,null,null,null,null,null,null,null,""]
[null,null,null,null,{"$f":"IF(F141>0,\"回\",IF(F141<0,\"出\",\"\"))","v":""},null,"",null,null,null,null,null,"",null,"",null,null,null,null,null,null,null,null,null,null,null,null,null,null,null,null,null,null,null,null,null,null,null,null,null,null,null,null,null,null,null,""]
[null,null,null,null,"",null,"",null,null,null,null,null,"",null,"",null,null,null,null,null,null,null,null,null,null,null,null,null,null,null,null,null,null,null,null,null,null,null,null,null,null,null,null,null,null,null,""]
[null,null,null,null,"",null,"",null,null,null,null,null,"",null,"",null,null,null,null,null,null,null,null,null,null,null,null,null,null,null,null,null,null,null,null,null,null,null,null,null,null,null,null,null,null,null,""]
[null,null,null,null,"",null,"",null,null,null,null,null,"",null,"",null,null,null,null,null,null,null,null,null,null,null,null,null,null,null,null,null,null,null,null,null,null,null,null,null,null,null,null,null,null,null,""]
[null,null,null,null,"",null,"",null,null,null,null,null,"",null,"",null,null,null,null,null,null,null,null,null,null,null,null,null,null,null,null,null,null,null,null,null,null,null,null,null,null,null,null,null,null,null,""]
[null,null,null,null,"",null,"",null,null,null,null,null,"",null,"",null,null,null,null,null,null,null,null,null,null,null,null,null,null,null,null,null,null,null,null,null,null,null,null,null,null,null,null,null,null,null,""]
[null,null,null,null,"",null,"",null,null,null,null,null,"",null,"",null,null,null,null,null,null,null,null,null,null,null,null,null,null,null,null,null,null,null,null,null,null,null,null,null,null,null,null,null,null,null,""]
[null,null,null,null,"",null,"",null,null,null,null,null,"",null,"",null,null,null,null,null,null,null,null,null,null,null,null,null,null,null,null,null,null,null,null,null,null,null,null,null,null,null,null,null,null,null,""]
[null,null,null,null,"",null,"",null,null,null,null,null,"",null,"",null,null,null,null,null,null,null,null,null,null,null,null,null,null,null,null,null,null,null,null,null,null,null,null,null,null,null,null,null,null,null,""]
[null,null,null,null,"",null,"",null,null,null,null,null,"",null,"",null,null,null,null,null,null,null,null,null,null,null,null,null,null,null,null,null,null,null,null,null,null,null,null,null,null,null,null,null,null,null,""]
[null,null,null,null,"",null,"",null,null,null,null,null,"",null,"",null,null,null,null,null,null,null,null,null,null,null,null,null,null,null,null,null,null,null,null,null,null,null,null,null,null,null,null,null,null,null,""]
[null,null,null,null,"",null,"",null,null,null,null,null,"",null,"",null,null,null,null,null,null,null,null,null,null,null,null,null,null,null,null,null,null,null,null,null,null,null,null,null,null,null,null,null,null,null,""]
[null,null,null,null,"",null,"",null,null,null,null,null,"",null,"",null,null,null,null,null,null,null,null,null,null,null,null,null,null,null,null,null,null,null,null,null,null,null,null,null,null,null,null,null,null,null,""]
[null,null,null,null,"",null,"",null,null,null,null,null,"",null,"",null,null,null,null,null,null,null,null,null,null,null,null,null,null,null,null,null,null,null,null,null,null,null,null,null,null,null,null,null,null,null,""]
[null,null,null,null,"",null,"",null,null,null,null,null,"",null,"",null,null,null,null,null,null,null,null,null,null,null,null,null,null,null,null,null,null,null,null,null,null,null,null,null,null,null,null,null,null,null,""]
[null,null,null,null,"",null,"",null,null,null,null,null,"",null,"",null,null,null,null,null,null,null,null,null,null,null,null,null,null,null,null,null,null,null,null,null,null,null,null,null,null,null,null,null,null,null,""]
[null,null,null,null,"",null,"",null,null,null,null,null,"",null,"",null,null,null,null,null,null,null,null,null,null,null,null,null,null,null,null,null,null,null,null,null,null,null,null,null,null,null,null,null,null,null,""]
[null,null,null,null,"",null,"",null,null,null,null,null,"",null,"",null,null,null,null,null,null,null,null,null,null,null,null,null,null,null,null,null,null,null,null,null,null,null,null,null,null,null,null,null,null,null,""]
[null,null,null,null,"",null,"",null,null,null,null,null,"",null,"",null,null,null,null,null,null,null,null,null,null,null,null,null,null,null,null,null,null,null,null,null,null,null,null,null,null,null,null,null,null,null,""]
[null,null,null,null,"",null,"",null,null,null,null,null,"",null,"",null,null,null,null,null,null,null,null,null,null,null,null,null,null,null,null,null,null,null,null,null,null,null,null,null,null,null,null,null,null,null,""]
[null,null,null,null,"",null,"",null,null,null,null,null,"",null,"",null,null,null,null,null,null,null,null,null,null,null,null,null,null,null,null,null,null,null,null,null,null,null,null,null,null,null,null,null,null,null,""]
[null,null,null,null,"",null,"",null,null,null,null,null,"",null,"",null,null,null,null,null,null,null,null,null,null,null,null,null,null,null,null,null,null,null,null,null,null,null,null,null,null,null,null,null,null,null,""]
[null,null,null,null,"",null,"",null,null,null,null,null,"",null,"",null,null,null,null,null,null,null,null,null,null,null,null,null,null,null,null,null,null,null,null,null,null,null,null,null,null,null,null,null,null,null,""]
[null,null,null,null,"",null,"",null,null,null,null,null,"",null,"",null,null,null,null,null,null,null,null,null,null,null,null,null,null,null,null,null,null,null,null,null,null,null,null,null,null,null,null,null,null,null,""]
[null,null,null,null,"",null,"",null,null,null,null,null,"",null,"",null,null,null,null,null,null,null,null,null,null,null,null,null,null,null,null,null,null,null,null,null,null,null,null,null,null,null,null,null,null,null,""]
[null,null,null,null,"",null,"",null,null,null,null,null,"",null,"",null,null,null,null,null,null,null,null,null,null,null,null,null,null,null,null,null,null,null,null,null,null,null,null,null,null,null,null,null,null,null,""]
[null,null,null,null,"",null,"",null,null,null,null,null,"",null,"",null,null,null,null,null,null,null,null,null,null,null,null,null,null,null,null,null,null,null,null,null,null,null,null,null,null,null,null,null,null,null,""]
[null,null,null,null,"",null,"",null,null,null,null,null,"",null,"",null,null,null,null,null,null,null,null,null,null,null,null,null,null,null,null,null,null,null,null,null,null,null,null,null,null,null,null,null,null,null,""]
[null,null,null,null,"",null,"",null,null,null,null,null,"",null,"",null,null,null,null,null,null,null,null,null,null,null,null,null,null,null,null,null,null,null,null,null,null,null,null,null,null,null,null,null,null,null,""]
[null,null,null,null,"",null,"",null,null,null,null,null,"",null,"",null,null,null,null,null,null,null,null,null,null,null,null,null,null,null,null,null,null,null,null,null,null,null,null,null,null,null,null,null,null,null,""]
[null,null,null,null,"",null,"",null,null,null,null,null,"",null,"",null,null,null,null,null,null,null,null,null,null,null,null,null,null,null,null,null,null,null,null,null,null,null,null,null,null,null,null,null,null,null,""]
[null,null,null,null,"",null,"",null,null,null,null,null,"",null,"",null,null,null,null,null,null,null,null,null,null,null,null,null,null,null,null,null,null,null,null,null,null,null,null,null,null,null,null,null,null,null,""]
[null,null,null,null,"",null,"",null,null,null,null,null,"",null,"",null,null,null,null,null,null,null,null,null,null,null,null,null,null,null,null,null,null,null,null,null,null,null,null,null,null,null,null,null,null,null,""]
[null,null,null,null,"",null,"",null,null,null,null,null,"",null,"",null,null,null,null,null,null,null,null,null,null,null,null,null,null,null,null,null,null,null,null,null,null,null,null,null,null,null,null,null,null,null,""]
[null,null,null,null,"",null,"",null,null,null,null,null,"",null,"",null,null,null,null,null,null,null,null,null,null,null,null,null,null,null,null,null,null,null,null,null,null,null,null,null,null,null,null,null,null,null,""]
[null,null,null,null,"",null,"",null,null,null,null,null,"",null,"",null,null,null,null,null,null,null,null,null,null,null,null,null,null,null,null,null,null,null,null,null,null,null,null,null,null,null,null,null,null,null,""]
[null,null,null,null,"",null,"",null,null,null,null,null,"",null,"",null,null,null,null,null,null,null,null,null,null,null,null,null,null,null,null,null,null,null,null,null,null,null,null,null,null,null,null,null,null,null,""]
[null,null,null,null,"",null,"",null,null,null,null,null,"",null,"",null,null,null,null,null,null,null,null,null,null,null,null,null,null,null,null,null,null,null,null,null,null,null,null,null,null,null,null,null,null,null,""]
[null,null,null,null,"",null,"",null,null,null,null,null,"",null,"",null,null,null,null,null,null,null,null,null,null,null,null,null,null,null,null,null,null,null,null,null,null,null,null,null,null,null,null,null,null,null,""]
[null,null,null,null,"",null,"",null,null,null,null,null,"",null,"",null,null,null,null,null,null,null,null,null,null,null,null,null,null,null,null,null,null,null,null,null,null,null,null,null,null,null,null,null,null,null,""]
[null,null,null,null,"",null,"",null,null,null,null,null,"",null,"",null,null,null,null,null,null,null,null,null,null,null,null,null,null,null,null,null,null,null,null,null,null,null,null,null,null,null,null,null,null,null,""]
[null,null,null,null,"",null,"",null,null,null,null,null,"",null,"",null,null,null,null,null,null,null,null,null,null,null,null,null,null,null,null,null,null,null,null,null,null,null,null,null,null,null,null,null,null,null,""]
[null,null,null,null,"",null,"",null,null,null,null,null,"",null,"",null,null,null,null,null,null,null,null,null,null,null,null,null,null,null,null,null,null,null,null,null,null,null,null,null,null,null,null,null,null,null,""]
[null,null,null,null,"",null,"",null,null,null,null,null,"",null,"",null,null,null,null,null,null,null,null,null,null,null,null,null,null,null,null,null,null,null,null,null,null,null,null,null,null,null,null,null,null,null,""]
[null,null,null,null,"",null,"",null,null,null,null,null,"",null,"",null,null,null,null,null,null,null,null,null,null,null,null,null,null,null,null,null,null,null,null,null,null,null,null,null,null,null,null,null,null,null,""]
[null,null,null,null,"",null,"",null,null,null,null,null,"",null,"",null,null,null,null,null,null,null,null,null,null,null,null,null,null,null,null,null,null,null,null,null,null,null,null,null,null,null,null,null,null,null,""]
[null,null,null,null,"",null,"",null,null,null,null,null,"",null,"",null,null,null,null,null,null,null,null,null,null,null,null,null,null,null,null,null,null,null,null,null,null,null,null,null,null,null,null,null,null,null,""]
[null,null,null,null,"",null,"",null,null,null,null,null,"",null,"",null,null,null,null,null,null,null,null,null,null,null,null,null,null,null,null,null,null,null,null,null,null,null,null,null,null,null,null,null,null,null,""]
[null,null,null,null,"",null,"",null,null,null,null,null,"",null,"",null,null,null,null,null,null,null,null,null,null,null,null,null,null,null,null,null,null,null,null,null,null,null,null,null,null,null,null,null,null,null,""]
[null,null,null,null,"",null,"",null,null,null,null,null,"",null,"",null,null,null,null,null,null,null,null,null,null,null,null,null,null,null,null,null,null,null,null,null,null,null,null,null,null,null,null,null,null,null,""]
[null,null,null,null,"",null,"",null,null,null,null,null,"",null,"",null,null,null,null,null,null,null,null,null,null,null,null,null,null,null,null,null,null,null,null,null,null,null,null,null,null,null,null,null,null,null,""]
[null,null,null,null,"",null,"",null,null,null,null,null,"",null,"",null,null,null,null,null,null,null,null,null,null,null,null,null,null,null,null,null,null,null,null,null,null,null,null,null,null,null,null,null,null,null,""]
[null,null,null,null,"",null,"",null,null,null,null,null,"",null,"",null,null,null,null,null,null,null,null,null,null,null,null,null,null,null,null,null,null,null,null,null,null,null,null,null,null,null,null,null,null,null,""]
[null,null,null,null,"",null,"",null,null,null,null,null,"",null,"",null,null,null,null,null,null,null,null,null,null,null,null,null,null,null,null,null,null,null,null,null,null,null,null,null,null,null,null,null,null,null,""]
[null,null,null,null,"",null,"",null,null,null,null,null,"",null,"",null,null,null,null,null,null,null,null,null,null,null,null,null,null,null,null,null,null,null,null,null,null,null,null,null,null,null,null,null,null,null,""]
[null,null,null,null,"",null,"",null,null,null,null,null,"",null,"",null,null,null,null,null,null,null,null,null,null,null,null,null,null,null,null,null,null,null,null,null,null,null,null,null,null,null,null,null,null,null,""]
[null,null,null,null,"",null,"",null,null,null,null,null,"",null,"",null,null,null,null,null,null,null,null,null,null,null,null,null,null,null,null,null,null,null,null,null,null,null,null,null,null,null,null,null,null,null,""]
[null,null,null,null,"",null,"",null,null,null,null,null,"",null,{"$f":"IF(N198=\"\",\"\",O197+N198)","v":""},null,null,null,null,null,null,null,null,null,null,null,null,null,null,null,null,null,null,null,null,null,null,null,null,null,null,null,null,null,null,null,""]
[null,null,null,null,"",null,{"$f":"IF(F199=\"\",\"\",G198+F199)","v":""},null,null,null,null,null,"",null,"",null,null,null,null,null,null,null,null,null,null,null,null,null,null,null,null,null,null,null,null,null,null,null,null,null,null,null,null,null,null,null,{"$f":"IF(AT199=\"\",\"\",AU198+AT199)","v":""}]
[null,null,null,null,"",null,"",null,null,null,null,null,"",null,"",null,null,null,null,null,null,null,null,null,null,null,null,null,null,null,null,null,null,null,null,null,null,null,null,null,null,null,null,null,null,null,""]
[null,null,null,null,"",null,"",null,null,null,null,null,"",null,"",null,null,null,null,null,null,null,null,null,null,null,null,null,null,null,null,null,null,null,null,null,null,null,null,null,null,null,null,null,null,null,""]
[null,null,null,null,"",null,"",null,null,null,null,null,"",null,"",null,null,null,null,null,null,null,null,null,null,null,null,null,null,null,null,null,null,null,null,null,null,null,null,null,null,null,null,null,null,null,""]
[null,null,null,null,"",null,"",null,null,null,null,null,{"$f":"IF(N203>0,\"進\",IF(N203<0,\"賠\",\"\"))","v":""},null,"",null,null,null,null,null,null,null,null,null,null,null,null,null,null,null,null,null,null,null,null,null,null,null,null,null,null,null,null,null,null,null,""]
[null,null,null,null,"",null,"",null,null,null,null,null,"",null,"",null,null,null,null,null,null,null,null,null,null,null,null,null,null,null,null,null,null,null,null,null,null,null,null,null,null,null,null,null,null,null,""]
[null,null,null,null,{"$f":"IF(F205>0,\"回\",IF(F205<0,\"出\",\"\"))","v":""},null,"",null,null,null,null,null,"",null,"",null,null,null,null,null,null,null,null,null,null,null,null,null,null,null,null,null,null,null,null,null,null,null,null,null,null,null,null,null,null,null,""]
[null,null,null,null,"",null,"",null,null,null,null,null,"",null,"",null,null,null,null,null,null,null,null,null,null,null,null,null,null,null,null,null,null,null,null,null,null,null,null,null,null,null,null,null,null,null,""]
[null,null,null,null,"",null,"",null,null,null,null,null,"",null,"",null,null,null,null,null,null,null,null,null,null,null,null,null,null,null,null,null,null,null,null,null,null,null,null,null,null,null,null,null,null,null,""]
[null,null,null,null,"",null,"",null,null,null,null,null,"",null,"",null,null,null,null,null,null,null,null,null,null,null,null,null,null,null,null,null,null,null,null,null,null,null,null,null,null,null,null,null,null,null,""]
[null,null,null,null,"",null,"",null,null,null,null,null,"",null,"",null,null,null,null,null,null,null,null,null,null,null,null,null,null,null,null,null,null,null,null,null,null,null,null,null,null,null,null,null,null,null,""]
[null,null,null,null,"",null,"",null,null,null,null,null,"",null,"",null,null,null,null,null,null,null,null,null,null,null,null,null,null,null,null,null,null,null,null,null,null,null,null,null,null,null,null,null,null,null,""]
[null,null,null,null,"",null,"",null,null,null,null,null,"",null,"",null,null,null,null,null,null,null,null,null,null,null,null,null,null,null,null,null,null,null,null,null,null,null,null,null,null,null,null,null,null,null,""]
[null,null,null,null,"",null,"",null,null,null,null,null,"",null,"",null,null,null,null,null,null,null,null,null,null,null,null,null,null,null,null,null,null,null,null,null,null,null,null,null,null,null,null,null,null,null,""]
[null,null,null,null,"",null,"",null,null,null,null,null,"",null,"",null,null,null,null,null,null,null,null,null,null,null,null,null,null,null,null,null,null,null,null,null,null,null,null,null,null,null,null,null,null,null,""]
[null,null,null,null,"",null,"",null,null,null,null,null,"",null,"",null,null,null,null,null,null,null,null,null,null,null,null,null,null,null,null,null,null,null,null,null,null,null,null,null,null,null,null,null,null,null,""]
[null,null,null,null,"",null,"",null,null,null,null,null,"",null,"",null,null,null,null,null,null,null,null,null,null,null,null,null,null,null,null,null,null,null,null,null,null,null,null,null,null,null,null,null,null,null,""]
[null,null,null,null,"",null,"",null,null,null,null,null,"",null,"",null,null,null,null,null,null,null,null,null,null,null,null,null,null,null,null,null,null,null,null,null,null,null,null,null,null,null,null,null,null,null,""]
[null,null,null,null,"",null,"",null,null,null,null,null,"",null,"",null,null,null,null,null,null,null,null,null,null,null,null,null,null,null,null,null,null,null,null,null,null,null,null,null,null,null,null,null,null,null,""]
[null,null,null,null,"",null,"",null,null,null,null,null,"",null,"",null,null,null,null,null,null,null,null,null,null,null,null,null,null,null,null,null,null,null,null,null,null,null,null,null,null,null,null,null,null,null,""]
[null,null,null,null,"",null,"",null,null,null,null,null,"",null,"",null,null,null,null,null,null,null,null,null,null,null,null,null,null,null,null,null,null,null,null,null,null,null,null,null,null,null,null,null,null,null,""]
[null,null,null,null,"",null,"",null,null,null,null,null,"",null,"",null,null,null,null,null,null,null,null,null,null,null,null,null,null,null,null,null,null,null,null,null,null,null,null,null,null,null,null,null,null,null,""]
[null,null,null,null,"",null,"",null,null,null,null,null,"",null,"",null,null,null,null,null,null,null,null,null,null,null,null,null,null,null,null,null,null,null,null,null,null,null,null,null,null,null,null,null,null,null,""]
[null,null,null,null,"",null,"",null,null,null,null,null,"",null,"",null,null,null,null,null,null,null,null,null,null,null,null,null,null,null,null,null,null,null,null,null,null,null,null,null,null,null,null,null,null,null,""]
[null,null,null,null,"",null,"",null,null,null,null,null,"",null,""]
[null,null,null,null,"",null,"",null,null,null,null,null,"",null,""]
[null,null,null,null,"",null,"",null,null,null,null,null,"",null,""]
[null,null,null,null,"",null,"",null,null,null,null,null,null,null,""]
[null,null,null,null,"",null,"",null,null,null,null,null,null,null,""]
[null,null,null,null,"",null,"",null,null,null,null,null,null,null,""]
[null,null,null,null,"",null,"",null,null,null,null,null,null,null,""]
[null,null,null,null,"",null,"",null,null,null,null,null,null,null,""]
[null,null,null,null,"",null,"",null,null,null,null,null,null,null,""]
[null,null,null,null,"",null,"",null,null,null,null,null,null,null,""]
[null,null,null,null,"",null,"",null,null,null,null,null,null,null,""]
[null,null,null,null,"",null,"",null,null,null,null,null,null,null,""]
[null,null,null,null,"",null,"",null,null,null,null,null,null,null,""]
[null,null,null,null,"",null,"",null,null,null,null,null,null,null,""]
[null,null,null,null,"",null,"",null,null,null,null,null,null,null,""]
[null,null,null,null,"",null,"",null,null,null,null,null,null,null,""]
[null,null,null,null,"",null,"",null,null,null,null,null,null,null,""]
[null,null,null,null,"",null,"",null,null,null,null,null,null,null,""]
[null,null,null,null,"",null,"",null,null,null,null,null,null,null,""]
[null,null,null,null,"",null,"",null,null,null,null,null,null,null,""]
[null,null,null,null,"",null,"",null,null,null,null,null,null,null,""]
[null,null,null,null,"",null,"",null,null,null,null,null,null,null,""]
[null,null,null,null,"",null,"",null,null,null,null,null,null,null,""]
[null,null,null,null,"",null,"",null,null,null,null,null,null,null,""]
[null,null,null,null,"",null,"",null,null,null,null,null,null,null,""]
[null,null,null,null,"",null,"",null,null,null,null,null,null,null,""]
[null,null,null,null,"",null,"",null,null,null,null,null,null,null,""]
[null,null,null,null,"",null,"",null,null,null,null,null,null,null,""]
[null,null,null,null,"",null,"",null,null,null,null,null,null,null,""]
[null,null,null,null,"",null,"",null,null,null,null,null,null,null,""]
[null,null,null,null,"",null,"",null,null,null,null,null,null,null,""]
[null,null,null,null,"",null,"",null,null,null,null,null,null,null,""]
[null,null,null,null,"",null,"",null,null,null,null,null,null,null,""]
[null,null,null,null,"",null,"",null,null,null,null,null,null,null,""]
[null,null,null,null,"",null,"",null,null,null,null,null,null,null,""]
[null,null,null,null,"",null,"",null,null,null,null,null,null,null,""]
[null,null,null,null,"",null,"",null,null,null,null,null,null,null,""]
[null,null,null,null,"",null,"",null,null,null,null,null,null,null,""]
[null,null,null,null,"",null,"",null,null,null,null,null,null,null,""]
[null,null,null,null,"",null,"",null,null,null,null,null,null,null,{"$f":"IF(N262=\"\",\"\",O261+N262)","v":""}]
[null,null,null,null,"",null,{"$f":"IF(F263=\"\",\"\",G262+F263)","v":""},null,null,null,null,null,null,null,""]
[null,null,null,null,"",null,"",null,null,null,null,null,null,null,""]
[null,null,null,null,"",null,"",null,null,null,null,null,null,null,""]
[null,null,null,null,"",null,"",null,null,null,null,null,null,null,""]
[null,null,null,null,"",null,"",null,null,null,null,null,null,null,""]
[null,null,null,null,"",null,"",null,null,null,null,null,null,null,""]
[null,null,null,null,{"$f":"IF(F269>0,\"回\",IF(F269<0,\"出\",\"\"))","v":""},null,"",null,null,null,null,null,null,null,""]
[null,null,null,null,"",null,"",null,null,null,null,null,null,null,""]
[null,null,null,null,"",null,"",null,null,null,null,null,null,null,""]
[null,null,null,null,"",null,"",null,null,null,null,null,null,null,""]
[null,null,null,null,"",null,"",null,null,null,null,null,null,null,""]
[null,null,null,null,"",null,"",null,null,null,null,null,null,null,""]
[null,null,null,null,"",null,"",null,null,null,null,null,null,null,""]
[null,null,null,null,"",null,"",null,null,null,null,null,null,null,""]
[null,null,null,null,"",null,"",null,null,null,null,null,null,null,""]
[null,null,null,null,"",null,"",null,null,null,null,null,null,null,""]
[null,null,null,null,"",null,"",null,null,null,null,null,null,null,""]
[null,null,null,null,"",null,"",null,null,null,null,null,null,null,""]
[null,null,null,null,"",null,"",null,null,null,null,null,null,null,""]
[null,null,null,null,"",null,"",null,null,null,null,null,null,null,""]
[null,null,null,null,"",null,"",null,null,null,null,null,null,null,""]
[null,null,null,null,"",null,"",null,null,null,null,null,null,null,""]
[null,null,null,null,"",null,"",null,null,null,null,null,null,null,""]
[null,null,null,null,"",null,"",null,null,null,null,null,null,null,""]
[null,null,null,null,"",null,"",null,null,null,null,null,null,null,""]
[null,null,null,null,"",null,"",null,null,null,null,null,null,null,""]
[null,null,null,null,"",null,"",null,null,null,null,null,null,null,""]
[null,null,null,null,"",null,"",null,null,null,null,null,null,null,""]
[null,null,null,null,"",null,"",null,null,null,null,null,null,null,""]
[null,null,null,null,"",null,"",null,null,null,null,null,null,null,""]
[null,null,null,null,"",null,"",null,null,null,null,null,null,null,""]
[null,null,null,null,"",null,"",null,null,null,null,null,null,null,""]
[null,null,null,null,"",null,"",null,null,null,null,null,null,null,""]
[null,null,null,null,"",null,"",null,null,null,null,null,null,null,""]
[null,null,null,null,"",null,"",null,null,null,null,null,null,null,""]
[null,null,null,null,"",null,"",null,null,null,null,null,null,null,""]
[null,null,null,null,"",null,"",null,null,null,null,null,null,null,""]
[null,null,null,null,"",null,"",null,null,null,null,null,null,null,""]
[null,null,null,null,"",null,"",null,null,null,null,null,null,null,""]
[null,null,null,null,"",null,"",null,null,null,null,null,null,null,""]
[null,null,null,null,"",null,"",null,null,null,null,null,null,null,""]
[null,null,null,null,"",null,"",null,null,null,null,null,null,null,""]
[null,null,null,null,"",null,"",null,null,null,null,null,null,null,""]
[null,null,null,null,"",null,"",null,null,null,null,null,null,null,""]
[null,null,null,null,"",null,"",null,null,null,null,null,null,null,""]
[null,null,null,null,"",null,"",null,null,null,null,null,null,null,""]
[null,null,null,null,"",null,"",null,null,null,null,null,null,null,""]
[null,null,null,null,"",null,"",null,null,null,null,null,null,null,""]
[null,null,null,null,"",null,"",null,null,null,null,null,null,null,""]
[null,null,null,null,"",null,"",null,null,null,null,null,null,null,""]
[null,null,null,null,"",null,"",null,null,null,null,null,null,null,""]
[null,null,null,null,"",null,"",null,null,null,null,null,null,null,""]
[null,null,null,null,"",null,"",null,null,null,null,null,null,null,""]
[null,null,null,null,"",null,"",null,null,null,null,null,null,null,""]
[null,null,null,null,"",null,"",null,null,null,null,null,null,null,""]
[null,null,null,null,"",null,"",null,null,null,null,null,null,null,""]
[null,null,null,null,"",null,"",null,null,null,null,null,null,null,""]
[null,null,null,null,"",null,"",null,null,null,null,null,null,null,""]
[null,null,null,null,"",null,"",null,null,null,null,null,null,null,""]
[null,null,null,null,"",null,"",null,null,null,null,null,null,null,""]
[null,null,null,null,"",null,"",null,null,null,null,null,null,null,""]
[null,null,null,null,"",null,"",null,null,null,null,null,null,null,""]
[null,null,null,null,"",null,"",null,null,null,null,null,null,null,""]
[null,null,null,null,"",null,"",null,null,null,null,null,null,null,{"$f":"IF(N326=\"\",\"\",O325+N326)","v":""}]
[null,null,null,null,"",null,{"$f":"IF(F327=\"\",\"\",G326+F327)","v":""},null,null,null,null,null,null,null,""]
[null,null,null,null,"",null,"",null,null,null,null,null,null,null,""]
[null,null,null,null,"",null,"",null,null,null,null,null,null,null,""]
[null,null,null,null,"",null,"",null,null,null,null,null,null,null,""]
[null,null,null,null,"",null,"",null,null,null,null,null,null,null,""]
[null,null,null,null,"",null,"",null,null,null,null,null,null,null,""]
[null,null,null,null,{"$f":"IF(F333>0,\"回\",IF(F333<0,\"出\",\"\"))","v":""},null,"",null,null,null,null,null,null,null,""]
[null,null,null,null,"",null,"",null,null,null,null,null,null,null,""]
[null,null,null,null,"",null,"",null,null,null,null,null,null,null,""]
[null,null,null,null,"",null,"",null,null,null,null,null,null,null,""]
[null,null,null,null,"",null,"",null,null,null,null,null,null,null,""]
[null,null,null,null,"",null,"",null,null,null,null,null,null,null,""]
[null,null,null,null,"",null,"",null,null,null,null,null,null,null,""]
[null,null,null,null,"",null,"",null,null,null,null,null,null,null,""]
[null,null,null,null,"",null,"",null,null,null,null,null,null,null,""]
[null,null,null,null,"",null,"",null,null,null,null,null,null,null,""]
[null,null,null,null,"",null,"",null,null,null,null,null,null,null,""]
[null,null,null,null,"",null,"",null,null,null,null,null,null,null,""]
[null,null,null,null,"",null,"",null,null,null,null,null,null,null,""]
[null,null,null,null,"",null,"",null,null,null,null,null,null,null,""]
[null,null,null,null,"",null,"",null,null,null,null,null,null,null,""]
[null,null,null,null,"",null,"",null,null,null,null,null,null,null,""]
[null,null,null,null,"",null,"",null,null,null,null,null,null,null,""]
[null,null,null,null,"",null,"",null,null,null,null,null,null,null,""]
[null,null,null,null,"",null,"",null,null,null,null,null,null,null,""]
[null,null,null,null,"",null,"",null,null,null,null,null,null,null,""]
[null,null,null,null,"",null,"",null,null,null,null,null,null,null,""]
[null,null,null,null,"",null,"",null,null,null,null,null,null,null,""]
[null,null,null,null,"",null,"",null,null,null,null,null,null,null,""]
[null,null,null,null,"",null,"",null,null,null,null,null,null,null,""]
[null,null,null,null,"",null,"",null,null,null,null,null,null,null,""]
[null,null,null,null,"",null,"",null,null,null,null,null,null,null,""]
[null,null,null,null,"",null,"",null,null,null,null,null,null,null,""]
[null,null,null,null,"",null,"",null,null,null,null,null,null,null,""]
[null,null,null,null,"",null,"",null,null,null,null,null,null,null,""]
[null,null,null,null,"",null,"",null,null,null,null,null,null,null,""]
[null,null,null,null,"",null,"",null,null,null,null,null,null,null,""]
[null,null,null,null,"",null,"",null,null,null,null,null,null,null,""]
[null,null,null,null,"",null,"",null,null,null,null,null,null,null,""]
[null,null,null,null,"",null,"",null,null,null,null,null,null,null,""]
[null,null,null,null,"",null,"",null,null,null,null,null,null,null,""]
[null,null,null,null,"",null,"",null,null,null,null,null,null,null,""]
[null,null,null,null,"",null,"",null,null,null,null,null,null,null,""]
[null,null,null,null,"",null,"",null,null,null,null,null,null,null,""]
[null,null,null,null,"",null,"",null,null,null,null,null,null,null,""]
[null,null,null,null,"",null,"",null,null,null,null,null,null,null,""]
[null,null,null,null,"",null,"",null,null,null,null,null,null,null,""]
[null,null,null,null,"",null,"",null,null,null,null,null,null,null,""]
[null,null,null,null,"",null,"",null,null,null,null,null,null,null,""]
[null,null,null,null,"",null,"",null,null,null,null,null,null,null,""]
[null,null,null,null,"",null,"",null,null,null,null,null,null,null,""]
[null,null,null,null,"",null,"",null,null,null,null,null,null,null,""]
[null,null,null,null,"",null,"",null,null,null,null,null,null,null,""]
[null,null,null,null,"",null,"",null,null,null,null,null,null,null,""]
[null,null,null,null,"",null,"",null,null,null,null,null,null,null,""]
[null,null,null,null,"",null,"",null,null,null,null,null,null,null,""]
[null,null,null,null,"",null,"",null,null,null,null,null,null,null,""]
[null,null,null,null,"",null,"",null,null,null,null,null,null,null,""]
[null,null,null,null,"",null,"",null,null,null,null,null,null,null,""]
[null,null,null,null,"",null,"",null,null,null,null,null,null,null,""]
[null,null,null,null,"",null,"",null,null,null,null,null,null,null,""]
[null,null,null,null,"",null,"",null,null,null,null,null,null,null,""]
[null,null,null,null,"",null,"",null,null,null,null,null,null,null,""]
[null,null,null,null,"",null,"",null,null,null,null,null,null,null,{"$f":"IF(N390=\"\",\"\",O389+N390)","v":""}]
[null,null,null,null,"",null,{"$f":"IF(F391=\"\",\"\",G390+F391)","v":""},null,null,null,null,null,null,null,""]
[null,null,null,null,"",null,"",null,null,null,null,null,null,null,""]
[null,null,null,null,"",null,"",null,null,null,null,null,null,null,""]
[null,null,null,null,"",null,"",null,null,null,null,null,null,null,""]
[null,null,null,null,"",null,"",null,null,null,null,null,null,null,""]
[null,null,null,null,"",null,"",null,null,null,null,null,null,null,""]
[null,null,null,null,{"$f":"IF(F397>0,\"回\",IF(F397<0,\"出\",\"\"))","v":""},null,"",null,null,null,null,null,null,null,""]
[null,null,null,null,"",null,"",null,null,null,null,null,null,null,""]
[null,null,null,null,"",null,"",null,null,null,null,null,null,null,""]
[null,null,null,null,"",null,"",null,null,null,null,null,null,null,""]
[null,null,null,null,"",null,"",null,null,null,null,null,null,null,""]
[null,null,null,null,"",null,"",null,null,null,null,null,null,null,""]
[null,null,null,null,"",null,"",null,null,null,null,null,null,null,""]
[null,null,null,null,"",null,"",null,null,null,null,null,null,null,""]
[null,null,null,null,"",null,"",null,null,null,null,null,null,null,""]
[null,null,null,null,"",null,"",null,null,null,null,null,null,null,""]
[null,null,null,null,"",null,"",null,null,null,null,null,null,null,""]
[null,null,null,null,"",null,"",null,null,null,null,null,null,null,""]
[null,null,null,null,"",null,"",null,null,null,null,null,null,null,""]
[null,null,null,null,"",null,"",null,null,null,null,null,null,null,""]
[null,null,null,null,"",null,"",null,null,null,null,null,null,null,""]
[null,null,null,null,"",null,"",null,null,null,null,null,null,null,""]
[null,null,null,null,"",null,"",null,null,null,null,null,null,null,""]
[null,null,null,null,"",null,"",null,null,null,null,null,null,null,""]
[null,null,null,null,"",null,"",null,null,null,null,null,null,null,""]
[null,null,null,null,"",null,"",null,null,null,null,null,null,null,""]
[null,null,null,null,"",null,"",null,null,null,null,null,null,null,""]
[null,null,null,null,"",null,"",null,null,null,null,null,null,null,""]
[null,null,null,null,"",null,"",null,null,null,null,null,null,null,""]
[null,null,null,null,"",null,"",null,null,null,null,null,null,null,""]
[null,null,null,null,"",null,"",null,null,null,null,null,null,null,""]
[null,null,null,null,"",null,"",null,null,null,null,null,null,null,""]
[null,null,null,null,"",null,"",null,null,null,null,null,null,null,""]
[null,null,null,null,"",null,"",null,null,null,null,null,null,null,""]
[null,null,null,null,"",null,"",null,null,null,null,null,null,null,""]
[null,null,null,null,"",null,"",null,null,null,null,null,null,null,""]
[null,null,null,null,"",null,"",null,null,null,null,null,null,null,""]
[null,null,null,null,"",null,"",null,null,null,null,null,null,null,""]
[null,null,null,null,"",null,"",null,null,null,null,null,null,null,""]
[null,null,null,null,"",null,"",null,null,null,null,null,null,null,""]
[null,null,null,null,"",null,"",null,null,null,null,null,null,null,""]
[null,null,null,null,"",null,"",null,null,null,null,null,null,null,""]
[null,null,null,null,"",null,"",null,null,null,null,null,null,null,""]
[null,null,null,null,"",null,"",null,null,null,null,null,null,null,""]
[null,null,null,null,"",null,"",null,null,null,null,null,null,null,""]
[null,null,null,null,"",null,"",null,null,null,null,null,null,null,""]
[null,null,null,null,"",null,"",null,null,null,null,null,null,null,""]
[null,null,null,null,"",null,"",null,null,null,null,null,null,null,""]
[null,null,null,null,"",null,"",null,null,null,null,null,null,null,""]
[null,null,null,null,"",null,"",null,null,null,null,null,null,null,""]
[null,null,null,null,"",null,"",null,null,null,null,null,null,null,""]
[null,null,null,null,"",null,"",null,null,null,null,null,null,null,""]
[null,null,null,null,"",null,"",null,null,null,null,null,null,null,""]
[null,null,null,null,"",null,"",null,null,null,null,null,null,null,""]
[null,null,null,null,"",null,"",null,null,null,null,null,null,null,""]
[null,null,null,null,"",null,"",null,null,null,null,null,null,null,""]
[null,null,null,null,"",null,"",null,null,null,null,null,null,null,""]
[null,null,null,null,"",null,"",null,null,null,null,null,null,null,""]
[null,null,null,null,"",null,"",null,null,null,null,null,null,null,""]
[null,null,null,null,"",null,"",null,null,null,null,null,null,null,""]
[null,null,null,null,"",null,"",null,null,null,null,null,null,null,""]
[null,null,null,null,"",null,"",null,null,null,null,null,null,null,""]
[null,null,null,null,"",null,"",null,null,null,null,null,null,null,""]
[null,null,null,null,"",null,"",null,null,null,null,null,null,null,{"$f":"IF(N454=\"\",\"\",O453+N454)","v":""}]
[null,null,null,null,"",null,{"$f":"IF(F455=\"\",\"\",G454+F455)","v":""},null,null,null,null,null,null,null,""]
[null,null,null,null,"",null,"",null,null,null,null,null,null,null,""]
[null,null,null,null,"",null,"",null,null,null,null,null,null,null,""]
[null,null,null,null,"",null,"",null,null,null,null,null,null,null,""]
[null,null,null,null,"",null,"",null,null,null,null,null,null,null,""]
[null,null,null,null,"",null,"",null,null,null,null,null,null,null,""]
[null,null,null,null,{"$f":"IF(F461>0,\"回\",IF(F461<0,\"出\",\"\"))","v":""},null,"",null,null,null,null,null,null,null,""]
[null,null,null,null,"",null,"",null,null,null,null,null,null,null,""]
[null,null,null,null,"",null,"",null,null,null,null,null,null,null,""]
[null,null,null,null,"",null,"",null,null,null,null,null,null,null,""]
[null,null,null,null,"",null,"",null,null,null,null,null,null,null,""]
[null,null,null,null,"",null,"",null,null,null,null,null,null,null,""]
[null,null,null,null,"",null,"",null,null,null,null,null,null,null,""]
[null,null,null,null,"",null,"",null,null,null,null,null,null,null,""]
[null,null,null,null,"",null,"",null,null,null,null,null,null,null,""]
[null,null,null,null,"",null,"",null,null,null,null,null,null,null,""]
[null,null,null,null,"",null,"",null,null,null,null,null,null,null,""]
[null,null,null,null,"",null,"",null,null,null,null,null,null,null,""]
[null,null,null,null,"",null,"",null,null,null,null,null,null,null,""]
[null,null,null,null,"",null,"",null,null,null,null,null,null,null,""]
[null,null,null,null,"",null,"",null,null,null,null,null,null,null,""]
[null,null,null,null,"",null,"",null,null,null,null,null,null,null,""]
[null,null,null,null,"",null,"",null,null,null,null,null,null,null,""]
[null,null,null,null,"",null,"",null,null,null,null,null,null,null,""]
[null,null,null,null,"",null,"",null,null,null,null,null,null,null,""]
[null,null,null,null,"",null,"",null,null,null,null,null,null,null,""]
[null,null,null,null,"",null,"",null,null,null,null,null,null,null,""]
[null,null,null,null,"",null,"",null,null,null,null,null,null,null,""]
[null,null,null,null,"",null,"",null,null,null,null,null,null,null,""]
[null,null,null,null,"",null,"",null,null,null,null,null,null,null,""]
[null,null,null,null,"",null,"",null,null,null,null,null,null,null,""]
[null,null,null,null,"",null,"",null,null,null,null,null,null,null,""]
[null,null,null,null,"",null,"",null,null,null,null,null,null,null,""]
[null,null,null,null,"",null,"",null,null,null,null,null,null,null,""]
[null,null,null,null,"",null,"",null,null,null,null,null,null,null,""]
[null,null,null,null,"",null,"",null,null,null,null,null,null,null,""]
[null,null,null,null,"",null,"",null,null,null,null,null,null,null,""]
[null,null,null,null,"",null,"",null,null,null,null,null,null,null,""]
[null,null,null,null,"",null,"",null,null,null,null,null,null,null,""]
[null,null,null,null,"",null,"",null,null,null,null,null,null,null,""]
[null,null,null,null,"",null,"",null,null,null,null,null,null,null,""]
[null,null,null,null,"",null,"",null,null,null,null,null,null,null,""]
[null,null,null,null,"",null,"",null,null,null,null,null,null,null,""]
[null,null,null,null,"",null,"",null,null,null,null,null,null,null,""]
[null,null,null,null,"",null,"",null,null,null,null,null,null,null,""]
[null,null,null,null,"",null,"",null,null,null,null,null,null,null,""]
[null,null,null,null,"",null,"",null,null,null,null,null,null,null,""]
[null,null,null,null,"",null,"",null,null,null,null,null,null,null,""]
[null,null,null,null,"",null,"",null,null,null,null,null,null,null,""]
[null,null,null,null,"",null,"",null,null,null,null,null,null,null,""]
[null,null,null,null,"",null,"",null,null,null,null,null,null,null,""]
[null,null,null,null,"",null,"",null,null,null,null,null,null,null,""]
[null,null,null,null,"",null,"",null,null,null,null,null,null,null,""]
[null,null,null,null,"",null,"",null,null,null,null,null,null,null,""]
[null,null,null,null,"",null,"",null,null,null,null,null,null,null,""]
[null,null,null,null,"",null,"",null,null,null,null,null,null,null,""]
[null,null,null,null,"",null,"",null,null,null,null,null,null,null,""]
[null,null,null,null,"",null,"",null,null,null,null,null,null,null,""]
[null,null,null,null,"",null,"",null,null,null,null,null,null,null,""]
[null,null,null,null,"",null,"",null,null,null,null,null,null,null,""]
[null,null,null,null,"",null,"",null,null,null,null,null,null,null,""]
[null,null,null,null,"",null,"",null,null,null,null,null,null,null,""]
[null,null,null,null,"",null,"",null,null,null,null,null,null,null,""]
[null,null,null,null,"",null,"",null,null,null,null,null,null,null,{"$f":"IF(N518=\"\",\"\",O517+N518)","v":""}]
[null,null,null,null,"",null,{"$f":"IF(F519=\"\",\"\",G518+F519)","v":""},null,null,null,null,null,null,null,""]
[null,null,null,null,"",null,"",null,null,null,null,null,null,null,""]
[null,null,null,null,"",null,"",null,null,null,null,null,null,null,""]
[null,null,null,null,"",null,"",null,null,null,null,null,null,null,""]
[null,null,null,null,"",null,"",null,null,null,null,null,null,null,""]
[null,null,null,null,"",null,"",null,null,null,null,null,null,null,""]
[null,null,null,null,{"$f":"IF(F525>0,\"回\",IF(F525<0,\"出\",\"\"))","v":""},null,"",null,null,null,null,null,null,null,""]
[null,null,null,null,"",null,"",null,null,null,null,null,null,null,""]
[null,null,null,null,"",null,"",null,null,null,null,null,null,null,""]
[null,null,null,null,"",null,"",null,null,null,null,null,null,null,""]
[null,null,null,null,"",null,"",null,null,null,null,null,null,null,""]
[null,null,null,null,"",null,"",null,null,null,null,null,null,null,""]
[null,null,null,null,"",null,"",null,null,null,null,null,null,null,""]
[null,null,null,null,"",null,"",null,null,null,null,null,null,null,""]
[null,null,null,null,"",null,"",null,null,null,null,null,null,null,""]
[null,null,null,null,"",null,"",null,null,null,null,null,null,null,""]
[null,null,null,null,"",null,"",null,null,null,null,null,null,null,""]
[null,null,null,null,"",null,"",null,null,null,null,null,null,null,""]
[null,null,null,null,"",null,"",null,null,null,null,null,null,null,""]
[null,null,null,null,"",null,"",null,null,null,null,null,null,null,""]
[null,null,null,null,"",null,"",null,null,null,null,null,null,null,""]
[null,null,null,null,"",null,"",null,null,null,null,null,null,null,""]
[null,null,null,null,"",null,"",null,null,null,null,null,null,null,""]
[null,null,null,null,"",null,"",null,null,null,null,null,null,null,""]
[null,null,null,null,"",null,"",null,null,null,null,null,null,null,""]
[null,null,null,null,"",null,"",null,null,null,null,null,null,null,""]
[null,null,null,null,"",null,"",null,null,null,null,null,null,null,""]
[null,null,null,null,"",null,"",null,null,null,null,null,null,null,""]
[null,null,null,null,"",null,"",null,null,null,null,null,null,null,""]
[null,null,null,null,"",null,"",null,null,null,null,null,null,null,""]
[null,null,null,null,"",null,"",null,null,null,null,null,null,null,""]
[null,null,null,null,"",null,"",null,null,null,null,null,null,null,""]
[null,null,null,null,"",null,"",null,null,null,null,null,null,null,""]
[null,null,null,null,"",null,"",null,null,null,null,null,null,null,""]
[null,null,null,null,"",null,"",null,null,null,null,null,null,null,""]
[null,null,null,null,"",null,"",null,null,null,null,null,null,null,""]
[null,null,null,null,"",null,"",null,null,null,null,null,null,null,""]
[null,null,null,null,"",null,"",null,null,null,null,null,null,null,""]
[null,null,null,null,"",null,"",null,null,null,null,null,null,null,""]
[null,null,null,null,"",null,"",null,null,null,null,null,null,null,""]
[null,null,null,null,"",null,"",null,null,null,null,null,null,null,""]
[null,null,null,null,"",null,"",null,null,null,null,null,null,null,""]
[null,null,null,null,"",null,"",null,null,null,null,null,null,null,""]
[null,null,null,null,"",null,"",null,null,null,null,null,null,null,""]
[null,null,null,null,"",null,"",null,null,null,null,null,null,null,""]
[null,null,null,null,"",null,"",null,null,null,null,null,null,null,""]
[null,null,null,null,"",null,"",null,null,null,null,null,null,null,""]
[null,null,null,null,"",null,"",null,null,null,null,null,null,null,""]
[null,null,null,null,"",null,"",null,null,null,null,null,null,null,""]
[null,null,null,null,"",null,"",null,null,null,null,null,null,null,""]
[null,null,null,null,"",null,"",null,null,null,null,null,null,null,""]
[null,null,null,null,"",null,"",null,null,null,null,null,null,null,""]
[null,null,null,null,"",null,"",null,null,null,null,null,null,null,""]
[null,null,null,null,"",null,"",null,null,null,null,null,null,null,""]
[null,null,null,null,"",null,"",null,null,null,null,null,null,null,""]
[null,null,null,null,"",null,"",null,null,null,null,null,null,null,""]
[null,null,null,null,"",null,"",null,null,null,null,null,null,null,""]
[null,null,null,null,"",null,"",null,null,null,null,null,null,null,""]
[null,null,null,null,"",null,"",null,null,null,null,null,null,null,""]
[null,null,null,null,"",null,"",null,null,null,null,null,null,null,""]
[null,null,null,null,"",null,"",null,null,null,null,null,null,null,""]
[null,null,null,null,"",null,"",null,null,null,null,null,null,null,""]
[null,null,null,null,"",null,"",null,null,null,null,null,null,null,""]
[null,null,null,null,"",null,"",null,null,null,null,null,null,null,{"$f":"IF(N582=\"\",\"\",O581+N582)","v":""}]
[null,null,null,null,"",null,{"$f":"IF(F583=\"\",\"\",G582+F583)","v":""},null,null,null,null,null,null,null,""]
[null,null,null,null,"",null,"",null,null,null,null,null,null,null,""]
[null,null,null,null,"",null,"",null,null,null,null,null,null,null,""]
[null,null,null,null,"",null,"",null,null,null,null,null,null,null,""]
[null,null,null,null,"",null,"",null,null,null,null,null,null,null,""]
[null,null,null,null,"",null,"",null,null,null,null,null,null,null,""]
[null,null,null,null,{"$f":"IF(F589>0,\"回\",IF(F589<0,\"出\",\"\"))","v":""},null,"",null,null,null,null,null,null,null,""]
[null,null,null,null,"",null,"",null,null,null,null,null,null,null,""]
[null,null,null,null,"",null,"",null,null,null,null,null,null,null,""]
[null,null,null,null,"",null,"",null,null,null,null,null,null,null,""]
[null,null,null,null,"",null,"",null,null,null,null,null,null,null,""]
[null,null,null,null,"",null,"",null,null,null,null,null,null,null,""]
[null,null,null,null,"",null,"",null,null,null,null,null,null,null,""]
[null,null,null,null,"",null,"",null,null,null,null,null,null,null,""]
[null,null,null,null,"",null,"",null,null,null,null,null,null,null,""]
[null,null,null,null,"",null,"",null,null,null,null,null,null,null,""]
[null,null,null,null,"",null,"",null,null,null,null,null,null,null,""]
[null,null,null,null,"",null,"",null,null,null,null,null,null,null,""]
[null,null,null,null,"",null,"",null,null,null,null,null,null,null,""]
[null,null,null,null,"",null,"",null,null,null,null,null,null,null,""]
[null,null,null,null,"",null,"",null,null,null,null,null,null,null,""]
[null,null,null,null,"",null,"",null,null,null,null,null,null,null,""]
[null,null,null,null,"",null,"",null,null,null,null,null,null,null,""]
[null,null,null,null,"",null,"",null,null,null,null,null,null,null,""]
[null,null,null,null,"",null,"",null,null,null,null,null,null,null,""]
[null,null,null,null,"",null,"",null,null,null,null,null,null,null,""]
[null,null,null,null,"",null,"",null,null,null,null,null,null,null,""]
[null,null,null,null,"",null,"",null,null,null,null,null,null,null,""]
[null,null,null,null,"",null,"",null,null,null,null,null,null,null,""]
[null,null,null,null,"",null,"",null,null,null,null,null,null,null,""]
[null,null,null,null,"",null,"",null,null,null,null,null,null,null,""]
[null,null,null,null,"",null,"",null,null,null,null,null,null,null,""]
[null,null,null,null,"",null,"",null,null,null,null,null,null,null,""]
[null,null,null,null,"",null,"",null,null,null,null,null,null,null,""]
[null,null,null,null,"",null,"",null,null,null,null,null,null,null,""]
[null,null,null,null,"",null,"",null,null,null,null,null,null,null,""]
[null,null,null,null,"",null,"",null,null,null,null,null,null,null,""]
[null,null,null,null,"",null,"",null,null,null,null,null,null,null,""]
[null,null,null,null,"",null,"",null,null,null,null,null,null,null,""]
[null,null,null,null,"",null,"",null,null,null,null,null,null,null,""]
[null,null,null,null,"",null,"",null,null,null,null,null,null,null,""]
[null,null,null,null,"",null,"",null,null,null,null,null,null,null,""]
[null,null,null,null,"",null,"",null,null,null,null,null,null,null,""]
[null,null,null,null,"",null,"",null,null,null,null,null,null,null,""]
[null,null,null,null,"",null,"",null,null,null,null,null,null,null,""]
[null,null,null,null,"",null,"",null,null,null,null,null,null,null,""]
[null,null,null,null,"",null,"",null,null,null,null,null,null,null,""]
[null,null,null,null,"",null,"",null,null,null,null,null,null,null,""]
[null,null,null,null,"",null,"",null,null,null,null,null,null,null,""]
[null,null,null,null,"",null,"",null,null,null,null,null,null,null,""]
[null,null,null,null,"",null,"",null,null,null,null,null,null,null,""]
[null,null,null,null,"",null,"",null,null,null,null,null,null,null,""]
[null,null,null,null,"",null,"",null,null,null,null,null,null,null,""]
[null,null,null,null,"",null,"",null,null,null,null,null,null,null,""]
[null,null,null,null,"",null,"",null,null,null,null,null,null,null,""]
[null,null,null,null,"",null,"",null,null,null,null,null,null,null,""]
[null,null,null,null,"",null,"",null,null,null,null,null,null,null,""]
[null,null,null,null,"",null,"",null,null,null,null,null,null,null,""]
[null,null,null,null,"",null,"",null,null,null,null,null,null,null,""]
[null,null,null,null,"",null,"",null,null,null,null,null,null,null,""]
[null,null,null,null,"",null,"",null,null,null,null,null,null,null,""]
[null,null,null,null,"",null,"",null,null,null,null,null,null,null,""]
[null,null,null,null,"",null,"",null,null,null,null,null,null,null,""]
[null,null,null,null,"",null,"",null,null,null,null,null,null,null,{"$f":"IF(N646=\"\",\"\",O645+N646)","v":""}]
[null,null,null,null,"",null,{"$f":"IF(F647=\"\",\"\",G646+F647)","v":""},null,null,null,null,null,null,null,""]
[null,null,null,null,"",null,"",null,null,null,null,null,null,null,""]
[null,null,null,null,"",null,"",null,null,null,null,null,null,null,""]
[null,null,null,null,"",null,"",null,null,null,null,null,null,null,""]
[null,null,null,null,"",null,"",null,null,null,null,null,null,null,""]
[null,null,null,null,"",null,"",null,null,null,null,null,null,null,""]
[null,null,null,null,{"$f":"IF(F653>0,\"回\",IF(F653<0,\"出\",\"\"))","v":""},null,"",null,null,null,null,null,null,null,""]
[null,null,null,null,"",null,"",null,null,null,null,null,null,null,""]
[null,null,null,null,"",null,"",null,null,null,null,null,null,null,""]
[null,null,null,null,"",null,"",null,null,null,null,null,null,null,""]
[null,null,null,null,"",null,"",null,null,null,null,null,null,null,""]
[null,null,null,null,"",null,"",null,null,null,null,null,null,null,""]
[null,null,null,null,"",null,"",null,null,null,null,null,null,null,""]
[null,null,null,null,"",null,"",null,null,null,null,null,null,null,""]
[null,null,null,null,"",null,"",null,null,null,null,null,null,null,""]
[null,null,null,null,"",null,"",null,null,null,null,null,null,null,""]
[null,null,null,null,"",null,"",null,null,null,null,null,null,null,""]
[null,null,null,null,"",null,"",null,null,null,null,null,null,null,""]
[null,null,null,null,"",null,"",null,null,null,null,null,null,null,""]
[null,null,null,null,"",null,"",null,null,null,null,null,null,null,""]
[null,null,null,null,"",null,"",null,null,null,null,null,null,null,""]
[null,null,null,null,"",null,"",null,null,null,null,null,null,null,""]
[null,null,null,null,"",null,"",null,null,null,null,null,null,null,""]
[null,null,null,null,"",null,"",null,null,null,null,null,null,null,""]
[null,null,null,null,"",null,"",null,null,null,null,null,null,null,""]
[null,null,null,null,"",null,"",null,null,null,null,null,null,null,""]
[null,null,null,null,"",null,"",null,null,null,null,null,null,null,""]
[null,null,null,null,"",null,"",null,null,null,null,null,null,null,""]
[null,null,null,null,"",null,"",null,null,null,null,null,null,null,""]
[null,null,null,null,"",null,"",null,null,null,null,null,null,null,""]
[null,null,null,null,"",null,"",null,null,null,null,null,null,null,""]
[null,null,null,null,"",null,"",null,null,null,null,null,null,null,""]
[null,null,null,null,"",null,"",null,null,null,null,null,null,null,""]
[null,null,null,null,"",null,"",null,null,null,null,null,null,null,""]
[null,null,null,null,"",null,"",null,null,null,null,null,null,null,""]
[null,null,null,null,"",null,"",null,null,null,null,null,null,null,""]
[null,null,null,null,"",null,"",null,null,null,null,null,null,null,""]
[null,null,null,null,"",null,"",null,null,null,null,null,null,null,""]
[null,null,null,null,"",null,"",null,null,null,null,null,null,null,""]
[null,null,null,null,"",null,"",null,null,null,null,null,null,null,""]
[null,null,null,null,"",null,"",null,null,null,null,null,null,null,""]
[null,null,null,null,"",null,"",null,null,null,null,null,null,null,""]
[null,null,null,null,"",null,"",null,null,null,null,null,null,null,""]
[null,null,null,null,"",null,"",null,null,null,null,null,null,null,""]
[null,null,null,null,"",null,"",null,null,null,null,null,null,null,""]
[null,null,null,null,"",null,"",null,null,null,null,null,null,null,""]
[null,null,null,null,"",null,"",null,null,null,null,null,null,null,""]
[null,null,null,null,"",null,"",null,null,null,null,null,null,null,""]
[null,null,null,null,"",null,"",null,null,null,null,null,null,null,""]
[null,null,null,null,"",null,"",null,null,null,null,null,null,null,""]
[null,null,null,null,"",null,"",null,null,null,null,null,null,null,""]
[null,null,null,null,"",null,"",null,null,null,null,null,null,null,""]
[null,null,null,null,"",null,"",null,null,null,null,null,null,null,""]
[null,null,null,null,"",null,"",null,null,null,null,null,null,null,""]
[null,null,null,null,"",null,"",null,null,null,null,null,null,null,""]
[null,null,null,null,"",null,"",null,null,null,null,null,null,null,""]
[null,null,null,null,"",null,"",null,null,null,null,null,null,null,""]
[null,null,null,null,"",null,"",null,null,null,null,null,null,null,""]
[null,null,null,null,"",null,"",null,null,null,null,null,null,null,""]
[null,null,null,null,"",null,"",null,null,null,null,null,null,null,""]
[null,null,null,null,"",null,"",null,null,null,null,null,null,null,""]
[null,null,null,null,"",null,"",null,null,null,null,null,null,null,""]
[null,null,null,null,"",null,"",null,null,null,null,null,null,null,""]
[null,null,null,null,"",null,"",null,null,null,null,null,null,null,{"$f":"IF(N710=\"\",\"\",O709+N710)","v":""}]
[null,null,null,null,"",null,{"$f":"IF(F711=\"\",\"\",G710+F711)","v":""},null,null,null,null,null,null,null,""]
[null,null,null,null,"",null,"",null,null,null,null,null,null,null,""]
[null,null,null,null,"",null,"",null,null,null,null,null,null,null,""]
[null,null,null,null,"",null,"",null,null,null,null,null,null,null,""]
[null,null,null,null,"",null,"",null,null,null,null,null,null,null,""]
[null,null,null,null,"",null,"",null,null,null,null,null,null,null,""]
[null,null,null,null,{"$f":"IF(F717>0,\"回\",IF(F717<0,\"出\",\"\"))","v":""},null,"",null,null,null,null,null,null,null,""]
[null,null,null,null,"",null,"",null,null,null,null,null,null,null,""]
[null,null,null,null,"",null,"",null,null,null,null,null,null,null,""]
[null,null,null,null,"",null,"",null,null,null,null,null,null,null,""]
[null,null,null,null,"",null,"",null,null,null,null,null,null,null,""]
[null,null,null,null,"",null,"",null,null,null,null,null,null,null,""]
[null,null,null,null,"",null,"",null,null,null,null,null,null,null,""]
[null,null,null,null,"",null,"",null,null,null,null,null,null,null,""]
[null,null,null,null,"",null,"",null,null,null,null,null,null,null,""]
[null,null,null,null,"",null,"",null,null,null,null,null,null,null,""]
[null,null,null,null,"",null,"",null,null,null,null,null,null,null,""]
[null,null,null,null,"",null,"",null,null,null,null,null,null,null,""]
[null,null,null,null,"",null,"",null,null,null,null,null,null,null,""]
[null,null,null,null,"",null,"",null,null,null,null,null,null,null,""]
[null,null,null,null,"",null,"",null,null,null,null,null,null,null,""]
[null,null,null,null,"",null,"",null,null,null,null,null,null,null,""]
[null,null,null,null,"",null,"",null,null,null,null,null,null,null,""]
[null,null,null,null,"",null,"",null,null,null,null,null,null,null,""]
[null,null,null,null,"",null,"",null,null,null,null,null,null,null,""]
[null,null,null,null,"",null,"",null,null,null,null,null,null,null,""]
[null,null,null,null,"",null,"",null,null,null,null,null,null,null,""]
[null,null,null,null,"",null,"",null,null,null,null,null,null,null,""]
[null,null,null,null,"",null,"",null,null,null,null,null,null,null,""]
[null,null,null,null,"",null,"",null,null,null,null,null,null,null,""]
[null,null,null,null,"",null,"",null,null,null,null,null,null,null,""]
[null,null,null,null,"",null,"",null,null,null,null,null,null,null,""]
[null,null,null,null,"",null,"",null,null,null,null,null,null,null,""]
[null,null,null,null,"",null,"",null,null,null,null,null,null,null,""]
[null,null,null,null,"",null,"",null,null,null,null,null,null,null,""]
[null,null,null,null,"",null,"",null,null,null,null,null,null,null,""]
[null,null,null,null,"",null,"",null,null,null,null,null,null,null,""]
[null,null,null,null,"",null,"",null,null,null,null,null,null,null,""]
[null,null,null,null,"",null,"",null,null,null,null,null,null,null,""]
[null,null,null,null,"",null,"",null,null,null,null,null,null,null,""]
[null,null,null,null,"",null,"",null,null,null,null,null,null,null,""]
[null,null,null,null,"",null,"",null,null,null,null,null,null,null,""]
[null,null,null,null,"",null,"",null,null,null,null,null,null,null,""]
[null,null,null,null,"",null,"",null,null,null,null,null,null,null,""]
[null,null,null,null,"",null,"",null,null,null,null,null,null,null,""]
[null,null,null,null,"",null,"",null,null,null,null,null,null,null,""]
[null,null,null,null,"",null,"",null,null,null,null,null,null,null,""]
[null,null,null,null,"",null,"",null,null,null,null,null,null,null,""]
[null,null,null,null,"",null,"",null,null,null,null,null,null,null,""]
[null,null,null,null,"",null,"",null,null,null,null,null,null,null,""]
[null,null,null,null,"",null,"",null,null,null,null,null,null,null,""]
[null,null,null,null,"",null,"",null,null,null,null,null,null,null,""]
[null,null,null,null,"",null,"",null,null,null,null,null,null,null,""]
[null,null,null,null,"",null,"",null,null,null,null,null,null,null,""]
[null,null,null,null,null,null,"",null,null,null,null,null,null,null,""]
[null,null,null,null,null,null,"",null,null,null,null,null,null,null,""]
[null,null,null,null,null,null,"",null,null,null,null,null,null,null,""]
[null,null,null,null,null,null,"",null,null,null,null,null,null,null,""]
[null,null,null,null,null,null,"",null,null,null,null,null,null,null,""]
[null,null,null,null,null,null,"",null,null,null,null,null,null,null,""]
[null,null,null,null,null,null,"",null,null,null,null,null,null,null,""]
[null,null,null,null,null,null,"",null,null,null,null,null,null,null,""]
[null,null,null,null,null,null,"",null,null,null,null,null,null,null,""]
[null,null,null,null,null,null,"",null,null,null,null,null,null,null,{"$f":"IF(N774=\"\",\"\",O773+N774)","v":""}]
[null,null,null,null,null,null,{"$f":"IF(F775=\"\",\"\",G774+F775)","v":""},null,null,null,null,null,null,null,""]
[null,null,null,null,null,null,"",null,null,null,null,null,null,null,""]
[null,null,null,null,null,null,"",null,null,null,null,null,null,null,""]
[null,null,null,null,null,null,"",null,null,null,null,null,null,null,""]
[null,null,null,null,null,null,"",null,null,null,null,null,null,null,""]
[null,null,null,null,null,null,"",null,null,null,null,null,null,null,""]
[null,null,null,null,null,null,"",null,null,null,null,null,null,null,""]
[null,null,null,null,null,null,"",null,null,null,null,null,null,null,""]
[null,null,null,null,null,null,"",null,null,null,null,null,null,null,""]
[null,null,null,null,null,null,"",null,null,null,null,null,null,null,""]
[null,null,null,null,null,null,"",null,null,null,null,null,null,null,""]
[null,null,null,null,null,null,"",null,null,null,null,null,null,null,""]
[null,null,null,null,null,null,"",null,null,null,null,null,null,null,""]
[null,null,null,null,null,null,"",null,null,null,null,null,null,null,""]
[null,null,null,null,null,null,"",null,null,null,null,null,null,null,""]
[null,null,null,null,null,null,"",null,null,null,null,null,null,null,""]
[null,null,null,null,null,null,"",null,null,null,null,null,null,null,""]
[null,null,null,null,null,null,"",null,null,null,null,null,null,null,""]
[null,null,null,null,null,null,"",null,null,null,null,null,null,null,""]
[null,null,null,null,null,null,"",null,null,null,null,null,null,null,""]
[null,null,null,null,null,null,"",null,null,null,null,null,null,null,""]
[null,null,null,null,null,null,"",null,null,null,null,null,null,null,""]
[null,null,null,null,null,null,"",null,null,null,null,null,null,null,""]
[null,null,null,null,null,null,"",null,null,null,null,null,null,null,""]
[null,null,null,null,null,null,"",null,null,null,null,null,null,null,""]
[null,null,null,null,null,null,"",null,null,null,null,null,null,null,""]
[null,null,null,null,null,null,"",null,null,null,null,null,null,null,""]
[null,null,null,null,null,null,"",null,null,null,null,null,null,null,""]
[null,null,null,null,null,null,"",null,null,null,null,null,null,null,""]
[null,null,null,null,null,null,"",null,null,null,null,null,null,null,""]
[null,null,null,null,null,null,"",null,null,null,null,null,null,null,""]
[null,null,null,null,null,null,"",null,null,null,null,null,null,null,""]
[null,null,null,null,null,null,"",null,null,null,null,null,null,null,""]
[null,null,null,null,null,null,"",null,null,null,null,null,null,null,""]
[null,null,null,null,null,null,"",null,null,null,null,null,null,null,""]
[null,null,null,null,null,null,"",null,null,null,null,null,null,null,""]
[null,null,null,null,null,null,"",null,null,null,null,null,null,null,""]
[null,null,null,null,null,null,"",null,null,null,null,null,null,null,""]
[null,null,null,null,null,null,"",null,null,null,null,null,null,null,""]
[null,null,null,null,null,null,"",null,null,null,null,null,null,null,""]
[null,null,null,null,null,null,"",null,null,null,null,null,null,null,""]
[null,null,null,null,null,null,"",null,null,null,null,null,null,null,""]
[null,null,null,null,null,null,"",null,null,null,null,null,null,null,""]
[null,null,null,null,null,null,"",null,null,null,null,null,null,null,""]
[null,null,null,null,null,null,"",null,null,null,null,null,null,null,""]
[null,null,null,null,null,null,"",null,null,null,null,null,null,null,""]
[null,null,null,null,null,null,"",null,null,null,null,null,null,null,""]
[null,null,null,null,null,null,"",null,null,null,null,null,null,null,""]
[null,null,null,null,null,null,"",null,null,null,null,null,null,null,""]
[null,null,null,null,null,null,"",null,null,null,null,null,null,null,""]
[null,null,null,null,null,null,"",null,null,null,null,null,null,null,""]
[null,null,null,null,null,null,"",null,null,null,null,null,null,null,""]
[null,null,null,null,null,null,"",null,null,null,null,null,null,null,""]
[null,null,null,null,null,null,"",null,null,null,null,null,null,null,""]
[null,null,null,null,null,null,"",null,null,null,null,null,null,null,""]
[null,null,null,null,null,null,"",null,null,null,null,null,null,null,""]
[null,null,null,null,null,null,"",null,null,null,null,null,null,null,""]
[null,null,null,null,null,null,"",null,null,null,null,null,null,null,""]
[null,null,null,null,null,null,"",null,null,null,null,null,null,null,""]
[null,null,null,null,null,null,"",null,null,null,null,null,null,null,""]
[null,null,null,null,null,null,"",null,null,null,null,null,null,null,""]
[null,null,null,null,null,null,"",null,null,null,null,null,null,null,""]
[null,null,null,null,null,null,"",null,null,null,null,null,null,null,""]
[null,null,null,null,null,null,"",null,null,null,null,null,null,null,{"$f":"IF(N838=\"\",\"\",O837+N838)","v":""}]
[null,null,null,null,null,null,{"$f":"IF(F839=\"\",\"\",G838+F839)","v":""},null,null,null,null,null,null,null,""]
[null,null,null,null,null,null,"",null,null,null,null,null,null,null,""]
[null,null,null,null,null,null,"",null,null,null,null,null,null,null,""]
[null,null,null,null,null,null,"",null,null,null,null,null,null,null,""]
[null,null,null,null,null,null,"",null,null,null,null,null,null,null,""]
[null,null,null,null,null,null,"",null,null,null,null,null,null,null,""]
[null,null,null,null,null,null,"",null,null,null,null,null,null,null,""]
[null,null,null,null,null,null,"",null,null,null,null,null,null,null,""]
[null,null,null,null,null,null,"",null,null,null,null,null,null,null,""]
[null,null,null,null,null,null,"",null,null,null,null,null,null,null,""]
[null,null,null,null,null,null,"",null,null,null,null,null,null,null,""]
[null,null,null,null,null,null,"",null,null,null,null,null,null,null,""]
[null,null,null,null,null,null,"",null,null,null,null,null,null,null,""]
[null,null,null,null,null,null,"",null,null,null,null,null,null,null,""]
[null,null,null,null,null,null,"",null,null,null,null,null,null,null,""]
[null,null,null,null,null,null,"",null,null,null,null,null,null,null,""]
[null,null,null,null,null,null,"",null,null,null,null,null,null,null,""]
[null,null,null,null,null,null,"",null,null,null,null,null,null,null,""]
[null,null,null,null,null,null,"",null,null,null,null,null,null,null,""]
[null,null,null,null,null,null,"",null,null,null,null,null,null,null,""]
[null,null,null,null,null,null,"",null,null,null,null,null,null,null,""]
[null,null,null,null,null,null,"",null,null,null,null,null,null,null,""]
[null,null,null,null,null,null,"",null,null,null,null,null,null,null,""]
[null,null,null,null,null,null,"",null,null,null,null,null,null,null,""]
[null,null,null,null,null,null,"",null,null,null,null,null,null,null,""]
[null,null,null,null,null,null,"",null,null,null,null,null,null,null,""]
[null,null,null,null,null,null,"",null,null,null,null,null,null,null,""]
[null,null,null,null,null,null,"",null,null,null,null,null,null,null,""]
[null,null,null,null,null,null,"",null,null,null,null,null,null,null,""]
[null,null,null,null,null,null,"",null,null,null,null,null,null,null,""]
[null,null,null,null,null,null,"",null,null,null,null,null,null,null,""]
[null,null,null,null,null,null,"",null,null,null,null,null,null,null,""]
[null,null,null,null,null,null,"",null,null,null,null,null,null,null,""]
[null,null,null,null,null,null,"",null,null,null,null,null,null,null,""]
[null,null,null,null,null,null,"",null,null,null,null,null,null,null,""]
[null,null,null,null,null,null,"",null,null,null,null,null,null,null,""]
[null,null,null,null,null,null,"",null,null,null,null,null,null,null,""]
[null,null,null,null,null,null,"",null,null,null,null,null,null,null,""]
[null,null,null,null,null,null,"",null,null,null,null,null,null,null,""]
[null,null,null,null,null,null,"",null,null,null,null,null,null,null,""]
[null,null,null,null,null,null,"",null,null,null,null,null,null,null,""]
[null,null,null,null,null,null,"",null,null,null,null,null,null,null,""]
[null,null,null,null,null,null,"",null,null,null,null,null,null,null,""]
[null,null,null,null,null,null,"",null,null,null,null,null,null,null,""]
[null,null,null,null,null,null,"",null,null,null,null,null,null,null,""]
[null,null,null,null,null,null,"",null,null,null,null,null,null,null,""]
[null,null,null,null,null,null,"",null,null,null,null,null,null,null,""]
[null,null,null,null,null,null,"",null,null,null,null,null,null,null,""]
[null,null,null,null,null,null,"",null,null,null,null,null,null,null,""]
[null,null,null,null,null,null,"",null,null,null,null,null,null,null,""]
[null,null,null,null,null,null,"",null,null,null,null,null,null,null,""]
[null,null,null,null,null,null,"",null,null,null,null,null,null,null,""]
[null,null,null,null,null,null,"",null,null,null,null,null,null,null,""]
[null,null,null,null,null,null,"",null,null,null,null,null,null,null,""]
[null,null,null,null,null,null,"",null,null,null,null,null,null,null,""]
[null,null,null,null,null,null,"",null,null,null,null,null,null,null,""]
[null,null,null,null,null,null,"",null,null,null,null,null,null,null,""]
[null,null,null,null,null,null,"",null,null,null,null,null,null,null,""]
[null,null,null,null,null,null,"",null,null,null,null,null,null,null,""]
[null,null,null,null,null,null,"",null,null,null,null,null,null,null,""]
[null,null,null,null,null,null,"",null,null,null,null,null,null,null,""]
[null,null,null,null,null,null,"",null,null,null,null,null,null,null,""]
[null,null,null,null,null,null,"",null,null,null,null,null,null,null,""]
[null,null,null,null,null,null,"",null,null,null,null,null,null,null,{"$f":"IF(N902=\"\",\"\",O901+N902)","v":""}]
[null,null,null,null,null,null,{"$f":"IF(F903=\"\",\"\",G902+F903)","v":""},null,null,null,null,null,null,null,""]
[null,null,null,null,null,null,"",null,null,null,null,null,null,null,""]
[null,null,null,null,null,null,"",null,null,null,null,null,null,null,""]
[null,null,null,null,null,null,"",null,null,null,null,null,null,null,""]
[null,null,null,null,null,null,"",null,null,null,null,null,null,null,""]
[null,null,null,null,null,null,"",null,null,null,null,null,null,null,""]
[null,null,null,null,null,null,"",null,null,null,null,null,null,null,""]
[null,null,null,null,null,null,"",null,null,null,null,null,null,null,""]
[null,null,null,null,null,null,"",null,null,null,null,null,null,null,""]
[null,null,null,null,null,null,"",null,null,null,null,null,null,null,""]
[null,null,null,null,null,null,"",null,null,null,null,null,null,null,""]
[null,null,null,null,null,null,"",null,null,null,null,null,null,null,""]
[null,null,null,null,null,null,"",null,null,null,null,null,null,null,""]
[null,null,null,null,null,null,"",null,null,null,null,null,null,null,""]
[null,null,null,null,null,null,"",null,null,null,null,null,null,null,""]
[null,null,null,null,null,null,"",null,null,null,null,null,null,null,""]
[null,null,null,null,null,null,"",null,null,null,null,null,null,null,""]
[null,null,null,null,null,null,"",null,null,null,null,null,null,null,""]
[null,null,null,null,null,null,"",null,null,null,null,null,null,null,""]
[null,null,null,null,null,null,"",null,null,null,null,null,null,null,""]
[null,null,null,null,null,null,"",null,null,null,null,null,null,null,""]
[null,null,null,null,null,null,"",null,null,null,null,null,null,null,""]
[null,null,null,null,null,null,"",null,null,null,null,null,null,null,""]
[null,null,null,null,null,null,"",null,null,null,null,null,null,null,""]
[null,null,null,null,null,null,"",null,null,null,null,null,null,null,""]
[null,null,null,null,null,null,"",null,null,null,null,null,null,null,""]
[null,null,null,null,null,null,"",null,null,null,null,null,null,null,""]
[null,null,null,null,null,null,"",null,null,null,null,null,null,null,""]
[null,null,null,null,null,null,"",null,null,null,null,null,null,null,""]
[null,null,null,null,null,null,"",null,null,null,null,null,null,null,""]
[null,null,null,null,null,null,"",null,null,null,null,null,null,null,""]
[null,null,null,null,null,null,"",null,null,null,null,null,null,null,""]
[null,null,null,null,null,null,"",null,null,null,null,null,null,null,""]
[null,null,null,null,null,null,"",null,null,null,null,null,null,null,""]
[null,null,null,null,null,null,"",null,null,null,null,null,null,null,""]
[null,null,null,null,null,null,"",null,null,null,null,null,null,null,""]
[null,null,null,null,null,null,"",null,null,null,null,null,null,null,""]
[null,null,null,null,null,null,"",null,null,null,null,null,null,null,""]
[null,null,null,null,null,null,"",null,null,null,null,null,null,null,""]
[null,null,null,null,null,null,"",null,null,null,null,null,null,null,""]
[null,null,null,null,null,null,"",null,null,null,null,null,null,null,""]
[null,null,null,null,null,null,"",null,null,null,null,null,null,null,""]
[null,null,null,null,null,null,"",null,null,null,null,null,null,null,""]
[null,null,null,null,null,null,"",null,null,null,null,null,null,null,""]
[null,null,null,null,null,null,"",null,null,null,null,null,null,null,""]
[null,null,null,null,null,null,"",null,null,null,null,null,null,null,""]
[null,null,null,null,null,null,"",null,null,null,null,null,null,null,""]
[null,null,null,null,null,null,"",null,null,null,null,null,null,null,""]
[null,null,null,null,null,null,"",null,null,null,null,null,null,null,""]
[null,null,null,null,null,null,"",null,null,null,null,null,null,null,""]
[null,null,null,null,null,null,"",null,null,null,null,null,null,null,""]
[null,null,null,null,null,null,"",null,null,null,null,null,null,null,""]
[null,null,null,null,null,null,"",null,null,null,null,null,null,null,""]
[null,null,null,null,null,null,"",null,null,null,null,null,null,null,""]
[null,null,null,null,null,null,"",null,null,null,null,null,null,null,""]
[null,null,null,null,null,null,"",null,null,null,null,null,null,null,""]
[null,null,null,null,null,null,"",null,null,null,null,null,null,null,""]
[null,null,null,null,null,null,"",null,null,null,null,null,null,null,""]
[null,null,null,null,null,null,"",null,null,null,null,null,null,null,""]
[null,null,null,null,null,null,"",null,null,null,null,null,null,null,""]
[null,null,null,null,null,null,"",null,null,null,null,null,null,null,""]
[null,null,null,null,null,null,"",null,null,null,null,null,null,null,""]
[null,null,null,null,null,null,"",null,null,null,null,null,null,null,""]
[null,null,null,null,null,null,"",null,null,null,null,null,null,null,{"$f":"IF(N966=\"\",\"\",O965+N966)","v":""}]
[null,null,null,null,null,null,{"$f":"IF(F967=\"\",\"\",G966+F967)","v":""},null,null,null,null,null,null,null,""]
[null,null,null,null,null,null,"",null,null,null,null,null,null,null,""]
[null,null,null,null,null,null,"",null,null,null,null,null,null,null,""]
[null,null,null,null,null,null,"",null,null,null,null,null,null,null,""]
[null,null,null,null,null,null,"",null,null,null,null,null,null,null,""]
[null,null,null,null,null,null,"",null,null,null,null,null,null,null,""]
[null,null,null,null,null,null,"",null,null,null,null,null,null,null,""]
[null,null,null,null,null,null,"",null,null,null,null,null,null,null,""]
[null,null,null,null,null,null,"",null,null,null,null,null,null,null,""]
[null,null,null,null,null,null,"",null,null,null,null,null,null,null,""]
[null,null,null,null,null,null,"",null,null,null,null,null,null,null,""]
[null,null,null,null,null,null,"",null,null,null,null,null,null,null,""]
[null,null,null,null,null,null,"",null,null,null,null,null,null,null,""]
[null,null,null,null,null,null,"",null,null,null,null,null,null,null,""]
[null,null,null,null,null,null,"",null,null,null,null,null,null,null,""]
[null,null,null,null,null,null,"",null,null,null,null,null,null,null,""]
[null,null,null,null,null,null,"",null,null,null,null,null,null,null,""]
[null,null,null,null,null,null,"",null,null,null,null,null,null,null,""]
[null,null,null,null,null,null,"",null,null,null,null,null,null,null,""]
[null,null,null,null,null,null,"",null,null,null,null,null,null,null,""]
[null,null,null,null,null,null,"",null,null,null,null,null,null,null,""]
[null,null,null,null,null,null,"",null,null,null,null,null,null,null,""]
[null,null,null,null,null,null,"",null,null,null,null,null,null,null,""]
[null,null,null,null,null,null,"",null,null,null,null,null,null,null,""]
[null,null,null,null,null,null,"",null,null,null,null,null,null,null,""]
[null,null,null,null,null,null,"",null,null,null,null,null,null,null,""]
[null,null,null,null,null,null,"",null,null,null,null,null,null,null,""]
[null,null,null,null,null,null,"",null,null,null,null,null,null,null,""]
[null,null,null,null,null,null,"",null,null,null,null,null,null,null,""]
[null,null,null,null,null,null,"",null,null,null,null,null,null,null,""]
[null,null,null,null,null,null,"",null,null,null,null,null,null,null,""]
[null,null,null,null,null,null,"",null,null,null,null,null,null,null,""]
[null,null,null,null,null,null,"",null,null,null,null,null,null,null,""]
[null,null,null,null,null,null,"",null,null,null,null,null,null,null,""]
[null,null,null,null,null,null,"",null,null,null,null,null,null,null,""]
[null,null,null,null,null,null,"",null,null,null,null,null,null,null,""]
[null,null,null,null,null,null,"",null,null,null,null,null,null,null,""]
[null,null,null,null,null,null,"",null,null,null,null,null,null,null,""]
[null,null,null,null,null,null,"",null,null,null,null,null,null,null,""]
[null,null,null,null,null,null,"",null,null,null,null,null,null,null,""]
[null,null,null,null,null,null,"",null,null,null,null,null,null,null,""]
[null,null,null,null,null,null,"",null,null,null,null,null,null,null,""]
[null,null,null,null,null,null,"",null,null,null,null,null,null,null,""]
[null,null,null,null,null,null,"",null,null,null,null,null,null,null,""]
[null,null,null,null,null,null,"",null,null,null,null,null,null,null,""]
[null,null,null,null,null,null,"",null,null,null,null,null,null,null,""]
[null,null,null,null,null,null,"",null,null,null,null,null,null,null,""]
[null,null,null,null,null,null,"",null,null,null,null,null,null,null,""]
[null,null,null,null,null,null,"",null,null,null,null,null,null,null,""]
[null,null,null,null,null,null,"",null,null,null,null,null,null,null,""]
[null,null,null,null,null,null,"",null,null,null,null,null,null,null,""]
[null,null,null,null,null,null,"",null,null,null,null,null,null,null,""]
[null,null,null,null,null,null,"",null,null,null,null,null,null,null,""]
[null,null,null,null,null,null,"",null,null,null,null,null,null,null,""]
[null,null,null,null,null,null,"",null,null,null,null,null,null,null,""]
[null,null,null,null,null,null,"",null,null,null,null,null,null,null,""]
[null,null,null,null,null,null,"",null,null,null,null,null,null,null,""]
[null,null,null,null,null,null,"",null,null,null,null,null,null,null,""]
[null,null,null,null,null,null,"",null,null,null,null,null,null,null,""]
[null,null,null,null,null,null,"",null,null,null,null,null,null,null,""]
[null,null,null,null,null,null,"",null,null,null,null,null,null,null,""]
[null,null,null,null,null,null,"",null,null,null,null,null,null,null,""]
[null,null,null,null,null,null,"",null,null,null,null,null,null,null,""]
[null,null,null,null,null,null,"",null,null,null,null,null,null,null,{"$f":"IF(N1030=\"\",\"\",O1029+N1030)","v":""}]
[null,null,null,null,null,null,{"$f":"IF(F1031=\"\",\"\",G1030+F1031)","v":""},null,null,null,null,null,null,null,""]
[null,null,null,null,null,null,"",null,null,null,null,null,null,null,""]
[null,null,null,null,null,null,"",null,null,null,null,null,null,null,""]
[null,null,null,null,null,null,"",null,null,null,null,null,null,null,""]
[null,null,null,null,null,null,"",null,null,null,null,null,null,null,""]
[null,null,null,null,null,null,"",null,null,null,null,null,null,null,""]
[null,null,null,null,null,null,"",null,null,null,null,null,null,null,""]
[null,null,null,null,null,null,"",null,null,null,null,null,null,null,""]
[null,null,null,null,null,null,"",null,null,null,null,null,null,null,""]
[null,null,null,null,null,null,"",null,null,null,null,null,null,null,""]
[null,null,null,null,null,null,"",null,null,null,null,null,null,null,""]
[null,null,null,null,null,null,"",null,null,null,null,null,null,null,""]
[null,null,null,null,null,null,"",null,null,null,null,null,null,null,""]
[null,null,null,null,null,null,"",null,null,null,null,null,null,null,""]
[null,null,null,null,null,null,"",null,null,null,null,null,null,null,""]
[null,null,null,null,null,null,"",null,null,null,null,null,null,null,""]
[null,null,null,null,null,null,"",null,null,null,null,null,null,null,""]
[null,null,null,null,null,null,"",null,null,null,null,null,null,null,""]
[null,null,null,null,null,null,"",null,null,null,null,null,null,null,""]
[null,null,null,null,null,null,"",null,null,null,null,null,null,null,""]
[null,null,null,null,null,null,"",null,null,null,null,null,null,null,""]
[null,null,null,null,null,null,"",null,null,null,null,null,null,null,""]
[null,null,null,null,null,null,"",null,null,null,null,null,null,null,""]
[null,null,null,null,null,null,"",null,null,null,null,null,null,null,""]
[null,null,null,null,null,null,"",null,null,null,null,null,null,null,""]
[null,null,null,null,null,null,"",null,null,null,null,null,null,null,""]
[null,null,null,null,null,null,"",null,null,null,null,null,null,null,""]
[null,null,null,null,null,null,"",null,null,null,null,null,null,null,""]
[null,null,null,null,null,null,"",null,null,null,null,null,null,null,""]
[null,null,null,null,null,null,"",null,null,null,null,null,null,null,""]
[null,null,null,null,null,null,"",null,null,null,null,null,null,null,""]
[null,null,null,null,null,null,"",null,null,null,null,null,null,null,""]
[null,null,null,null,null,null,"",null,null,null,null,null,null,null,""]
[null,null,null,null,null,null,"",null,null,null,null,null,null,null,""]
[null,null,null,null,null,null,"",null,null,null,null,null,null,null,""]
[null,null,null,null,null,null,"",null,null,null,null,null,null,null,""]
[null,null,null,null,null,null,"",null,null,null,null,null,null,null,""]
[null,null,null,null,null,null,"",null,null,null,null,null,null,null,""]
[null,null,null,null,null,null,"",null,null,null,null,null,null,null,""]
[null,null,null,null,null,null,"",null,null,null,null,null,null,null,""]
[null,null,null,null,null,null,"",null,null,null,null,null,null,null,""]
[null,null,null,null,null,null,"",null,null,null,null,null,null,null,""]
[null,null,null,null,null,null,"",null,null,null,null,null,null,null,""]
[null,null,null,null,null,null,"",null,null,null,null,null,null,null,""]
[null,null,null,null,null,null,"",null,null,null,null,null,null,null,""]
[null,null,null,null,null,null,"",null,null,null,null,null,null,null,""]
[null,null,null,null,null,null,"",null,null,null,null,null,null,null,""]
[null,null,null,null,null,null,"",null,null,null,null,null,null,null,""]
[null,null,null,null,null,null,"",null,null,null,null,null,null,null,""]
[null,null,null,null,null,null,"",null,null,null,null,null,null,null,""]
[null,null,null,null,null,null,"",null,null,null,null,null,null,null,""]
[null,null,null,null,null,null,"",null,null,null,null,null,null,null,""]
[null,null,null,null,null,null,"",null,null,null,null,null,null,null,""]
[null,null,null,null,null,null,"",null,null,null,null,null,null,null,""]
[null,null,null,null,null,null,"",null,null,null,null,null,null,null,""]
[null,null,null,null,null,null,"",null,null,null,null,null,null,null,""]
[null,null,null,null,null,null,"",null,null,null,null,null,null,null,""]
[null,null,null,null,null,null,"",null,null,null,null,null,null,null,""]
[null,null,null,null,null,null,"",null,null,null,null,null,null,null,""]
[null,null,null,null,null,null,"",null,null,null,null,null,null,null,""]
[null,null,null,null,null,null,"",null,null,null,null,null,null,null,""]
[null,null,null,null,null,null,"",null,null,null,null,null,null,null,""]
[null,null,null,null,null,null,"",null,null,null,null,null,null,null,""]
[null,null,null,null,null,null,"",null,null,null,null,null,null,null,{"$f":"IF(N1094=\"\",\"\",O1093+N1094)","v":""}]
[null,null,null,null,null,null,{"$f":"IF(F1095=\"\",\"\",G1094+F1095)","v":""},null,null,null,null,null,null,null,""]
[null,null,null,null,null,null,"",null,null,null,null,null,null,null,""]
[null,null,null,null,null,null,"",null,null,null,null,null,null,null,""]
[null,null,null,null,null,null,"",null,null,null,null,null,null,null,""]
[null,null,null,null,null,null,"",null,null,null,null,null,null,null,""]
[null,null,null,null,null,null,"",null,null,null,null,null,null,null,""]
[null,null,null,null,null,null,"",null,null,null,null,null,null,null,""]
[null,null,null,null,null,null,"",null,null,null,null,null,null,null,""]
[null,null,null,null,null,null,"",null,null,null,null,null,null,null,""]
[null,null,null,null,null,null,"",null,null,null,null,null,null,null,""]
[null,null,null,null,null,null,"",null,null,null,null,null,null,null,""]
[null,null,null,null,null,null,"",null,null,null,null,null,null,null,""]
[null,null,null,null,null,null,"",null,null,null,null,null,null,null,""]
[null,null,null,null,null,null,"",null,null,null,null,null,null,null,""]
[null,null,null,null,null,null,"",null,null,null,null,null,null,null,""]
[null,null,null,null,null,null,"",null,null,null,null,null,null,null,""]
[null,null,null,null,null,null,"",null,null,null,null,null,null,null,""]
[null,null,null,null,null,null,"",null,null,null,null,null,null,null,""]
[null,null,null,null,null,null,"",null,null,null,null,null,null,null,""]
[null,null,null,null,null,null,"",null,null,null,null,null,null,null,""]
[null,null,null,null,null,null,"",null,null,null,null,null,null,null,""]
[null,null,null,null,null,null,"",null,null,null,null,null,null,null,""]
[null,null,null,null,null,null,"",null,null,null,null,null,null,null,""]
[null,null,null,null,null,null,"",null,null,null,null,null,null,null,""]
[null,null,null,null,null,null,"",null,null,null,null,null,null,null,""]
[null,null,null,null,null,null,"",null,null,null,null,null,null,null,""]
[null,null,null,null,null,null,"",null,null,null,null,null,null,null,""]
[null,null,null,null,null,null,"",null,null,null,null,null,null,null,""]
[null,null,null,null,null,null,"",null,null,null,null,null,null,null,""]
[null,null,null,null,null,null,"",null,null,null,null,null,null,null,""]
[null,null,null,null,null,null,"",null,null,null,null,null,null,null,""]
[null,null,null,null,null,null,"",null,null,null,null,null,null,null,""]
[null,null,null,null,null,null,"",null,null,null,null,null,null,null,""]
[null,null,null,null,null,null,"",null,null,null,null,null,null,null,""]
[null,null,null,null,null,null,"",null,null,null,null,null,null,null,""]
[null,null,null,null,null,null,"",null,null,null,null,null,null,null,""]
[null,null,null,null,null,null,"",null,null,null,null,null,null,null,""]
[null,null,null,null,null,null,"",null,null,null,null,null,null,null,""]
[null,null,null,null,null,null,"",null,null,null,null,null,null,null,""]
[null,null,null,null,null,null,"",null,null,null,null,null,null,null,""]
[null,null,null,null,null,null,"",null,null,null,null,null,null,null,""]
[null,null,null,null,null,null,"",null,null,null,null,null,null,null,""]
[null,null,null,null,null,null,"",null,null,null,null,null,null,null,""]
[null,null,null,null,null,null,"",null,null,null,null,null,null,null,""]
[null,null,null,null,null,null,"",null,null,null,null,null,null,null,""]
[null,null,null,null,null,null,"",null,null,null,null,null,null,null,""]
[null,null,null,null,null,null,"",null,null,null,null,null,null,null,""]
[null,null,null,null,null,null,"",null,null,null,null,null,null,null,{"$f":"IF(N1142=\"\",\"\",O1141+N1142)","v":""}]
[null,null,null,null,null,null,"",null,null,null,null,null,null,null,""]
[null,null,null,null,null,null,"",null,null,null,null,null,null,null,""]
[null,null,null,null,null,null,"",null,null,null,null,null,null,null,""]
[null,null,null,null,null,null,"",null,null,null,null,null,null,null,""]
[null,null,null,null,null,null,""]
[null,null,null,null,null,null,""]
[null,null,null,null,null,null,""]
[null,null,null,null,null,null,""]
[null,null,null,null,null,null,""]
[null,null,null,null,null,null,""]
[null,null,null,null,null,null,""]
[null,null,null,null,null,null,""]
[null,null,null,null,null,null,""]
[null,null,null,null,null,null,""]
[null,null,null,null,null,null,""]
[null,null,null,null,null,null,""]
[null,null,null,null,null,null,{"$f":"IF(F1159=\"\",\"\",G1158+F1159)","v":""}]
[null,null,null,null,null,null,""]
[null,null,null,null,null,null,""]
[null,null,null,null,null,null,""]
[null,null,null,null,null,null,""]
[null,null,null,null,null,null,""]
[null,null,null,null,null,null,""]
[null,null,null,null,null,null,""]
[null,null,null,null,null,null,""]
[null,null,null,null,null,null,""]
[null,null,null,null,null,null,""]
[null,null,null,null,null,null,""]
[null,null,null,null,null,null,""]
[null,null,null,null,null,null,""]
[null,null,null,null,null,null,""]
[null,null,null,null,null,null,""]
[null,null,null,null,null,null,""]
[null,null,null,null,null,null,""]
[null,null,null,null,null,null,""]
[null,null,null,null,null,null,""]
[null,null,null,null,null,null,""]
[null,null,null,null,null,null,""]
[null,null,null,null,null,null,""]
[null,null,null,null,null,null,""]
[null,null,null,null,null,null,""]
[null,null,null,null,null,null,""]
[null,null,null,null,null,null,""]
[null,null,null,null,null,null,""]
[null,null,null,null,null,null,""]
[null,null,null,null,null,null,""]
[null,null,null,null,null,null,""]
[null,null,null,null,null,null,""]
[null,null,null,null,null,null,""]
[null,null,null,null,null,null,""]
[null,null,null,null,null,null,""]
[null,null,null,null,null,null,""]
[null,null,null,null,null,null,""]
[null,null,null,null,null,null,""]
[null,null,null,null,null,null,""]
[null,null,null,null,null,null,""]
[null,null,null,null,null,null,""]
[null,null,null,null,null,null,""]
[null,null,null,null,null,null,""]
[null,null,null,null,null,null,""]
[null,null,null,null,null,null,""]
[null,null,null,null,null,null,""]
[null,null,null,null,null,null,""]
[null,null,null,null,null,null,""]
[null,null,null,null,null,null,""]
[null,null,null,null,null,null,""]
[null,null,null,null,null,null,""]
[null,null,null,null,null,null,""]
[null,null,null,null,null,null,""]
[null,null,null,null,null,null,""]
[null,null,null,null,null,null,""]
[null,null,null,null,null,null,""]
[null,null,null,null,null,null,""]
[null,null,null,null,null,null,""]
[null,null,null,null,null,null,""]
[null,null,null,null,null,null,""]
[null,null,null,null,null,null,""]
[null,null,null,null,null,null,""]
[null,null,null,null,null,null,""]
[null,null,null,null,null,null,""]
[null,null,null,null,null,null,{"$f":"IF(F1223=\"\",\"\",G1222+F1223)","v":""}]
[null,null,null,null,null,null,""]
[null,null,null,null,null,null,""]
[null,null,null,null,null,null,""]
[null,null,null,null,null,null,""]
[null,null,null,null,null,null,""]
[null,null,null,null,null,null,""]
[null,null,null,null,null,null,""]
[null,null,null,null,null,null,""]
[null,null,null,null,null,null,""]
[null,null,null,null,null,null,""]
[null,null,null,null,null,null,""]
[null,null,null,null,null,null,""]
[null,null,null,null,null,null,""]
[null,null,null,null,null,null,""]
[null,null,null,null,null,null,""]
[null,null,null,null,null,null,""]
[null,null,null,null,null,null,""]
[null,null,null,null,null,null,""]
[null,null,null,null,null,null,""]
[null,null,null,null,null,null,""]
[null,null,null,null,null,null,""]
[null,null,null,null,null,null,""]
[null,null,null,null,null,null,""]
[null,null,null,null,null,null,""]
[null,null,null,null,null,null,""]
[null,null,null,null,null,null,""]
[null,null,null,null,null,null,""]
[null,null,null,null,null,null,""]
[null,null,null,null,null,null,""]
[null,null,null,null,null,null,""]
[null,null,null,null,null,null,""]
[null,null,null,null,null,null,""]
[null,null,null,null,null,null,""]
[null,null,null,null,null,null,""]
[null,null,null,null,null,null,""]
[null,null,null,null,null,null,""]
[null,null,null,null,null,null,""]
[null,null,null,null,null,null,""]
[null,null,null,null,null,null,""]
[null,null,null,null,null,null,""]
[null,null,null,null,null,null,""]
[null,null,null,null,null,null,""]
[null,null,null,null,null,null,""]
[null,null,null,null,null,null,""]
[null,null,null,null,null,null,""]
[null,null,null,null,null,null,""]
[null,null,null,null,null,null,""]
[null,null,null,null,null,null,""]
[null,null,null,null,null,null,""]
[null,null,null,null,null,null,""]
[null,null,null,null,null,null,""]
[null,null,null,null,null,null,"",{"$f":"IF(F1275=\"\",\"\",G1274+F1275)","v":""}]
[null,null,null,null,null,null,"",""]
[null,null,null,null,null,null,"",""]
[null,null,null,null,null,null,"",""]
[null,null,null,null,null,null,"",""]
[null,null,null,null,null,null,"",""]
[null,null,null,null,null,null,"",""]
[null,null,null,null,null,null,"",""]
[null,null,null,null,null,null,"",""]
[null,null,null,null,null,null,"",""]
[null,null,null,null,null,null,"",""]
[null,null,null,null,null,null,"",""]
[null,null,null,null,null,null,{"$f":"IF(F1287=\"\",\"\",G1286+F1287)","v":""},""]
[null,null,null,null,null,null,"",""]
[null,null,null,null,null,null,"",""]
[null,null,null,null,null,null,"",""]
[null,null,null,null,null,null,"",""]
[null,null,null,null,null,null,"",""]
[null,null,null,null,null,null,"",""]
[null,null,null,null,null,null,"",""]
[null,null,null,null,null,null,"",""]
[null,null,null,null,null,null,"",""]
[null,null,null,null,null,null,"",""]
[null,null,null,null,null,null,"",""]
[null,null,null,null,null,null,"",""]
[null,null,null,null,null,null,"",""]
[null,null,null,null,null,null,"",""]
[null,null,null,null,null,null,"",""]
[null,null,null,null,null,null,"",""]
[null,null,null,null,null,null,"",""]
[null,null,null,null,null,null,"",""]
[null,null,null,null,null,null,"",""]
[null,null,null,null,null,null,"",{"$f":"IF(F1307=\"\",\"\",G1306+F1307)","v":""}]
[null,null,null,null,null,null,"",""]
[null,null,null,null,null,null,"",""]
[null,null,null,null,null,null,"",""]
[null,null,null,null,null,null,"",""]
[null,null,null,null,null,null,"",""]
[null,null,null,null,null,null,"",""]
[null,null,null,null,null,null,"",""]
[null,null,null,null,null,null,"",""]
[null,null,null,null,null,null,"",""]
[null,null,null,null,null,null,"",""]
[null,null,null,null,null,null,"",""]
[null,null,null,null,null,null,"",""]
[null,null,null,null,null,null,"",""]
[null,null,null,null,null,null,"",""]
[null,null,null,null,null,null,"",""]
[null,null,null,null,null,null,"",""]
[null,null,null,null,null,null,"",""]
[null,null,null,null,null,null,"",""]
[null,null,null,null,null,null,"",""]
[null,null,null,null,null,null,"",""]
[null,null,null,null,null,null,"",""]
[null,null,null,null,null,null,"",""]
[null,null,null,null,null,null,"",""]
[null,null,null,null,null,null,"",""]
[null,null,null,null,null,null,"",""]
[null,null,null,null,null,null,"",""]
[null,null,null,null,null,null,"",""]
[null,null,null,null,null,null,"",""]
[null,null,null,null,null,null,"",""]
[null,null,null,null,null,null,"",""]
[null,null,null,null,null,null,"",""]
[null,null,null,null,null,null,"",{"$f":"IF(F1339=\"\",\"\",G1338+F1339)","v":""}]
[null,null,null,null,null,null,"",""]
[null,null,null,null,null,null,"",""]
[null,null,null,null,null,null,"",""]
[null,null,null,null,null,null,"",""]
[null,null,null,null,null,null,"",""]
[null,null,null,null,null,null,"",""]
[null,null,null,null,null,null,"",""]
[null,null,null,null,null,null,"",""]
[null,null,null,null,null,null,"",""]
[null,null,null,null,null,null,"",""]
[null,null,null,null,null,null,"",""]
[null,null,null,null,null,null,{"$f":"IF(F1351=\"\",\"\",G1350+F1351)","v":""},""]
[null,null,null,null,null,null,"",""]
[null,null,null,null,null,null,"",""]
[null,null,null,null,null,null,"",""]
[null,null,null,null,null,null,"",""]
[null,null,null,null,null,null,"",""]
[null,null,null,null,null,null,"",""]
[null,null,null,null,null,null,"",""]
[null,null,null,null,null,null,"",""]
[null,null,null,null,null,null,"",""]
[null,null,null,null,null,null,"",""]
[null,null,null,null,null,null,"",""]
[null,null,null,null,null,null,"",""]
[null,null,null,null,null,null,"",""]
[null,null,null,null,null,null,"",""]
[null,null,null,null,null,null,"",""]
[null,null,null,null,null,null,"",""]
[null,null,null,null,null,null,"",""]
[null,null,null,null,null,null,"",""]
[null,null,null,null,null,null,"",""]
[null,null,null,null,null,null,""]
[null,null,null,null,null,null,""]
[null,null,null,null,null,null,""]
[null,null,null,null,null,null,""]
[null,null,null,null,null,null,""]
[null,null,null,null,null,null,"",{"$f":"IF(F1376=\"\",\"\",G1375+F1376)","v":""}]
[null,null,null,null,null,null,"",{"$f":"IF(F1377=\"\",\"\",G1376+F1377)","v":""}]
[null,null,null,null,null,null,"",{"$f":"IF(F1378=\"\",\"\",G1377+F1378)","v":""}]
[null,null,null,null,null,null,""]
[null,null,null,null,null,null,""]
[null,null,null,null,null,null,"",{"$f":"IF(F1381=\"\",\"\",G1380+F1381)","v":""}]
[null,null,null,null,null,null,"",""]
[null,null,null,null,null,null,"",""]
[null,null,null,null,null,null,"",""]
[null,null,null,null,null,null,"",""]
[null,null,null,null,null,null,"",""]
[null,null,null,null,null,null,"",""]
[null,null,null,null,null,null,"",""]
[null,null,null,null,null,null,"",""]
[null,null,null,null,null,null,"",""]
[null,null,null,null,null,null,"",""]
[null,null,null,null,null,null,"",""]
[null,null,null,null,null,null,"",""]
[null,null,null,null,null,null,"",""]
[null,null,null,null,null,null,"",""]
[null,null,null,null,null,null,"",""]
[null,null,null,null,null,null,"",""]
[null,null,null,null,null,null,"",""]
[null,null,null,null,null,null,"",""]
[null,null,null,null,null,null,"",""]
[null,null,null,null,null,null,"",""]
[null,null,null,null,null,null,"",""]
[null,null,null,null,null,null,"",""]
[null,null,null,null,null,null,"",""]
[null,null,null,null,null,null,"",""]
[null,null,null,null,null,null,"",""]
[null,null,null,null,null,null,"",""]
[null,null,null,null,null,null,"",""]
[null,null,null,null,null,null,"",""]
[null,null,null,null,null,null,"",""]
[null,null,null,null,null,null,"",""]
[null,null,null,null,null,null,"",""]
[null,null,null,null,null,null,"",{"$f":"IF(F1413=\"\",\"\",G1412+F1413)","v":""}]
[null,null,null,null,null,null,"",""]
[null,null,null,null,null,null,{"$f":"IF(F1415=\"\",\"\",G1414+F1415)","v":""},""]
[null,null,null,null,null,null,"",""]
[null,null,null,null,null,null,"",""]
[null,null,null,null,null,null,"",""]
[null,null,null,null,null,null,"",""]
[null,null,null,null,null,null,"",""]
[null,null,null,null,null,null,"",""]
[null,null,null,null,null,null,"",""]
[null,null,null,null,null,null,"",""]
[null,null,null,null,null,null,"",""]
[null,null,null,null,null,null,"",""]
[null,null,null,null,null,null,"",""]
[null,null,null,null,null,null,"",""]
[null,null,null,null,null,null,"",""]
[null,null,null,null,null,null,"",""]
[null,null,null,null,null,null,"",""]
[null,null,null,null,null,null,"",""]
[null,null,null,null,null,null,"",""]
[null,null,null,null,null,null,"",""]
[null,null,null,null,null,null,"",""]
[null,null,null,null,null,null,"",""]
[null,null,null,null,null,null,"",""]
[null,null,null,null,null,null,"",""]
[null,null,null,null,null,null,"",""]
[null,null,null,null,null,null,"",""]
[null,null,null,null,null,null,"",""]
[null,null,null,null,null,null,"",""]
[null,null,null,null,null,null,"",""]
[null,null,null,null,null,null,"",""]
[null,null,null,null,null,null,"",""]
[null,null,null,null,null,null,"",{"$f":"IF(F1445=\"\",\"\",G1444+F1445)","v":""}]
[null,null,null,null,null,null,"",""]
[null,null,null,null,null,null,"",""]
[null,null,null,null,null,null,"",""]
[null,null,null,null,null,null,"",""]
[null,null,null,null,null,null,"",""]
[null,null,null,null,null,null,"",""]
[null,null,null,null,null,null,"",""]
[null,null,null,null,null,null,"",""]
[null,null,null,null,null,null,"",""]
[null,null,null,null,null,null,"",""]
[null,null,null,null,null,null,"",""]
[null,null,null,null,null,null,"",""]
[null,null,null,null,null,null,"",""]
[null,null,null,null,null,null,"",""]
[null,null,null,null,null,null,"",""]
[null,null,null,null,null,null,"",""]
[null,null,null,null,null,null,"",""]
[null,null,null,null,null,null,"",""]
[null,null,null,null,null,null,"",""]
[null,null,null,null,null,null,"",""]
[null,null,null,null,null,null,"",""]
[null,null,null,null,null,null,"",""]
[null,null,null,null,null,null,"",""]
[null,null,null,null,null,null,"",""]
[null,null,null,null,null,null,"",""]
[null,null,null,null,null,null,"",""]
[null,null,null,null,null,null,"",""]
[null,null,null,null,null,null,"",""]
[null,null,null,null,null,null,"",""]
[null,null,null,null,null,null,"",""]
[null,null,null,null,null,null,"",""]
[null,null,null,null,null,null,"",{"$f":"IF(F1477=\"\",\"\",G1476+F1477)","v":""}]
[null,null,null,null,null,null,"",""]
[null,null,null,null,null,null,{"$f":"IF(F1479=\"\",\"\",G1478+F1479)","v":""},""]
[null,null,null,null,null,null,"",""]
[null,null,null,null,null,null,"",""]
[null,null,null,null,null,null,"",""]
[null,null,null,null,null,null,"",""]
[null,null,null,null,null,null,"",""]
[null,null,null,null,null,null,"",""]
[null,null,null,null,null,null,"",""]
[null,null,null,null,null,null,"",""]
[null,null,null,null,null,null,"",""]
[null,null,null,null,null,null,"",""]
[null,null,null,null,null,null,"",""]
[null,null,null,null,null,null,"",""]
[null,null,null,null,null,null,"",""]
[null,null,null,null,null,null,"",""]
[null,null,null,null,null,null,"",""]
[null,null,null,null,null,null,"",""]
[null,null,null,null,null,null,"",""]
[null,null,null,null,null,null,"",""]
[null,null,null,null,null,null,"",""]
[null,null,null,null,null,null,"",""]
[null,null,null,null,null,null,"",""]
[null,null,null,null,null,null,"",""]
[null,null,null,null,null,null,"",""]
[null,null,null,null,null,null,"",""]
[null,null,null,null,null,null,"",""]
[null,null,null,null,null,null,"",""]
[null,null,null,null,null,null,"",""]
[null,null,null,null,null,null,"",""]
[null,null,null,null,null,null,"",""]
[null,null,null,null,null,null,"",{"$f":"IF(F1509=\"\",\"\",G1508+F1509)","v":""}]
[null,null,null,null,null,null,"",""]
[null,null,null,null,null,null,"",""]
[null,null,null,null,null,null,"",""]
[null,null,null,null,null,null,"",""]
[null,null,null,null,null,null,"",""]
[null,null,null,null,null,null,"",""]
[null,null,null,null,null,null,"",""]
[null,null,null,null,null,null,"",""]
[null,null,null,null,null,null,"",""]
[null,null,null,null,null,null,"",""]
[null,null,null,null,null,null,"",""]
[null,null,null,null,null,null,"",""]
[null,null,null,null,null,null,"",""]
[null,null,null,null,null,null,"",""]
[null,null,null,null,null,null,"",""]
[null,null,null,null,null,null,"",""]
[null,null,null,null,null,null,"",""]
[null,null,null,null,null,null,"",""]
[null,null,null,null,null,null,"",""]
[null,null,null,null,null,null,"",""]
[null,null,null,null,null,null,"",""]
[null,null,null,null,null,null,"",""]
[null,null,null,null,null,null,"",""]
[null,null,null,null,null,null,"",""]
[null,null,null,null,null,null,"",""]
[null,null,null,null,null,null,"",""]
[null,null,null,null,null,null,"",""]
[null,null,null,null,null,null,"",""]
[null,null,null,null,null,null,"",""]
[null,null,null,null,null,null,"",""]
[null,null,null,null,null,null,"",""]
[null,null,null,null,null,null,"",{"$f":"IF(F1541=\"\",\"\",G1540+F1541)","v":""}]
[null,null,null,null,null,null,"",""]
[null,null,null,null,null,null,{"$f":"IF(F1543=\"\",\"\",G1542+F1543)","v":""},""]
[null,null,null,null,null,null,"",""]
[null,null,null,null,null,null,"",""]
[null,null,null,null,null,null,"",""]
[null,null,null,null,null,null,"",""]
[null,null,null,null,null,null,"",""]
[null,null,null,null,null,null,"",""]
[null,null,null,null,null,null,"",""]
[null,null,null,null,null,null,""]
[null,null,null,null,null,null,""]
[null,null,null,null,null,null,""]
[null,null,null,null,null,null,""]
[null,null,null,null,null,null,""]
[null,null,null,null,null,null,""]
[null,null,null,null,null,null,""]
[null,null,null,null,null,null,""]
[null,null,null,null,null,null,""]
[null,null,null,null,null,null,""]
[null,null,null,null,null,null,""]
[null,null,null,null,null,null,""]
[null,null,null,null,null,null,""]
[null,null,null,null,null,null,""]
[null,null,null,null,null,null,""]
[null,null,null,null,null,null,""]
[null,null,null,null,null,null,""]
[null,null,null,null,null,null,""]
[null,null,null,null,null,null,""]
[null,null,null,null,null,null,""]
[null,null,null,null,null,null,""]
[null,null,null,null,null,null,""]
[null,null,null,null,null,null,""]
[null,null,null,null,null,null,""]
[null,null,null,null,null,null,""]
[null,null,null,null,null,null,""]
[null,null,null,null,null,null,""]
[null,null,null,null,null,null,"",{"$f":"IF(F1578=\"\",\"\",G1577+F1578)","v":""}]
[null,null,null,null,null,null,"",""]
[null,null,null,null,null,null,"",""]
[null,null,null,null,null,null,"",""]
[null,null,null,null,null,null,"",""]
[null,null,null,null,null,null,"",""]
[null,null,null,null,null,null,"",""]
[null,null,null,null,null,null,"",""]
[null,null,null,null,null,null,"",""]
[null,null,null,null,null,null,"",""]
[null,null,null,null,null,null,"",""]
[null,null,null,null,null,null,"",""]
[null,null,null,null,null,null,"",""]
[null,null,null,null,null,null,"",""]
[null,null,null,null,null,null,"",""]
[null,null,null,null,null,null,"",""]
[null,null,null,null,null,null,"",""]
[null,null,null,null,null,null,"",""]
[null,null,null,null,null,null,"",""]
[null,null,null,null,null,null,"",""]
[null,null,null,null,null,null,"",""]
[null,null,null,null,null,null,"",""]
[null,null,null,null,null,null,"",""]
[null,null,null,null,null,null,"",""]
[null,null,null,null,null,null,"",""]
[null,null,null,null,null,null,"",""]
[null,null,null,null,null,null,"",""]
[null,null,null,null,null,null,"",""]
[null,null,null,null,null,null,"",""]
[null,null,null,null,null,null,{"$f":"IF(F1607=\"\",\"\",G1606+F1607)","v":""},""]
[null,null,null,null,null,null,"",""]
[null,null,null,null,null,null,"",""]
[null,null,null,null,null,null,"",{"$f":"IF(F1610=\"\",\"\",G1609+F1610)","v":""}]
[null,null,null,null,null,null,"",""]
[null,null,null,null,null,null,"",""]
[null,null,null,null,null,null,"",""]
[null,null,null,null,null,null,"",""]
[null,null,null,null,null,null,"",""]
[null,null,null,null,null,null,"",""]
[null,null,null,null,null,null,"",""]
[null,null,null,null,null,null,"",""]
[null,null,null,null,null,null,"",""]
[null,null,null,null,null,null,"",""]
[null,null,null,null,null,null,"",""]
[null,null,null,null,null,null,"",""]
[null,null,null,null,null,null,"",""]
[null,null,null,null,null,null,"",""]
[null,null,null,null,null,null,"",""]
[null,null,null,null,null,null,"",""]
[null,null,null,null,null,null,"",""]
[null,null,null,null,null,null,"",""]
[null,null,null,null,null,null,"",""]
[null,null,null,null,null,null,"",""]
[null,null,null,null,null,null,"",""]
[null,null,null,null,null,null,"",""]
[null,null,null,null,null,null,"",""]
[null,null,null,null,null,null,"",""]
[null,null,null,null,null,null,"",""]
[null,null,null,null,null,null,"",""]
[null,null,null,null,null,null,"",""]
[null,null,null,null,null,null,"",""]
[null,null,null,null,null,null,"",""]
[null,null,null,null,null,null,"",""]
[null,null,null,null,null,null,"",""]
[null,null,null,null,null,null,"",{"$f":"IF(F1642=\"\",\"\",G1641+F1642)","v":""}]
[null,null,null,null,null,null,"",""]
[null,null,null,null,null,null,"",""]
[null,null,null,null,null,null,"",""]
[null,null,null,null,null,null,"",""]
[null,null,null,null,null,null,"",""]
[null,null,null,null,null,null,"",""]
[null,null,null,null,null,null,"",""]
[null,null,null,null,null,null,"",""]
[null,null,null,null,null,null,"",""]
[null,null,null,null,null,null,"",""]
[null,null,null,null,null,null,"",""]
[null,null,null,null,null,null,"",""]
[null,null,null,null,null,null,"",""]
[null,null,null,null,null,null,"",""]
[null,null,null,null,null,null,"",""]
[null,null,null,null,null,null,"",""]
[null,null,null,null,null,null,"",""]
[null,null,null,null,null,null,"",""]
[null,null,null,null,null,null,"",""]
[null,null,null,null,null,null,"",""]
[null,null,null,null,null,null,"",""]
[null,null,null,null,null,null,""]
[null,null,null,null,null,null,""]
[null,null,null,null,null,null,""]
[null,null,null,null,null,null,""]
[null,null,null,null,null,null,""]
[null,null,null,null,null,null,""]
[null,null,null,null,null,null,""]
[null,null,null,null,null,null,{"$f":"IF(F1671=\"\",\"\",G1670+F1671)","v":""}]
[null,null,null,null,null,null,""]
[null,null,null,null,null,null,""]
[null,null,null,null,null,null,""]
[null,null,null,null,null,null,""]
[null,null,null,null,null,null,""]
[null,null,null,null,null,null,""]
[null,null,null,null,null,null,""]
[null,null,null,null,null,null,""]
[null,null,null,null,null,null,""]
[null,null,null,null,null,null,""]
[null,null,null,null,null,null,""]
[null,null,null,null,null,null,""]
[null,null,null,null,null,null,""]
[null,null,null,null,null,null,""]
[null,null,null,null,null,null,""]
[null,null,null,null,null,null,""]
[null,null,null,null,null,null,""]
[null,null,null,null,null,null,""]
[null,null,null,null,null,null,""]
[null,null,null,null,null,null,""]
[null,null,null,null,null,null,""]
[null,null,null,null,null,null,""]
[null,null,null,null,null,null,""]
[null,null,null,null,null,null,""]
[null,null,null,null,null,null,""]
[null,null,null,null,null,null,""]
[null,null,null,null,null,null,""]
[null,null,null,null,null,null,""]
[null,null,null,null,null,null,""]
[null,null,null,null,null,null,""]
[null,null,null,null,null,null,""]
[null,null,null,null,null,null,""]
[null,null,null,null,null,null,""]
[null,null,null,null,null,null,""]
[null,null,null,null,null,null,""]
[null,null,null,null,null,null,""]
[null,null,null,null,null,null,""]
[null,null,null,null,null,null,""]
[null,null,null,null,null,null,""]
[null,null,null,null,null,null,""]
[null,null,null,null,null,null,""]
[null,null,null,null,null,null,""]
[null,null,null,null,null,null,""]
[null,null,null,null,null,null,""]
[null,null,null,null,null,null,""]
[null,null,null,null,null,null,""]
[null,null,null,null,null,null,""]
[null,null,null,null,null,null,""]
[null,null,null,null,null,null,""]
[null,null,null,null,null,null,""]
[null,null,null,null,null,null,""]
[null,null,null,null,null,null,""]
[null,null,null,null,null,null,""]
[null,null,null,null,null,null,""]
[null,null,null,null,null,null,""]
[null,null,null,null,null,null,""]
[null,null,null,null,null,null,""]
[null,null,null,null,null,null,""]
[null,null,null,null,null,null,""]
[null,null,null,null,null,null,""]
[null,null,null,null,null,null,""]
[null,null,null,null,null,null,""]
[null,null,null,null,null,null,""]
[null,null,null,null,null,null,{"$f":"IF(F1735=\"\",\"\",G1734+F1735)","v":""}]
[null,null,null,null,null,null,""]
[null,null,null,null,null,null,""]
[null,null,null,null,null,null,""]
[null,null,null,null,null,null,""]
[null,null,null,null,null,null,""]
[null,null,null,null,null,null,""]
[null,null,null,null,null,null,""]
[null,null,null,null,null,null,""]
[null,null,null,null,null,null,""]
[null,null,null,null,null,null,""]
[null,null,null,null,null,null,""]
[null,null,null,null,null,null,""]
[null,null,null,null,null,null,""]
[null,null,null,null,null,null,""]
[null,null,null,null,null,null,""]
[null,null,null,null,null,null,""]
[null,null,null,null,null,null,""]
[null,null,null,null,null,null,""]
[null,null,null,null,null,null,""]
[null,null,null,null,null,null,""]
[null,null,null,null,null,null,""]
[null,null,null,null,null,null,""]
[null,null,null,null,null,null,""]
[null,null,null,null,null,null,""]
[null,null,null,null,null,null,""]
[null,null,null,null,null,null,""]
[null,null,null,null,null,null,""]
[null,null,null,null,null,null,""]
[null,null,null,null,null,null,""]
[null,null,null,null,null,null,""]
[null,null,null,null,null,null,""]
[null,null,null,null,null,null,""]
[null,null,null,null,null,null,""]
[null,null,null,null,null,null,""]
[null,null,null,null,null,null,""]
[null,null,null,null,null,null,""]
[null,null,null,null,null,null,""]
[null,null,null,null,null,null,""]
[null,null,null,null,null,null,""]
[null,null,null,null,null,null,""]
[null,null,null,null,null,null,""]
[null,null,null,null,null,null,""]
[null,null,null,null,null,null,""]
[null,null,null,null,null,null,""]
[null,null,null,null,null,null,""]
[null,null,null,null,null,null,""]
[null,null,null,null,null,null,""]
[null,null,null,null,null,null,""]
[null,null,null,null,null,null,""]
[null,null,null,null,null,null,""]
[null,null,null,null,null,null,""]
[null,null,null,null,null,null,""]
[null,null,null,null,null,null,""]
[null,null,null,null,null,null,""]
[null,null,null,null,null,null,""]
[null,null,null,null,null,null,""]
[null,null,null,null,null,null,""]
[null,null,null,null,null,null,""]
[null,null,null,null,null,null,""]
[null,null,null,null,null,null,""]
[null,null,null,null,null,null,""]
[null,null,null,null,null,null,""]
[null,null,null,null,null,null,""]
[null,null,null,null,null,null,{"$f":"IF(F1799=\"\",\"\",G1798+F1799)","v":""}]
[null,null,null,null,null,null,""]
[null,null,null,null,null,null,""]
[null,null,null,null,null,null,""]
[null,null,null,null,null,null,""]
[null,null,null,null,null,null,""]
[null,null,null,null,null,null,""]
[null,null,null,null,null,null,""]
[null,null,null,null,null,null,""]
[null,null,null,null,null,null,""]
[null,null,null,null,null,null,""]
[null,null,null,null,null,null,""]
[null,null,null,null,null,null,""]
[null,null,null,null,null,null,""]
[null,null,null,null,null,null,""]
[null,null,null,null,null,null,""]
[null,null,null,null,null,null,""]
[null,null,null,null,null,null,""]
[null,null,null,null,null,null,""]
[null,null,null,null,null,null,""]
[null,null,null,null,null,null,""]
[null,null,null,null,null,null,""]
[null,null,null,null,null,null,""]
[null,null,null,null,null,null,""]
[null,null,null,null,null,null,""]
[null,null,null,null,null,null,""]
[null,null,null,null,null,null,""]
[null,null,null,null,null,null,""]
[null,null,null,null,null,null,""]
[null,null,null,null,null,null,""]
[null,null,null,null,null,null,""]
[null,null,null,null,null,null,""]
[null,null,null,null,null,null,""]
[null,null,null,null,null,null,""]
[null,null,null,null,null,null,""]
[null,null,null,null,null,null,""]
[null,null,null,null,null,null,""]
[null,null,null,null,null,null,""]
[null,null,null,null,null,null,""]
[null,null,null,null,null,null,""]
[null,null,null,null,null,null,""]
[null,null,null,null,null,null,""]
[null,null,null,null,null,null,""]
[null,null,null,null,null,null,""]
[null,null,null,null,null,null,""]
[null,null,null,null,null,null,""]
[null,null,null,null,null,null,""]
[null,null,null,null,null,null,""]
[null,null,null,null,null,null,""]
[null,null,null,null,null,null,""]
[null,null,null,null,null,null,""]
[null,null,null,null,null,null,""]
[null,null,null,null,null,null,""]
[null,null,null,null,null,null,""]
[null,null,null,null,null,null,""]
[null,null,null,null,null,null,""]
[null,null,null,null,null,null,""]
[null,null,null,null,null,null,""]
[null,null,null,null,null,null,""]
[null,null,null,null,null,null,""]
[null,null,null,null,null,null,""]
[null,null,null,null,null,null,""]
[null,null,null,null,null,null,""]
[null,null,null,null,null,null,""]
[null,null,null,null,null,null,{"$f":"IF(F1863=\"\",\"\",G1862+F1863)","v":""}]
[null,null,null,null,null,null,""]
[null,null,null,null,null,null,""]
[null,null,null,null,null,null,""]
[null,null,null,null,null,null,""]
[null,null,null,null,null,null,""]
[null,null,null,null,null,null,""]
[null,null,null,null,null,null,""]
[null,null,null,null,null,null,""]
[null,null,null,null,null,null,""]
[null,null,null,null,null,null,""]
[null,null,null,null,null,null,""]
[null,null,null,null,null,null,""]
[null,null,null,null,null,null,""]
[null,null,null,null,null,null,""]
[null,null,null,null,null,null,""]
[null,null,null,null,null,null,""]
[null,null,null,null,null,null,""]
[null,null,null,null,null,null,""]
[null,null,null,null,null,null,""]
[null,null,null,null,null,null,""]
[null,null,null,null,null,null,""]
[null,null,null,null,null,null,""]
[null,null,null,null,null,null,""]
[null,null,null,null,null,null,""]
[null,null,null,null,null,null,""]
[null,null,null,null,null,null,""]
[null,null,null,null,null,null,""]
[null,null,null,null,null,null,""]
[null,null,null,null,null,null,""]
[null,null,null,null,null,null,""]
[null,null,null,null,null,null,""]
[null,null,null,null,null,null,""]
[null,null,null,null,null,null,""]
[null,null,null,null,null,null,""]
[null,null,null,null,null,null,""]
[null,null,null,null,null,null,""]
[null,null,null,null,null,null,""]
[null,null,null,null,null,null,""]
[null,null,null,null,null,null,""]
[null,null,null,null,null,null,""]
[null,null,null,null,null,null,""]
[null,null,null,null,null,null,""]
[null,null,null,null,null,null,""]
[null,null,null,null,null,null,""]
[null,null,null,null,null,null,""]
[null,null,null,null,null,null,""]
[null,null,null,null,null,null,""]
[null,null,null,null,null,null,""]
[null,null,null,null,null,null,""]
[null,null,null,null,null,null,""]
[null,null,null,null,null,null,""]
[null,null,null,null,null,null,""]
[null,null,null,null,null,null,""]
[null,null,null,null,null,null,""]
[null,null,null,null,null,null,""]
[null,null,null,null,null,null,""]
[null,null,null,null,null,null,""]
[null,null,null,null,null,null,""]
[null,null,null,null,null,null,""]
[null,null,null,null,null,null,""]
[null,null,null,null,null,null,""]
[null,null,null,null,null,null,""]
[null,null,null,null,null,null,""]
[null,null,null,null,null,null,{"$f":"IF(F1927=\"\",\"\",G1926+F1927)","v":""}]
[null,null,null,null,null,null,""]
[null,null,null,null,null,null,""]
[null,null,null,null,null,null,""]
[null,null,null,null,null,null,""]
[null,null,null,null,null,null,""]
[null,null,null,null,null,null,""]
[null,null,null,null,null,null,""]
[null,null,null,null,null,null,""]
[null,null,null,null,null,null,""]
[null,null,null,null,null,null,""]
[null,null,null,null,null,null,""]
[null,null,null,null,null,null,""]
[null,null,null,null,null,null,""]
[null,null,null,null,null,null,""]
[null,null,null,null,null,null,""]
[null,null,null,null,null,null,""]
[null,null,null,null,null,null,""]
[null,null,null,null,null,null,""]
[null,null,null,null,null,null,""]
[null,null,null,null,null,null,""]
[null,null,null,null,null,null,""]
[null,null,null,null,null,null,""]
[null,null,null,null,null,null,""]
[null,null,null,null,null,null,""]
[null,null,null,null,null,null,""]
[null,null,null,null,null,null,""]
[null,null,null,null,null,null,""]
[null,null,null,null,null,null,""]
[null,null,null,null,null,null,""]
[null,null,null,null,null,null,""]
[null,null,null,null,null,null,""]
[null,null,null,null,null,null,""]
[null,null,null,null,null,null,""]
[null,null,null,null,null,null,""]
[null,null,null,null,null,null,""]
[null,null,null,null,null,null,""]
[null,null,null,null,null,null,""]
[null,null,null,null,null,null,""]
[null,null,null,null,null,null,""]
[null,null,null,null,null,null,""]
[null,null,null,null,null,null,""]
[null,null,null,null,null,null,""]
[null,null,null,null,null,null,""]
[null,null,null,null,null,null,""]
[null,null,null,null,null,null,""]
[null,null,null,null,null,null,""]
[null,null,null,null,null,null,""]
[null,null,null,null,null,null,""]
[null,null,null,null,null,null,""]
[null,null,null,null,null,null,""]
[null,null,null,null,null,null,""]
[null,null,null,null,null,null,""]
[null,null,null,null,null,null,""]
[null,null,null,null,null,null,""]
[null,null,null,null,null,null,""]
[null,null,null,null,null,null,""]
[null,null,null,null,null,null,""]
[null,null,null,null,null,null,""]
[null,null,null,null,null,null,""]
[null,null,null,null,null,null,""]
[null,null,null,null,null,null,""]
[null,null,null,null,null,null,""]
[null,null,null,null,null,null,""]
[null,null,null,null,null,null,{"$f":"IF(F1991=\"\",\"\",G1990+F1991)","v":""}]
[null,null,null,null,null,null,""]
[null,null,null,null,null,null,""]
[null,null,null,null,null,null,""]
[null,null,null,null,null,null,""]
[null,null,null,null,null,null,""]
[null,null,null,null,null,null,""]
[null,null,null,null,null,null,""]
[null,null,null,null,null,null,""]
[null,null,null,null,null,null,""]
[null,null,null,null,null,null,""]
[null,null,null,null,null,null,""]
[null,null,null,null,null,null,""]
[null,null,null,null,null,null,""]
[null,null,null,null,null,null,""]
[null,null,null,null,null,null,""]
[null,null,null,null,null,null,""]
[null,null,null,null,null,null,""]
[null,null,null,null,null,null,""]
[null,null,null,null,null,null,""]
[null,null,null,null,null,null,""]
[null,null,null,null,null,null,""]
[null,null,null,null,null,null,""]
[null,null,null,null,null,null,""]
[null,null,null,null,null,null,""]
[null,null,null,null,null,null,""]
[null,null,null,null,null,null,""]
[null,null,null,null,null,null,""]
[null,null,null,null,null,null,""]
[null,null,null,null,null,null,""]
[null,null,null,null,null,null,""]
[null,null,null,null,null,null,""]
[null,null,null,null,null,null,""]
[null,null,null,null,null,null,""]
[null,null,null,null,null,null,""]
[null,null,null,null,null,null,""]
[null,null,null,null,null,null,""]
[null,null,null,null,null,null,""]
[null,null,null,null,null,null,""]
[null,null,null,null,null,null,""]
[null,null,null,null,null,null,""]
[null,null,null,null,null,null,""]
[null,null,null,null,null,null,""]
[null,null,null,null,null,null,""]
[null,null,null,null,null,null,""]
[null,null,null,null,null,null,""]
[null,null,null,null,null,null,""]
[null,null,null,null,null,null,""]
[null,null,null,null,null,null,""]
[null,null,null,null,null,null,""]
[null,null,null,null,null,null,""]
[null,null,null,null,null,null,""]
[null,null,null,null,null,null,""]
[null,null,null,null,null,null,""]
[null,null,null,null,null,null,""]
[null,null,null,null,null,null,""]
[null,null,null,null,null,null,""]
[null,null,null,null,null,null,""]
[null,null,null,null,null,null,""]
[null,null,null,null,null,null,""]
[null,null,null,null,null,null,""]
[null,null,null,null,null,null,""]
[null,null,null,null,null,null,""]
[null,null,null,null,null,null,""]
[null,null,null,null,null,null,{"$f":"IF(F2055=\"\",\"\",G2054+F2055)","v":""}]
[null,null,null,null,null,null,""]
[null,null,null,null,null,null,""]
[null,null,null,null,null,null,""]
[null,null,null,null,null,null,""]
[null,null,null,null,null,null,""]
[null,null,null,null,null,null,""]
[null,null,null,null,null,null,""]
[null,null,null,null,null,null,""]
[null,null,null,null,null,null,""]
[null,null,null,null,null,null,""]
[null,null,null,null,null,null,""]
[null,null,null,null,null,null,""]
[null,null,null,null,null,null,""]
[null,null,null,null,null,null,""]
[null,null,null,null,null,null,""]
[null,null,null,null,null,null,""]
[null,null,null,null,null,null,""]
[null,null,null,null,null,null,""]
[null,null,null,null,null,null,""]
[null,null,null,null,null,null,""]
[null,null,null,null,null,null,""]
[null,null,null,null,null,null,""]
[null,null,null,null,null,null,""]
[null,null,null,null,null,null,""]
[null,null,null,null,null,null,""]
[null,null,null,null,null,null,""]
[null,null,null,null,null,null,""]
[null,null,null,null,null,null,""]
[null,null,null,null,null,null,""]
[null,null,null,null,null,null,""]
[null,null,null,null,null,null,""]
[null,null,null,null,null,null,""]
[null,null,null,null,null,null,""]
[null,null,null,null,null,null,""]
[null,null,null,null,null,null,""]
[null,null,null,null,null,null,""]
[null,null,null,null,null,null,""]
[null,null,null,null,null,null,""]
[null,null,null,null,null,null,""]
[null,null,null,null,null,null,""]
[null,null,null,null,null,null,""]
[null,null,null,null,null,null,""]
[null,null,null,null,null,null,""]
[null,null,null,null,null,null,""]
[null,null,null,null,null,null,""]
[null,null,null,null,null,null,""]
[null,null,null,null,null,null,""]
[null,null,null,null,null,null,""]
[null,null,null,null,null,null,""]
[null,null,null,null,null,null,""]
[null,null,null,null,null,null,""]
[null,null,null,null,null,null,""]
[null,null,null,null,null,null,""]
[null,null,null,null,null,null,""]
[null,null,null,null,null,null,""]
[null,null,null,null,null,null,""]
[null,null,null,null,null,null,""]
[null,null,null,null,null,null,""]
[null,null,null,null,null,null,""]
[null,null,null,null,null,null,""]
[null,null,null,null,null,null,""]
[null,null,null,null,null,null,""]

{"sheet":"工作表2","index":1,"n_rows":0,"n_cols":0,"rows_kept":0,"cut":false,"hidden":false,"merged":[[2174,4,2174,5],[2168,4,2168,5],[2169,4,2169,5],[2170,4,2170,5],[2171,4,2171,5],[2172,4,2172,5],[2173,4,2173,5],[2162,4,2162,5],[2163,4,2163,5],[2164,4,2164,5],[2165,4,2165,5],[2166,4,2166,5],[2167,4,2167,5],[2156,4,2156,5],[2157,4,2157,5],[2158,4,2158,5],[2159,4,2159,5],[2160,4,2160,5],[2161,4,2161,5],[2150,4,2150,5],[2151,4,2151,5],[2152,4,2152,5],[2153,4,2153,5],[2154,4,2154,5],[2155,4,2155,5],[2144,4,2144,5],[2145,4,2145,5],[2146,4,2146,5],[2147,4,2147,5],[2148,4,2148,5],[2149,4,2149,5],[2138,4,2138,5],[2139,4,2139,5],[2140,4,2140,5],[2141,4,2141,5],[2142,4,2142,5],[2143,4,2143,5],[2132,4,2132,5],[2133,4,2133,5],[2134,4,2134,5],[2135,4,2135,5],[2136,4,2136,5],[2137,4,2137,5],[2126,4,2126,5],[2127,4,2127,5],[2128,4,2128,5],[2129,4,2129,5],[2130,4,2130,5],[2131,4,2131,5],[2120,4,2120,5],[2121,4,2121,5],[2122,4,2122,5],[2123,4,2123,5],[2124,4,2124,5],[2125,4,2125,5],[2114,4,2114,5],[2115,4,2115,5],[2116,4,2116,5],[2117,4,2117,5],[2118,4,2118,5],[2119,4,2119,5],[2108,4,2108,5],[2109,4,2109,5],[2110,4,2110,5],[2111,4,2111,5],[2112,4,2112,5],[2113,4,2113,5],[2102,4,2102,5],[2103,4,2103,5],[2104,4,2104,5],[2105,4,2105,5],[2106,4,2106,5],[2107,4,2107,5],[2096,4,2096,5],[2097,4,2097,5],[2098,4,2098,5],[2099,4,2099,5],[2100,4,2100,5],[2101,4,2101,5],[2090,4,2090,5],[2091,4,2091,5],[2092,4,2092,5],[2093,4,2093,5],[2094,4,2094,5],[2095,4,2095,5],[2084,4,2084,5],[2085,4,2085,5],[2086,4,2086,5],[2087,4,2087,5],[2088,4,2088,5],[2089,4,2089,5],[2078,4,2078,5],[2079,4,2079,5],[2080,4,2080,5],[2081,4,2081,5],[2082,4,2082,5],[2083,4,2083,5],[2072,4,2072,5],[2073,4,2073,5],[2074,4,2074,5],[2075,4,2075,5],[2076,4,2076,5],[2077,4,2077,5],[2066,4,2066,5],[2067,4,2067,5],[2068,4,2068,5],[2069,4,2069,5],[2070,4,2070,5],[2071,4,2071,5],[2060,4,2060,5],[2061,4,2061,5],[2062,4,2062,5],[2063,4,2063,5],[2064,4,2064,5],[2065,4,2065,5],[2054,4,2054,5],[2055,4,2055,5],[2056,4,2056,5],[2057,4,2057,5],[2058,4,2058,5],[2059,4,2059,5],[2048,4,2048,5],[2049,4,2049,5],[2050,4,2050,5],[2051,4,2051,5],[2052,4,2052,5],[2053,4,2053,5],[2042,4,2042,5],[2043,4,2043,5],[2044,4,2044,5],[2045,4,2045,5],[2046,4,2046,5],[2047,4,2047,5],[2036,4,2036,5],[2037,4,2037,5],[2038,4,2038,5],[2039,4,2039,5],[2040,4,2040,5],[2041,4,2041,5],[2030,4,2030,5],[2031,4,2031,5],[2032,4,2032,5],[2033,4,2033,5],[2034,4,2034,5],[2035,4,2035,5],[2024,4,2024,5],[2025,4,2025,5],[2026,4,2026,5],[2027,4,2027,5],[2028,4,2028,5],[2029,4,2029,5],[2018,4,2018,5],[2019,4,2019,5],[2020,4,2020,5],[2021,4,2021,5],[2022,4,2022,5],[2023,4,2023,5],[2012,4,2012,5],[2013,4,2013,5],[2014,4,2014,5],[2015,4,2015,5],[2016,4,2016,5],[2017,4,2017,5],[2006,4,2006,5],[2007,4,2007,5],[2008,4,2008,5],[2009,4,2009,5],[2010,4,2010,5],[2011,4,2011,5],[2000,4,2000,5],[2001,4,2001,5],[2002,4,2002,5],[2003,4,2003,5],[2004,4,2004,5],[2005,4,2005,5],[1994,4,1994,5],[1995,4,1995,5],[1996,4,1996,5],[1997,4,1997,5],[1998,4,1998,5],[1999,4,1999,5],[1988,4,1988,5],[1989,4,1989,5],[1990,4,1990,5],[1991,4,1991,5],[1992,4,1992,5],[1993,4,1993,5],[1982,4,1982,5],[1983,4,1983,5],[1984,4,1984,5],[1985,4,1985,5],[1986,4,1986,5],[1987,4,1987,5],[1976,4,1976,5],[1977,4,1977,5],[1978,4,1978,5],[1979,4,1979,5],[1980,4,1980,5],[1981,4,1981,5],[1970,4,1970,5],[1971,4,1971,5],[1972,4,1972,5],[1973,4,1973,5],[1974,4,1974,5],[1975,4,1975,5],[1964,4,1964,5],[1965,4,1965,5],[1966,4,1966,5],[1967,4,1967,5],[1968,4,1968,5],[1969,4,1969,5],[1958,4,1958,5],[1959,4,1959,5],[1960,4,1960,5],[1961,4,1961,5],[1962,4,1962,5],[1963,4,1963,5],[1952,4,1952,5],[1953,4,1953,5],[1954,4,1954,5],[1955,4,1955,5],[1956,4,1956,5],[1957,4,1957,5],[1946,4,1946,5],[1947,4,1947,5],[1948,4,1948,5],[1949,4,1949,5],[1950,4,1950,5],[1951,4,1951,5],[1940,4,1940,5],[1941,4,1941,5],[1942,4,1942,5],[1943,4,1943,5],[1944,4,1944,5],[1945,4,1945,5],[1934,4,1934,5],[1935,4,1935,5],[1936,4,1936,5],[1937,4,1937,5],[1938,4,1938,5],[1939,4,1939,5],[1928,4,1928,5],[1929,4,1929,5],[1930,4,1930,5],[1931,4,1931,5],[1932,4,1932,5],[1933,4,1933,5],[1922,4,1922,5],[1923,4,1923,5],[1924,4,1924,5],[1925,4,1925,5],[1926,4,1926,5],[1927,4,1927,5],[1916,4,1916,5],[1917,4,1917,5],[1918,4,1918,5],[1919,4,1919,5],[1920,4,1920,5],[1921,4,1921,5],[1910,4,1910,5],[1911,4,1911,5],[1912,4,1912,5],[1913,4,1913,5],[1914,4,1914,5],[1915,4,1915,5],[1904,4,1904,5],[1905,4,1905,5],[1906,4,1906,5],[1907,4,1907,5],[1908,4,1908,5],[1909,4,1909,5],[1898,4,1898,5],[1899,4,1899,5],[1900,4,1900,5],[1901,4,1901,5],[1902,4,1902,5],[1903,4,1903,5],[1892,4,1892,5],[1893,4,1893,5],[1894,4,1894,5],[1895,4,1895,5],[1896,4,1896,5],[1897,4,1897,5],[1886,4,1886,5],[1887,4,1887,5],[1888,4,1888,5],[1889,4,1889,5],[1890,4,1890,5],[1891,4,1891,5],[1880,4,1880,5],[1881,4,1881,5],[1882,4,1882,5],[1883,4,1883,5],[1884,4,1884,5],[1885,4,1885,5],[1874,4,1874,5],[1875,4,1875,5],[1876,4,1876,5],[1877,4,1877,5],[1878,4,1878,5],[1879,4,1879,5],[1868,4,1868,5],[1869,4,1869,5],[1870,4,1870,5],[1871,4,1871,5],[1872,4,1872,5],[1873,4,1873,5],[1862,4,1862,5],[1863,4,1863,5],[1864,4,1864,5],[1865,4,1865,5],[1866,4,1866,5],[1867,4,1867,5],[1856,4,1856,5],[1857,4,1857,5],[1858,4,1858,5],[1859,4,1859,5],[1860,4,1860,5],[1861,4,1861,5],[1850,4,1850,5],[1851,4,1851,5],[1852,4,1852,5],[1853,4,1853,5],[1854,4,1854,5],[1855,4,1855,5],[1844,4,1844,5],[1845,4,1845,5],[1846,4,1846,5],[1847,4,1847,5],[1848,4,1848,5],[1849,4,1849,5],[1838,4,1838,5],[1839,4,1839,5],[1840,4,1840,5],[1841,4,1841,5],[1842,4,1842,5],[1843,4,1843,5],[1832,4,1832,5],[1833,4,1833,5],[1834,4,1834,5],[1835,4,1835,5],[1836,4,1836,5],[1837,4,1837,5],[1826,4,1826,5],[1827,4,1827,5],[1828,4,1828,5],[1829,4,1829,5],[1830,4,1830,5],[1831,4,1831,5],[1820,4,1820,5],[1821,4,1821,5],[1822,4,1822,5],[1823,4,1823,5],[1824,4,1824,5],[1825,4,1825,5],[1814,4,1814,5],[1815,4,1815,5],[1816,4,1816,5],[1817,4,1817,5],[1818,4,1818,5],[1819,4,1819,5],[1808,4,1808,5],[1809,4,1809,5],[1810,4,1810,5],[1811,4,1811,5],[1812,4,1812,5],[1813,4,1813,5],[1802,4,1802,5],[1803,4,1803,5],[1804,4,1804,5],[1805,4,1805,5],[1806,4,1806,5],[1807,4,1807,5],[1796,4,1796,5],[1797,4,1797,5],[1798,4,1798,5],[1799,4,1799,5],[1800,4,1800,5],[1801,4,1801,5],[1790,4,1790,5],[1791,4,1791,5],[1792,4,1792,5],[1793,4,1793,5],[1794,4,1794,5],[1795,4,1795,5],[1784,4,1784,5],[1785,4,1785,5],[1786,4,1786,5],[1787,4,1787,5],[1788,4,1788,5],[1789,4,1789,5],[1778,4,1778,5],[1779,4,1779,5],[1780,4,1780,5],[1781,4,1781,5],[1782,4,1782,5],[1783,4,1783,5],[1772,4,1772,5],[1773,4,1773,5],[1774,4,1774,5],[1775,4,1775,5],[1776,4,1776,5],[1777,4,1777,5],[1766,4,1766,5],[1767,4,1767,5],[1768,4,1768,5],[1769,4,1769,5],[1770,4,1770,5],[1771,4,1771,5],[1760,4,1760,5],[1761,4,1761,5],[1762,4,1762,5],[1763,4,1763,5],[1764,4,1764,5],[1765,4,1765,5],[1754,4,1754,5],[1755,4,1755,5],[1756,4,1756,5],[1757,4,1757,5],[1758,4,1758,5],[1759,4,1759,5],[1748,4,1748,5],[1749,4,1749,5],[1750,4,1750,5],[1751,4,1751,5],[1752,4,1752,5],[1753,4,1753,5],[1742,4,1742,5],[1743,4,1743,5],[1744,4,1744,5],[1745,4,1745,5],[1746,4,1746,5],[1747,4,1747,5],[1736,4,1736,5],[1737,4,1737,5],[1738,4,1738,5],[1739,4,1739,5],[1740,4,1740,5],[1741,4,1741,5],[1730,4,1730,5],[1731,4,1731,5],[1732,4,1732,5],[1733,4,1733,5],[1734,4,1734,5],[1735,4,1735,5],[1724,4,1724,5],[1725,4,1725,5],[1726,4,1726,5],[1727,4,1727,5],[1728,4,1728,5],[1729,4,1729,5],[1718,4,1718,5],[1719,4,1719,5],[1720,4,1720,5],[1721,4,1721,5],[1722,4,1722,5],[1723,4,1723,5],[1712,4,1712,5],[1713,4,1713,5],[1714,4,1714,5],[1715,4,1715,5],[1716,4,1716,5],[1717,4,1717,5],[1706,4,1706,5],[1707,4,1707,5],[1708,4,1708,5],[1709,4,1709,5],[1710,4,1710,5],[1711,4,1711,5],[1700,4,1700,5],[1701,4,1701,5],[1702,4,1702,5],[1703,4,1703,5],[1704,4,1704,5],[1705,4,1705,5],[1694,4,1694,5],[1695,4,1695,5],[1696,4,1696,5],[1697,4,1697,5],[1698,4,1698,5],[1699,4,1699,5],[1688,4,1688,5],[1689,4,1689,5],[1690,4,1690,5],[1691,4,1691,5],[1692,4,1692,5],[1693,4,1693,5],[1682,4,1682,5],[1683,4,1683,5],[1684,4,1684,5],[1685,4,1685,5],[1686,4,1686,5],[1687,4,1687,5],[1676,4,1676,5],[1677,4,1677,5],[1678,4,1678,5],[1679,4,1679,5],[1680,4,1680,5],[1681,4,1681,5],[1670,4,1670,5],[1671,4,1671,5],[1672,4,1672,5],[1673,4,1673,5],[1674,4,1674,5],[1675,4,1675,5],[1664,4,1664,5],[1665,4,1665,5],[1666,4,1666,5],[1667,4,1667,5],[1668,4,1668,5],[1669,4,1669,5],[1572,4,1572,5],[1573,4,1573,5],[1574,4,1574,5],[1575,4,1575,5],[1576,4,1576,5],[1663,4,1663,5],[1566,4,1566,5],[1567,4,1567,5],[1568,4,1568,5],[1569,4,1569,5],[1570,4,1570,5],[1571,4,1571,5],[1560,4,1560,5],[1561,4,1561,5],[1562,4,1562,5],[1563,4,1563,5],[1564,4,1564,5],[1565,4,1565,5],[1554,4,1554,5],[1555,4,1555,5],[1556,4,1556,5],[1557,4,1557,5],[1558,4,1558,5],[1559,4,1559,5],[1378,4,1378,5],[1379,4,1379,5],[1550,4,1550,5],[1551,4,1551,5],[1552,4,1552,5],[1553,4,1553,5],[1273,4,1273,5],[1370,4,1370,5],[1371,4,1371,5],[1372,4,1372,5],[1373,4,1373,5],[1374,4,1374,5],[1267,4,1267,5],[1268,4,1268,5],[1269,4,1269,5],[1270,4,1270,5],[1271,4,1271,5],[1272,4,1272,5],[1261,4,1261,5],[1262,4,1262,5],[1263,4,1263,5],[1264,4,1264,5],[1265,4,1265,5],[1266,4,1266,5],[1255,4,1255,5],[1256,4,1256,5],[1257,4,1257,5],[1258,4,1258,5],[1259,4,1259,5],[1260,4,1260,5],[1249,4,1249,5],[1250,4,1250,5],[1251,4,1251,5],[1252,4,1252,5],[1253,4,1253,5],[1254,4,1254,5],[1243,4,1243,5],[1244,4,1244,5],[1245,4,1245,5],[1246,4,1246,5],[1247,4,1247,5],[1248,4,1248,5],[1237,4,1237,5],[1238,4,1238,5],[1239,4,1239,5],[1240,4,1240,5],[1241,4,1241,5],[1242,4,1242,5],[1231,4,1231,5],[1232,4,1232,5],[1233,4,1233,5],[1234,4,1234,5],[1235,4,1235,5],[1236,4,1236,5],[1225,4,1225,5],[1226,4,1226,5],[1227,4,1227,5],[1228,4,1228,5],[1229,4,1229,5],[1230,4,1230,5],[1219,4,1219,5],[1220,4,1220,5],[1221,4,1221,5],[1222,4,1222,5],[1223,4,1223,5],[1224,4,1224,5],[1213,4,1213,5],[1214,4,1214,5],[1215,4,1215,5],[1216,4,1216,5],[1217,4,1217,5],[1218,4,1218,5],[1207,4,1207,5],[1208,4,1208,5],[1209,4,1209,5],[1210,4,1210,5],[1211,4,1211,5],[1212,4,1212,5],[1201,4,1201,5],[1202,4,1202,5],[1203,4,1203,5],[1204,4,1204,5],[1205,4,1205,5],[1206,4,1206,5],[1195,4,1195,5],[1196,4,1196,5],[1197,4,1197,5],[1198,4,1198,5],[1199,4,1199,5],[1200,4,1200,5],[1189,4,1189,5],[1190,4,1190,5],[1191,4,1191,5],[1192,4,1192,5],[1193,4,1193,5],[1194,4,1194,5],[1183,4,1183,5],[1184,4,1184,5],[1185,4,1185,5],[1186,4,1186,5],[1187,4,1187,5],[1188,4,1188,5],[1177,4,1177,5],[1178,4,1178,5],[1179,4,1179,5],[1180,4,1180,5],[1181,4,1181,5],[1182,4,1182,5],[1171,4,1171,5],[1172,4,1172,5],[1173,4,1173,5],[1174,4,1174,5],[1175,4,1175,5],[1176,4,1176,5],[1165,4,1165,5],[1166,4,1166,5],[1167,4,1167,5],[1168,4,1168,5],[1169,4,1169,5],[1170,4,1170,5],[1159,4,1159,5],[1160,4,1160,5],[1161,4,1161,5],[1162,4,1162,5],[1163,4,1163,5],[1164,4,1164,5],[1153,4,1153,5],[1154,4,1154,5],[1155,4,1155,5],[1156,4,1156,5],[1157,4,1157,5],[1158,4,1158,5],[1147,4,1147,5],[1148,4,1148,5],[1149,4,1149,5],[1150,4,1150,5],[1151,4,1151,5],[1152,4,1152,5],[1141,4,1141,5],[1142,4,1142,5],[1143,4,1143,5],[1144,4,1144,5],[1145,4,1145,5],[1146,4,1146,5],[1135,4,1135,5],[1136,4,1136,5],[1137,4,1137,5],[1138,4,1138,5],[1139,4,1139,5],[1140,4,1140,5],[1129,4,1129,5],[1130,4,1130,5],[1131,4,1131,5],[1132,4,1132,5],[1133,4,1133,5],[1134,4,1134,5],[1123,4,1123,5],[1124,4,1124,5],[1125,4,1125,5],[1126,4,1126,5],[1127,4,1127,5],[1128,4,1128,5],[1117,4,1117,5],[1118,4,1118,5],[1119,4,1119,5],[1120,4,1120,5],[1121,4,1121,5],[1122,4,1122,5],[1111,4,1111,5],[1112,4,1112,5],[1113,4,1113,5],[1114,4,1114,5],[1115,4,1115,5],[1116,4,1116,5],[1105,4,1105,5],[1106,4,1106,5],[1107,4,1107,5],[1108,4,1108,5],[1109,4,1109,5],[1110,4,1110,5],[1099,4,1099,5],[1100,4,1100,5],[1101,4,1101,5],[1102,4,1102,5],[1103,4,1103,5],[1104,4,1104,5],[1093,4,1093,5],[1094,4,1094,5],[1095,4,1095,5],[1096,4,1096,5],[1097,4,1097,5],[1098,4,1098,5],[1087,4,1087,5],[1088,4,1088,5],[1089,4,1089,5],[1090,4,1090,5],[1091,4,1091,5],[1092,4,1092,5],[1081,4,1081,5],[1082,4,1082,5],[1083,4,1083,5],[1084,4,1084,5],[1085,4,1085,5],[1086,4,1086,5],[1075,4,1075,5],[1076,4,1076,5],[1077,4,1077,5],[1078,4,1078,5],[1079,4,1079,5],[1080,4,1080,5],[1069,4,1069,5],[1070,4,1070,5],[1071,4,1071,5],[1072,4,1072,5],[1073,4,1073,5],[1074,4,1074,5],[1063,4,1063,5],[1064,4,1064,5],[1065,4,1065,5],[1066,4,1066,5],[1067,4,1067,5],[1068,4,1068,5],[1057,4,1057,5],[1058,4,1058,5],[1059,4,1059,5],[1060,4,1060,5],[1061,4,1061,5],[1062,4,1062,5],[1051,4,1051,5],[1052,4,1052,5],[1053,4,1053,5],[1054,4,1054,5],[1055,4,1055,5],[1056,4,1056,5],[1045,4,1045,5],[1046,4,1046,5],[1047,4,1047,5],[1048,4,1048,5],[1049,4,1049,5],[1050,4,1050,5],[1039,4,1039,5],[1040,4,1040,5],[1041,4,1041,5],[1042,4,1042,5],[1043,4,1043,5],[1044,4,1044,5],[1033,4,1033,5],[1034,4,1034,5],[1035,4,1035,5],[1036,4,1036,5],[1037,4,1037,5],[1038,4,1038,5],[1027,4,1027,5],[1028,4,1028,5],[1029,4,1029,5],[1030,4,1030,5],[1031,4,1031,5],[1032,4,1032,5],[1021,4,1021,5],[1022,4,1022,5],[1023,4,1023,5],[1024,4,1024,5],[1025,4,1025,5],[1026,4,1026,5],[1015,4,1015,5],[1016,4,1016,5],[1017,4,1017,5],[1018,4,1018,5],[1019,4,1019,5],[1020,4,1020,5],[1009,4,1009,5],[1010,4,1010,5],[1011,4,1011,5],[1012,4,1012,5],[1013,4,1013,5],[1014,4,1014,5],[1003,4,1003,5],[1004,4,1004,5],[1005,4,1005,5],[1006,4,1006,5],[1007,4,1007,5],[1008,4,1008,5],[997,4,997,5],[998,4,998,5],[999,4,999,5],[1000,4,1000,5],[1001,4,1001,5],[1002,4,1002,5],[991,4,991,5],[992,4,992,5],[993,4,993,5],[994,4,994,5],[995,4,995,5],[996,4,996,5],[985,4,985,5],[986,4,986,5],[987,4,987,5],[988,4,988,5],[989,4,989,5],[990,4,990,5],[979,4,979,5],[980,4,980,5],[981,4,981,5],[982,4,982,5],[983,4,983,5],[984,4,984,5],[973,4,973,5],[974,4,974,5],[975,4,975,5],[976,4,976,5],[977,4,977,5],[978,4,978,5],[967,4,967,5],[968,4,968,5],[969,4,969,5],[970,4,970,5],[971,4,971,5],[972,4,972,5],[961,4,961,5],[962,4,962,5],[963,4,963,5],[964,4,964,5],[965,4,965,5],[966,4,966,5],[955,4,955,5],[956,4,956,5],[957,4,957,5],[958,4,958,5],[959,4,959,5],[960,4,960,5],[949,4,949,5],[950,4,950,5],[951,4,951,5],[952,4,952,5],[953,4,953,5],[954,4,954,5],[943,4,943,5],[944,4,944,5],[945,4,945,5],[946,4,946,5],[947,4,947,5],[948,4,948,5],[937,4,937,5],[938,4,938,5],[939,4,939,5],[940,4,940,5],[941,4,941,5],[942,4,942,5],[931,4,931,5],[932,4,932,5],[933,4,933,5],[934,4,934,5],[935,4,935,5],[936,4,936,5],[925,4,925,5],[926,4,926,5],[927,4,927,5],[928,4,928,5],[929,4,929,5],[930,4,930,5],[919,4,919,5],[920,4,920,5],[921,4,921,5],[922,4,922,5],[923,4,923,5],[924,4,924,5],[913,4,913,5],[914,4,914,5],[915,4,915,5],[916,4,916,5],[917,4,917,5],[918,4,918,5],[907,4,907,5],[908,4,908,5],[909,4,909,5],[910,4,910,5],[911,4,911,5],[912,4,912,5],[901,4,901,5],[902,4,902,5],[903,4,903,5],[904,4,904,5],[905,4,905,5],[906,4,906,5],[895,4,895,5],[896,4,896,5],[897,4,897,5],[898,4,898,5],[899,4,899,5],[900,4,900,5],[889,4,889,5],[890,4,890,5],[891,4,891,5],[892,4,892,5],[893,4,893,5],[894,4,894,5],[883,4,883,5],[884,4,884,5],[885,4,885,5],[886,4,886,5],[887,4,887,5],[888,4,888,5],[877,4,877,5],[878,4,878,5],[879,4,879,5],[880,4,880,5],[881,4,881,5],[882,4,882,5],[871,4,871,5],[872,4,872,5],[873,4,873,5],[874,4,874,5],[875,4,875,5],[876,4,876,5],[865,4,865,5],[866,4,866,5],[867,4,867,5],[868,4,868,5],[869,4,869,5],[870,4,870,5],[859,4,859,5],[860,4,860,5],[861,4,861,5],[862,4,862,5],[863,4,863,5],[864,4,864,5],[853,4,853,5],[854,4,854,5],[855,4,855,5],[856,4,856,5],[857,4,857,5],[858,4,858,5],[847,4,847,5],[848,4,848,5],[849,4,849,5],[850,4,850,5],[851,4,851,5],[852,4,852,5],[841,4,841,5],[842,4,842,5],[843,4,843,5],[844,4,844,5],[845,4,845,5],[846,4,846,5],[835,4,835,5],[836,4,836,5],[837,4,837,5],[838,4,838,5],[839,4,839,5],[840,4,840,5],[829,4,829,5],[830,4,830,5],[831,4,831,5],[832,4,832,5],[833,4,833,5],[834,4,834,5],[823,4,823,5],[824,4,824,5],[825,4,825,5],[826,4,826,5],[827,4,827,5],[828,4,828,5],[817,4,817,5],[818,4,818,5],[819,4,819,5]],"merged_total":1819,"flags":["merged_cut"]}

{"sheet":"工作表3","index":2,"n_rows":0,"n_cols":0,"rows_kept":0,"cut":false,"hidden":false,"merged":[]}